Workbook

Sheet Cover

Sheet Comment démarrer
B1: Comment utiliser ce fichier pour Votre Collectivité
B2: Ce fichier vous permet de mener la plupart des analyses présentées dans mon ouvrage 'Comprendre et gérer les finances de ma collectivité'. Il facilite les calculs, car il suffit d'introduire les informations provenant essentiellement des comptes publiés par votre collectivité.
B3: L'utilisation de ce fichier est simple. Mais comme le fichier comporte une quarantaine de feuilles, quelques explications s'imposent.
B4: La feuille Home vous donne les clés pour vous orienter dans le fichier. Chaque ligne correspond à un chapitre de l'ouvrage. Les chapitres sont numérotés de 1 à 15 dans la colonne B. Le titre du chapitre figure dans la colonne C. Il vous suffit de cliquer dans les colonnes D et suivantes pour accéder directement aux tableaux tels qu'ils figurent dans mon ouvrage et tels que vous pouvez les générer avec les résultats pour votre collectivité.
B5: Où que vous soyez dans le fichier, vous pouvez revenir à la feuille Home en cliquant sur l'icône ⌂ qui figure dans la cellule A1 de chaque feuille, y compris dans cette feuille-ci
B6: Afin d'obtenir les résultats pour votre collectivité, vous devez introduire les quelques informations provenant essentiellement des comptes de votre collectivité publique. Les cellules dans lesquelles saisir les informations sont signalées en vert clair, comme cette cellule-ci.
B7: Pour l'essentiel, les cellules se trouvent dans les feuilles suivantes :
B8: C|RésCHF : informations que vous trouvez dans le compte de résultats, à saisir en francs (la feuille C|RésKCHF présente ensuite le compte en milliers de francs, comme dans l'Annexe de l'ouvrage)
B9: C|InvCHF : informations provenant du compte des investissements à saisir en francs (la feuille C|InvKCHF présente ensuite le compte en milliers de francs, comme dans l'Annexe de l'ouvrage)
B10: BiCHF : informations provenant du bilan à saisir en francs (la feuille C|BiKCHF présente ensuite le bilan en milliers de francs, comme dans l'Annexe de l'ouvrage)
B11: DatAdCHF : informations additionnelles pour établir le tableau de bord, informations provenant des comptes, à saisir en francs
B12: Des informations supplémentaires doivent être saises en fonction d'analyses spécifiques que vous souhaitez mener, notamment …
B13: - Présentation condensée selon la classification fonctionnelle… | C13: Saisie dans FctCHF | E13: Résultat dans ClaFonc
B14: - Comparaison d'un amortissement linéaire et dégressif… | C14: Saisie dans AmCalc | E14: Résultat dans AmG
B15: - Origine du déficit : structurelle ou conjoncturelle | C15: Saisie dans PIB | D15: et dans k | E15: Résultat dans SCS
B16: - Dynamique de l'endettement et boule de neige | C16: Saisie dans BdN | E16: Résultat dans TxEndG et BdNG
B17: - Situation financière à la limite | C17: Saisie dans LimCalc | D17: ou dans LimSim | E17: Résultat dans les feuilles suivantes
B19: Vous pouvez obtenir l'ouvrage sous forme électronique ou papier en vous rendant à l'adresse suivante : | E19: www.unil.ch/idheap/finances

Sheet Home
B1: Home | Sommaire
B2: Chapitre | C2: Titre | D2: Onglets dans lesquels se trouvent les tableaux présentés dans l'ouvrage Comprendre et gérér les finances de ma collectivité
C4: Annexe : Fichiers de base MaCollectivité | D4: Compte de résultats en CHF [C|RésCHF] | E4: Compte des investissements en CHF [C|InvCHF] | F4: Bilan en CHF [BiCHF] | G4: Données additionnelles en CHF [DatAdCHF] | H4: Classification fonctionnelle en CHF [FctCHF] | I4: Compte de résultats en KCHF [C|RésKCHF] | J4: Compte des inves- tissements en KCHF [C|InvKCHF] | K4: Bilan en KCHF [BiKCHF] | L4: Tableau des flux de trésorerie en CHF [FxTréCHF]
B5: 1 | C5: Introduction pour prendre votre ouvrage en main | D5: Pas de feuille de calcul pour l'analyse
B6: 2 | C6: Identifier les acteurs et les fondements de la gestion financière | D6: Pas de feuille de calcul pour l'analyse
B7: =+B6+1 -> 3 | C7: Décrypter comment les comptes et les budgets sont organisés | D7: Compte de résultats [CdR] | E7: Compte de résultats échelonné [CdREch] | F7: Classification fonctionnelle [ClaFonc] | G7: Compte des investissements [CdI] | H7: Tableau de financement [TabFin] | I7: Tableau des flux de trésorerie [FluxTré] | J7: Calcul des amortissements [AmCalc] | K7: Comparaison linéaire & dégressif Graphe [AmG] | L7: CH Compte de financement [ChCoFi]
B8: =+B7+1 -> 4 | C8: Utiliser les imputations internes pour refléter le coût des prestations | D8: Importance des imputations internes [ImpII]
B9: 5 | C9: Comprendre le financement spécifique de certaines prestations | D9: Importance des impôts et des contributions [Fisc]
B10: 6 | C10: Connaître les mécanismes de transferts et de péréquation financière | D10: Importance des transferts [Trans] | E10: Revenus dans le potentiel fiscal [PotFis]
B11: 7 | C11: Identifier les modalités de financement et d’emprunt | D11: Pas de feuille de calcul pour l'analyse
B12: 8 | C12: Déceler la tactique politique en matière de présentation des comptes | D12: Pas de feuille de calcul pour l'analyse
B13: 9 | C13: Porter un diagnostic sur la situation financière à l’aide d’indicateurs | D13: Structure du tableau de bord [TdB] | E13: Pondération des indicateurs [TdBP] | F13: Calcul des indicateurs [IndCalc] | G13: Synthèse du tableau de bord [TdBSyn]
B14: 10 | C14: Trouver les informations financières pour se comparer | D14: Pas de feuille de calcul pour l'analyse
B15: 11 | C15: Analyser l’origine des déficits : conjoncture ou structure | D15: PIB potentiel [PIB] | E15: Facteur conjoncturel [k] | F15: Facteur conjoncturel Graphe [kG] | G15: Solde de financement [SldFin] | H15: Solde conjoncturel et structurel [SCS]
B16: 12 | C16: Analyser la dynamique de l’endettement : cercle vicieux ou vertueux | D16: Dette & Engagements [DetEng] | E16: Solde primaire [SldPri] | F16: Boule de neige [BdN] | G16: Taux d'endettement Graphe [TxEndG] | H16: Boule de neige Graphe [BdNG]
B17: 13 | C17: Projeter la situation financière à la limite | D17: Calcul des limites [LimCalc] | E17: Simulation des limites [LimSim] | F17: Limite Taux d'endettement Graphe [LimTxEndG] | G17: Limite Effet de tenailles Graphe [LimEfTenG] | H17: Limite Autofinancement Graphe [LimAutoG] | I17: Limite endettement si déséquilibre Graphe [LimTxEndDésG]
B18: 14 | C18: Améliorer la situation financière à l’avenir : quelques pistes | D18: Pas de feuille de calcul pour l'analyse
B19: 15 | C19: Portée stratégique des finances de ma collectivité | D19: Pas de feuille de calcul pour l'analyse

Sheet C|RésCHF
B1: Compte de résultats, en CHF
C3: Compte de résultats | E3: Comptes | | F3: Année t | H3: Budget | | I3: =+F3 -> Année t | K3: Comptes | | L3: Année t-1
C4: En CHF | E4: Charges | F4: Revenus | H4: Charges | I4: Revenus | K4: Charges | L4: Revenus
C5: 3 | D5: Charges | E5: =+E6+E15++E26+E27+E30+E37+E40++E49+E51+E59 -> 14546067.81 | H5: =+H6+H15++H26+H27+H30+H37+H40++H49+H51+H59 -> 14639900 | K5: =+K6+K15++K26+K27+K30+K37+K40++K49+K51+K59 -> 13741519
C6: 30 | D6: Charges de personnel | E6: =SUM(E7:E14) -> 2020354.25 | H6: =SUM(H7:H14) -> 2063500 | K6: =SUM(K7:K14) -> 1985894.1
C7: 300 | D7: Autorités, commissions et juges | E7: 174782.15 | H7: 183000 | K7: 178251.65
C8: 301 | D8: Salaires du personnel administratif et d'exploitation | E8: =1524888.75 -> 1524888.75 | H8: =1542200 -> 1542200 | K8: 1496623.7
C9: 302 | D9: Salaires des enseignants | E9: 0 | H9: 0 | K9: 0
C10: 303 | D10: Travailleurs temporaires | E10: 0 | H10: 0 | K10: 0
C11: 304 | D11: Allocations | E11: 0 | H11: 0 | K11: 0
C12: 305 | D12: Cotisations patronales | E12: 295329.95 | H12: 306700 | K12: 282945.9
C13: 306 | D13: Prestations de l'employeur | E13: 0 | H13: 0 | K13: 0
C14: 309 | D14: Autres charges de personnel | E14: 25353.4 | H14: 31600 | K14: 28072.85
C15: 31 | D15: Charges de biens et services et autres charges d'exploitation | E15: =SUM(E16:E25) -> 4076133.6 | H15: =SUM(H16:H25) -> 4592700 | K15: =SUM(K16:K25) -> 4086745.87
C16: 310 | D16: Charges de matières et de marchandises | E16: 1725137.55 | H16: 1799600 | K16: 1755171.25
C17: 311 | D17: Immobilisations ne pouvant être portées à l'actif | E17: 129694.05 | H17: 167500 | K17: 105269.75
C18: 312 | D18: Alimentation et élimination des biens-fonds du PA | E18: 190948.55 | H18: 241600 | K18: 232439.2
C19: 313 | D19: Prestations de service et honoraires | E19: 975997.18 | H19: 1196000 | K19: 912829.06
C20: 314 | D20: Gros entretien et entretien courant | E20: 698976.85 | H20: 832600 | K20: 715550.35
C21: 315 | D21: Entretien des biens meubles et immobilisations incorporelles | E21: 123010.5 | H21: 169300 | K21: 154407.65
C22: 316 | D22: Loyers, leasing, baux à ferme, frais d'utilisation | E22: 56686.8 | H22: 47500 | K22: 49889.15
C23: 317 | D23: Dédommagements | E23: 58423.5 | H23: 55800 | K23: 56635.35
C24: 318 | D24: Réévaluations sur créances | E24: 95997.75 | H24: 56900 | K24: 79146.16
C25: 319 | D25: Autres charges d'exploitation | E25: 21260.87 | H25: 25900 | K25: 25407.95
C26: 32 | D26: Charges d'armement (compte réservé à la Confédération) | E26: 0 | H26: 0 | K26: 0
C27: 33 | D27: Amortissements du patrimoine administratif | E27: =SUM(E28:E29) -> 670430.25 | H27: =SUM(H28) -> 708800 | K27: =SUM(K28) -> 676296.35
C28: 330 | D28: Amortissements des immobilisations corporelles du PA | E28: 670430.25 | H28: 708800 | K28: 676296.35
C29: 332 | D29: Amortissements des immobilisations incorporelles du PA | E29: 0 | H29: 0 | K29: 0
C30: 34 | D30: Charges financières | E30: =SUM(E31:E36) -> 125142.08 | H30: =SUM(H31:H36) -> 218900 | K30: =SUM(K31:K36) -> 135180.44
C31: 340 | D31: Charges d'intérêts | E31: 74308.23 | H31: 81300 | K31: 92383.39
C32: 341 | D32: Pertes réalisées sur le patrimoine financier | E32: 0 | H32: 0 | K32: 0
C33: 342 | D33: Frais d'approvisionnement en capitaux et frais administratifs | E33: 10000 | H33: =60000+5000 -> 65000 | K33: 8931.6
C34: 343 | D34: Charges pour biens-fonds du patrimoine financier | E34: 40833.8 | H34: 72600 | K34: 33865.45
C35: 344 | D35: Réévaluations des immobilisations du patrimoine financier | E35: 0 | H35: 0 | K35: 0
C36: 349 | D36: Autres charges financières | E36: 0.05 | H36: 0 | K36: 0
C37: 35 | D37: Attributions aux financements spéciaux [FSp] et fonds | E37: =SUM(E38:E39) -> 0 | H37: =SUM(H38:H39) -> 0 | K37: =SUM(K38:K39) -> 0
C38: 350 | D38: Attributions aux FSp et fonds sous capitaux de tiers | E38: 0 | H38: 0 | K38: 0
C39: 351 | D39: Attributions aux FSp et fonds sous capital propre | E39: 0 | H39: 0 | K39: 0
C40: 36 | D40: Charges de transferts | E40: =SUM(E42:E48) -> 6392860.1 | H40: =SUM(H42:H48) -> 6186200 | K40: =SUM(K42:K48) -> 5924203.34
C41: 360 | D41: Parts de revenus destinées à des tiers | E41: 0 | H41: 0 | K41: 0
C42: 361 | D42: Dédommagements à des collectivités publiques | E42: 3904683.1 | H42: 3793300 | K42: 3541388.59
C43: 362 | D43: Péréquation financière et compensation des charges | E43: 563886 | H43: 552000 | K43: 551106
C44: 363 | D44: Subventions à des collectivités publiques et à des tiers | E44: 1924291 | H44: 1840900 | K44: 1831708.75
C45: 364 | D45: Réévaluations de prêts du PA | E45: 0 | H45: 0 | K45: 0
C46: 365 | D46: Réévaluations de participations du PA | E46: 0 | H46: 0 | K46: 0
C47: 366 | D47: Amortissements des subventions d'investissement | E47: 0 | H47: 0 | K47: 0
C48: 369 | D48: Autres charges de transferts | E48: 0 | H48: 0 | K48: 0
C49: 37 | D49: Subventions redistribuées | E49: =SUM(E50) -> 0 | H49: =SUM(H50) -> 0 | K49: =SUM(K50) -> 0
C50: 370 | D50: Subventions redistribuées | E50: 0 | H50: 0 | K50: 0
C51: 38 | D51: Charges extraordinaires [e.o.] | E51: =SUM(E52:E58) -> 991214.53 | H51: =SUM(H52:H58) -> 612600 | K51: =SUM(K52:K58) -> 644887.9
C52: 380 | D52: Charges extraordinaires de personnel | E52: 0 | H52: 0 | K52: 0
C53: 381 | D53: Charges e.o. de biens, services et charges d'exploitation | E53: 0 | H53: 0 | K53: 0
C54: 383 | D54: Amortissements supplémentaires [AS] | E54: 0 | H54: 0 | K54: 0
C55: 384 | D55: Charges financières extraordinaires | E55: 0 | H55: 0 | K55: 0
C56: 386 | D56: Charges extraordinaires de transferts | E56: 0 | H56: 0 | K56: 0
C57: 387 | D57: AS de prêts, participations, subventions d'investissement | E57: 0 | H57: 0 | K57: 0
C58: 389 | D58: Attributions au capital propre | E58: 991214.53 | H58: 612600 | K58: 644887.9
C59: 39 | D59: Imputations internes | E59: =SUM(E60:E67) -> 269933 | H59: =SUM(H60:H67) -> 257200 | K59: =SUM(K60:K67) -> 288311
C60: 390 | D60: Approvisionnement en matériel et marchandises | E60: 0 | H60: 0 | K60: 0
C61: 391 | D61: Prestations de service | E61: 143723 | H61: 134200 | K61: 160281
C62: 392 | D62: Baux à ferme, loyers, frais d'utilisation | E62: 0 | H62: 0 | K62: 0
C63: 393 | D63: Frais administratifs et d'exploitation | E63: 116410 | H63: 108000 | K63: 118230
C64: 394 | D64: Intérêts et charges financières théoriques | E64: 9800 | H64: 15000 | K64: 9800
C65: 395 | D65: Amortissements planifiés et non planifiés | E65: 0 | H65: 0 | K65: 0
C66: 398 | D66: Virements comptables | E66: 0 | H66: 0 | K66: 0
C67: 399 | D67: Autres imputations internes | E67: 0 | H67: 0 | K67: 0
C69: Compte de résultats | E69: Comptes | | F69: =+F3 -> Année t | H69: Budget | | I69: =+F69 -> Année t | K69: Comptes | | L69: =+L3 -> Année t-1
C70: En CHF | E70: Charges | F70: Revenus | H70: Charges | I70: Revenus | K70: Charges | L70: Revenus
C71: 4 | D71: Revenus | F71: =+F72+F77+F82+F92+F97+F108+F111+F118+F120+F128 -> 14609738.1 | I71: =+I72+I77+I82+I92+I97+I108+I111+I118+I120+I128 -> 14124700 | L71: =+L72+L77+L82+L92+L97+L108+L111+L118+L120+L128 -> 14235754.16
C72: 40 | D72: Revenus fiscaux | F72: =SUM(F73:F76) -> 7651667.95 | I72: =SUM(I73:I76) -> 7107200 | L72: =SUM(L73:L76) -> 7537931.28
C73: 400 | D73: Impôts directs, personnes physiques | F73: 6231548 | I73: 6160000 | L73: =6424538.73-189234 -> 6235304.73
C74: 401 | D74: Impôts directs, personnes morales | F74: 501028.95 | I74: 212000 | L74: 475508.15
C75: 402 | D75: Autres impôts directs | F75: 897811 | I75: 716000 | L75: 805438.4
C76: 403 | D76: Impôts sur la propriété et sur les charges | F76: 21280 | I76: 19200 | L76: 21680
C77: 41 | D77: Patentes et concessions | F77: =SUM(F78:F81) -> 11874 | I77: =SUM(I78:I81) -> 11500 | L77: =SUM(L78:L81) -> 12004
C78: 410 | D78: Patentes | F78: 0 | I78: 0 | L78: 0
C79: 411 | D79: Banque nationale suisse | F79: 0 | I79: 0 | L79: 0
C80: 412 | D80: Concessions | F80: 11874 | I80: 11500 | L80: 12004
C81: 413 | D81: Parts de revenus à des loteries, Sport-Toto, paris | F81: 0 | I81: 0 | L81: 0
C82: 42 | D82: Taxes et redevances | F82: =SUM(F83:F91) -> 5075986.8 | I82: =SUM(I83:I91) -> 5096900 | L82: =SUM(L83:L91) -> 4852397.98
C83: 420 | D83: Taxes de compensation | F83: 191942.5 | I83: 175000 | L83: 195051.75
C84: 421 | D84: Emoluments pour actes administratifs | F84: 72528.36 | I84: 61200 | L84: 57281.53
C85: 422 | D85: Taxes pour hôpitaux et établissements médicaux… | F85: 0 | I85: 0 | L85: 0
C86: 423 | D86: Frais d'écolage et taxes de cours | F86: 0 | I86: 0 | L86: 0
C87: 424 | D87: Taxes d'utilisation et prestations de service | F87: 4651251.44 | I87: 4716500 | L87: 4406269.5
C88: 425 | D88: Recettes sur ventes | F88: 92001.55 | I88: 87800 | L88: 95683.25
C89: 426 | D89: Remboursements | F89: 68262.95 | I89: 56400 | L89: 98111.95
C90: 427 | D90: Amendes | F90: 0 | I90: 0 | L90: 0
C91: 429 | D91: Autres taxes | F91: 0 | I91: 0 | L91: 0
C92: 43 | D92: Revenus divers | F92: =SUM(F93:F96) -> 16776.15 | I92: =SUM(I93:I96) -> 0 | L92: =SUM(L93:L96) -> 0
C93: 430 | D93: Revenus d'exploitation divers | F93: 19.3 | I93: 0 | L93: =934967.9-934967.9 -> 0
C94: 431 | D94: Activations de prestations propres | F94: 16756.85 | I94: 0 | L94: 0
C95: 432 | D95: Variations de stocks | F95: 0 | I95: 0 | L95: 0
C96: 439 | D96: Autres revenus | F96: 0 | I96: 0 | L96: 0
C97: 44 | D97: Revenus financiers | F97: =SUM(F98:F107) -> 166677.4 | I97: =SUM(I98:I107) -> 153600 | L97: =SUM(L98:L107) -> 158618.25
C98: 440 | D98: Revenus des intérêts | F98: 12594.8 | I98: 19600 | L98: 15525.25
C99: 441 | D99: Gains réalisés sur le patrimoine financier | F99: 0 | I99: 0 | L99: 0
C100: 442 | D100: Revenus de participations du patrimoine financier | F100: 0 | I100: 0 | L100: 0
C101: 443 | D101: Produits des immeubles du patrimoine financier | F101: 92097.6 | I101: 84600 | L101: 89986.5
C102: 444 | D102: Réévaluations des immobilisations du patrimoine financier | F102: 8700 | L102: 2790
C103: 445 | D103: Revenus financiers de prêts et de participations du PA | F103: 7530 | I103: 7500 | L103: 7530
C104: 446 | D104: Revenus financiers d'entreprises publiques | F104: 0 | I104: 0 | L104: 0
C105: 447 | D105: Produits des immeubles du patrimoine administratif | F105: 45755 | I105: 41900 | L105: 42786.5
C106: 448 | D106: Revenus des immeubles loués | F106: 0 | I106: 0 | L106: 0
C107: 449 | D107: Autres revenus financiers | F107: 0 | I107: 0 | L107: 0
C108: 45 | D108: Prélèvements sur les financements spéciaux [FSp] et fonds | F108: =SUM(F109:F110) -> 22673.95 | I108: =SUM(I109:I110) -> 0 | L108: =SUM(L109:L110) -> 3243.9
C109: 450 | D109: Prélèvements sur les FSp et fonds sous capitaux de tiers | F109: 22673.95 | I109: 0 | L109: 3243.9
C110: 451 | D110: Prélèvements sur les FSp et fonds sous capital propre | F110: 0 | I110: 0 | L110: 0
C111: 46 | D111: Revenus de transferts | F111: =SUM(F112:F117) -> 1372737.85 | I111: =SUM(I112:I117) -> 1372600 | L111: =SUM(L112:L117) -> 1366186.75
C112: 460 | D112: Parts à des revenus de tiers | F112: 0 | I112: 0 | L112: 0
C113: 461 | D113: Dédommagements de collectivités publiques | F113: 644297.2 | I113: 638600 | L113: 622201.65
C114: 462 | D114: Péréquation financière et compensation des charges | F114: 610019 | I114: 656900 | L114: 663493
C115: 463 | D115: Subventions de collectivités publiques et de tiers | F115: 117127.7 | I115: 76000 | L115: 79381.2
C116: 466 | D116: Dissolutions des subventions d'investissement portées au passif | F116: 0 | I116: 0 | L116: 0
C117: 469 | D117: Autres revenus de transferts | F117: 1293.95 | I117: 1100 | L117: 1110.9
C118: 47 | D118: Subventions à redistribuer | F118: =SUM(F119) -> 0 | I118: =SUM(I119) -> 0 | L118: =SUM(L119) -> 0
C119: 470 | D119: Subventions à redistribuer | F119: 0 | I119: 0 | L119: 0
C120: 48 | D120: Revenus extraordinaires [e.o.] | F120: =SUM(F121:F127) -> 21411 | I120: =SUM(I121:I127) -> 125700 | L120: =SUM(L121:L127) -> 17061
C121: 481 | D121: Revenus extraordinaires de patentes, concessions | F121: 0 | I121: 0 | L121: 0
C122: 482 | D122: Contributions extraordinaires | F122: 0 | I122: 0 | L122: 0
C123: 483 | D123: Revenus extraordinaires divers | F123: 0 | I123: 0 | L123: 0
C124: 484 | D124: Revenus financiers extraordinaires | F124: 0 | I124: 0 | L124: 0
C125: 486 | D125: Revenus extraordinaires de transferts | F125: 0 | I125: 0 | L125: 0
C126: 487 | D126: Dissolutions supplémentaires des subventions d'invest. au passif | F126: 0 | I126: 0 | L126: 0
C127: 489 | D127: Prélèvements sur le capital propre | F127: 21411 | I127: 125700 | L127: 17061
C128: 49 | D128: Imputations internes | F128: =SUM(F129:F136) -> 269933 | I128: =SUM(I129:I136) -> 257200 | L128: =SUM(L129:L136) -> 288311
C129: 490 | D129: =+D60 -> Approvisionnement en matériel et marchandises | F129: =+E60 -> 0 | I129: =+H60 -> 0 | L129: =+K60 -> 0
C130: 491 | D130: =+D61 -> Prestations de service | F130: =+E61 -> 143723 | I130: =+H61 -> 134200 | L130: =+K61 -> 160281
C131: 492 | D131: Baux à ferme, loyers, frais d'utilisation | F131: 0 | I131: 0 | L131: 0
C132: 493 | D132: Frais administratifs et d'exploitation | F132: 116410 | I132: 108000 | L132: 118230
C133: 494 | D133: Intérêts et charges financières théoriques | F133: 9800 | I133: 15000 | L133: 9800
C134: 495 | D134: Amortissements planifiés et non planifiés | F134: 0 | I134: 0 | L134: 0
C135: 498 | D135: Virements comptables | F135: 0 | I135: 0 | L135: 0
C136: 499 | D136: Autres imputations internes | F136: 0 | I136: 0 | L136: 0
D138: RESULTAT | F138: =+F71-E5 -> 63670.29 | I138: =+I71-H5 -> -515200 | L138: =+L71-K5 -> 494235.16

Sheet C|InvCHF
B1: Compte des investissements, en CHF
C3: Compte des investissements | E3: Comptes | | F3: =+'C|RésCHF'!F3 -> Année t | H3: Budget | | I3: =+F3 -> Année t | K3: Comptes | | L3: =+'C|RésCHF'!L3 -> Année t-1
C4: en CHF | E4: Dépenses | F4: Recettes | H4: Dépenses | I4: Recettes | K4: Dépenses | L4: Recettes
C5: 5 | D5: Dépenses d'investissement | E5: =+E6+E15+E24+E28+E38+E48+E58+E68 -> 1971454.9 | H5: =+H6+H15+H24+H28+H38+H48+H58+H68 -> 2403000 | K5: =+K6+K15+K24+K28+K38+K48+K58+K68 -> 1774837.85
C6: 50 | D6: Immobilisations corporelles | E6: =SUM(E7:E14) -> 1971454.9 | H6: =SUM(H7:H14) -> 2359000 | K6: =SUM(K7:K14) -> 1774837.85
C7: 500 | D7: Terrains | E7: 0 | H7: 0 | K7: 0
C8: 501 | D8: Routes et voies de communication | E8: 183614.35 | H8: 308000 | K8: 309763.8
C9: 502 | D9: Aménagements des cours d'eau | E9: 0 | H9: 0 | K9: 0
C10: 503 | D10: Autres travaux de génie civil | E10: 893100.8 | H10: 941000 | K10: 1115559.5
C11: 504 | D11: Bâtiments | E11: 894739.75 | H11: 1060000 | K11: 273922.4
C12: 505 | D12: Forêts | E12: 0 | H12: 0 | K12: 0
C13: 506 | D13: Biens meubles | E13: 0 | H13: 50000 | K13: 75592.15
C14: 509 | D14: Autres immobilisations corporelles | E14: 0 | H14: 0 | K14: 0
C15: 51 | D15: Dépenses d'investissement pour le compte de tiers | E15: =SUM(E16:E23) -> 0 | H15: =SUM(H16:H23) -> 0 | K15: =SUM(K16:K23) -> 0
C16: 510 | D16: =+D7 -> Terrains | E16: 0 | H16: 0 | K16: 0
C17: 511 | D17: =+D8 -> Routes et voies de communication | E17: 0 | H17: 0 | K17: 0
C18: 512 | D18: Aménagements des cours d'eau | E18: 0 | H18: 0 | K18: 0
C19: 513 | D19: Autres travaux de génie civil | E19: 0 | H19: 0 | K19: 0
C20: 514 | D20: Bâtiments | E20: 0 | H20: 0 | K20: 0
C21: 515 | D21: Forêts | E21: 0 | H21: 0 | K21: 0
C22: 516 | D22: Biens meubles | E22: 0 | H22: 0 | K22: 0
C23: 519 | D23: Autres immobilisations corporelles | E23: 0 | H23: 0 | K23: 0
C24: 52 | D24: Immobilisations incorporelles | E24: =SUM(E25:E27) -> 0 | H24: =SUM(H25:H27) -> 0 | K24: =SUM(K25:K27) -> 0
C25: 520 | D25: Logiciels | E25: 0 | H25: 0 | K25: 0
C26: 521 | D26: Licences, droits d'utilisation, droits des marques | E26: 0 | H26: 0 | K26: 0
C27: 529 | D27: Autres immobilisations incorporelles | E27: 0 | H27: 0 | K27: 0
C28: 54 | D28: Prêts | E28: =SUM(E29:E37) -> 0 | H28: =SUM(H29:H37) -> 0 | K28: =SUM(K29:K37) -> 0
C29: 540 | D29: Confédération | E29: 0 | H29: 0 | K29: 0
C30: 541 | D30: Cantons et concordats | E30: 0 | H30: 0 | K30: 0
C31: 542 | D31: Communes et associations intercommunales | E31: 0 | H31: 0 | K31: 0
C32: 543 | D32: Assurances sociales publiques | E32: 0 | H32: 0 | K32: 0
C33: 544 | D33: Entreprises publiques | E33: 0 | H33: 0 | K33: 0
C34: 545 | D34: Entreprises privées | E34: 0 | H34: 0 | K34: 0
C35: 546 | D35: Organisations privées à but non lucratif | E35: 0 | H35: 0 | K35: 0
C36: 547 | D36: Ménages privés | E36: 0 | H36: 0 | K36: 0
C37: 548 | D37: Etranger | E37: 0 | H37: 0 | K37: 0
C38: 55 | D38: Participations et capital social | E38: =SUM(E39:E47) -> 0 | H38: =SUM(H39:H47) -> 0 | K38: =SUM(K39:K47) -> 0
C39: 550 | D39: =+$D$29 -> Confédération | E39: 0 | H39: 0 | K39: 0
C40: 551 | D40: =+$D$30 -> Cantons et concordats | E40: 0 | H40: 0 | K40: 0
C41: 552 | D41: =+$D$31 -> Communes et associations intercommunales | E41: 0 | H41: 0 | K41: 0
C42: 553 | D42: =+$D$32 -> Assurances sociales publiques | E42: 0 | H42: 0 | K42: 0
C43: 554 | D43: =+$D$33 -> Entreprises publiques | E43: 0 | H43: 0 | K43: 0
C44: 555 | D44: =+$D$34 -> Entreprises privées | E44: 0 | H44: 0 | K44: 0
C45: 556 | D45: =+$D$35 -> Organisations privées à but non lucratif | E45: 0 | H45: 0 | K45: 0
C46: 557 | D46: =+$D$36 -> Ménages privés | E46: 0 | H46: 0 | K46: 0
C47: 558 | D47: =+$D$37 -> Etranger | E47: 0 | H47: 0 | K47: 0
C48: 56 | D48: Propres subventions d'investissement | E48: =SUM(E49:E57) -> 0 | H48: =SUM(H49:H57) -> 44000 | K48: =SUM(K49:K57) -> 0
C49: 560 | D49: =+$D$29 -> Confédération | E49: 0 | H49: 0 | K49: 0
C50: 561 | D50: =+$D$30 -> Cantons et concordats | E50: 0 | H50: 0 | K50: 0
C51: 562 | D51: =+$D$31 -> Communes et associations intercommunales | E51: 0 | H51: 44000 | K51: 0
C52: 563 | D52: =+$D$32 -> Assurances sociales publiques | E52: 0 | H52: 0 | K52: 0
C53: 564 | D53: =+$D$33 -> Entreprises publiques | E53: 0 | H53: 0 | K53: 0
C54: 565 | D54: =+$D$34 -> Entreprises privées | E54: 0 | H54: 0 | K54: 0
C55: 566 | D55: =+$D$35 -> Organisations privées à but non lucratif | E55: 0 | H55: 0 | K55: 0
C56: 567 | D56: =+$D$36 -> Ménages privés | E56: 0 | H56: 0 | K56: 0
C57: 568 | D57: =+$D$37 -> Etranger | E57: 0 | H57: 0 | K57: 0
C58: 57 | D58: Subventions d'investissement redistribuées | E58: =SUM(E59:E67) -> 0 | H58: =SUM(H59:H67) -> 0 | K58: =SUM(K59:K67) -> 0
C59: 570 | D59: =+$D$29 -> Confédération | E59: 0 | H59: 0 | K59: 0
C60: 571 | D60: =+$D$30 -> Cantons et concordats | E60: 0 | H60: 0 | K60: 0
C61: 572 | D61: =+$D$31 -> Communes et associations intercommunales | E61: 0 | H61: 0 | K61: 0
C62: 573 | D62: =+$D$32 -> Assurances sociales publiques | E62: 0 | H62: 0 | K62: 0
C63: 574 | D63: =+$D$33 -> Entreprises publiques | E63: 0 | H63: 0 | K63: 0
C64: 575 | D64: =+$D$34 -> Entreprises privées | E64: 0 | H64: 0 | K64: 0
C65: 576 | D65: =+$D$35 -> Organisations privées à but non lucratif | E65: 0 | H65: 0 | K65: 0
C66: 577 | D66: =+$D$36 -> Ménages privés | E66: 0 | H66: 0 | K66: 0
C67: 578 | D67: =+$D$37 -> Etranger | E67: 0 | H67: 0 | K67: 0
C68: 58 | D68: Dépenses d'investissement extraordinaires [e.o.] | E68: =SUM(E69:E74) -> 0 | H68: =SUM(H69:H74) -> 0 | K68: =SUM(K69:K74) -> 0
C69: 580 | D69: Dépenses d'investissement e.o. immobilisations corporelles | E69: 0 | H69: 0 | K69: 0
C70: 582 | D70: Dépenses d'investissement e.o. immobilisations incorporelles | E70: 0 | H70: 0 | K70: 0
C71: 584 | D71: Dépenses d'investissement e.o. pour des prêts | E71: 0 | H71: 0 | K71: 0
C72: 585 | D72: Dépenses d'investissement e.o. participations, capital social | E72: 0 | H72: 0 | K72: 0
C73: 586 | D73: Subventions d'investissement e.o. | E73: 0 | H73: 0 | K73: 0
C74: 589 | D74: Autres dépenses d'investissement e.o. | E74: 0 | H74: 0 | K74: 0
C76: Compte des investissements | E76: =+E3 -> Comptes | | F76: =+F3 -> Année t | H76: =+H3 -> Budget | | I76: =+I3 -> Année t | K76: =+K3 -> Comptes | | L76: =+L3 -> Année t-1
C77: en CHF | E77: Dépenses | F77: Recettes | H77: Dépenses | I77: Recettes | K77: Dépenses | L77: Recettes
C78: 6 | D78: Recettes d'investissement | F78: =+F79+F88+F97+F101+F111+F121+F131+F141+F151 -> 43461 | I78: =+I79+I88+I97+I101+I111+I121+I131+I141+I151 -> 500000 | L78: =+L79+L88+L97+L101+L111+L121+L131+L141+L151 -> 10000
C79: 60 | D79: Transferts d'immobilisations corporelles dans le PF | F79: =SUM(F80:F87) -> 0 | I79: =SUM(I80:I87) -> 0 | L79: =SUM(L80:L87) -> 0
C80: 600 | D80: Transferts de terrains | F80: 0 | I80: 0 | L80: 0
C81: 601 | D81: Transferts de routes et voies de communication | F81: 0 | I81: 0 | L81: 0
C82: 602 | D82: Transferts d'aménagements des cours d'eau | F82: 0 | I82: 0 | L82: 0
C83: 603 | D83: Transferts d'autres travaux de génie civil | F83: 0 | I83: 0 | L83: 0
C84: 604 | D84: Transferts de bâtiments | F84: 0 | I84: 0 | L84: 0
C85: 605 | D85: Transferts de forêts | F85: 0 | I85: 0 | L85: 0
C86: 606 | D86: Transferts de biens meubles | F86: 0 | I86: 0 | L86: 0
C87: 609 | D87: Transferts d'autres immobilisations corporelles | F87: 0 | I87: 0 | L87: 0
C88: 61 | D88: Remboursements de dépenses d'invest. pour le compte de tiers | F88: =SUM(F89:F96) -> 0 | I88: =SUM(I89:I96) -> 0 | L88: =SUM(L89:L96) -> 0
C89: 610 | D89: =+D7 -> Terrains | F89: 0 | I89: 0 | L89: 0
C90: 611 | D90: =+D8 -> Routes et voies de communication | F90: 0 | I90: 0 | L90: 0
C91: 612 | D91: Aménagements des cours d'eau | F91: 0 | I91: 0 | L91: 0
C92: 613 | D92: Autres travaux de génie civil | F92: 0 | I92: 0 | L92: 0
C93: 614 | D93: Bâtiments | F93: 0 | I93: 0 | L93: 0
C94: 615 | D94: Forêts | F94: 0 | I94: 0 | L94: 0
C95: 616 | D95: Biens meubles | F95: 0 | I95: 0 | L95: 0
C96: 619 | D96: Autres immobilisations corporelles | F96: 0 | I96: 0 | L96: 0
C97: 62 | D97: Transferts d'immobilisations incorporelles dans le PF | F97: =SUM(F98:F100) -> 0 | I97: =SUM(I98:I100) -> 0 | L97: =SUM(L98:L100) -> 0
C98: 620 | D98: =+D25 -> Logiciels | F98: 0 | I98: 0 | L98: 0
C99: 621 | D99: =+D26 -> Licences, droits d'utilisation, droits des marques | F99: 0 | I99: 0 | L99: 0
C100: 629 | D100: Autres immobilisations incorporelles | F100: 0 | I100: 0 | L100: 0
C101: 63 | D101: Subventions d'investissement acquises | F101: =SUM(F102:F110) -> 43461 | I101: =SUM(I102:I110) -> 500000 | L101: =SUM(L102:L110) -> 10000
C102: 630 | D102: =+$D$29 -> Confédération | F102: 0 | I102: 0 | L102: 0
C103: 631 | D103: =+$D$30 -> Cantons et concordats | F103: 0 | I103: 100000 | L103: 0
C104: 632 | D104: =+$D$31 -> Communes et associations intercommunales | F104: 0 | I104: 0 | L104: 0
C105: 633 | D105: =+$D$32 -> Assurances sociales publiques | F105: 0 | I105: 0 | L105: 0
C106: 634 | D106: =+$D$33 -> Entreprises publiques | F106: 3231 | I106: 0 | L106: =200000-190000 -> 10000
C107: 635 | D107: =+$D$34 -> Entreprises privées | F107: 40230 | I107: 400000 | L107: 0
C108: 636 | D108: =+$D$35 -> Organisations privées à but non lucratif | F108: 0 | I108: 0 | L108: 0
C109: 637 | D109: =+$D$36 -> Ménages privés | F109: 0 | I109: 0 | L109: 0
C110: 638 | D110: =+$D$37 -> Etranger | F110: 0 | I110: 0 | L110: 0
C111: 64 | D111: Remboursements de prêts | F111: =SUM(F112:F120) -> 0 | I111: =SUM(I112:I120) -> 0 | L111: =SUM(L112:L120) -> 0
C112: 640 | D112: =+$D$29 -> Confédération | F112: 0 | I112: 0 | L112: 0
C113: 641 | D113: =+$D$30 -> Cantons et concordats | F113: 0 | I113: 0 | L113: 0
C114: 642 | D114: =+$D$31 -> Communes et associations intercommunales | F114: 0 | I114: 0 | L114: 0
C115: 643 | D115: =+$D$32 -> Assurances sociales publiques | F115: 0 | I115: 0 | L115: 0
C116: 644 | D116: =+$D$33 -> Entreprises publiques | F116: 0 | I116: 0 | L116: 0
C117: 645 | D117: =+$D$34 -> Entreprises privées | F117: 0 | I117: 0 | L117: 0
C118: 646 | D118: =+$D$35 -> Organisations privées à but non lucratif | F118: 0 | I118: 0 | L118: 0
C119: 647 | D119: =+$D$36 -> Ménages privés | F119: 0 | I119: 0 | L119: 0
C120: 648 | D120: =+$D$37 -> Etranger | F120: 0 | I120: 0 | L120: 0
C121: 65 | D121: Transferts de participations | F121: =SUM(F122:F130) -> 0 | I121: =SUM(I122:I130) -> 0 | L121: =SUM(L122:L130) -> 0
C122: 650 | D122: =+$D$29 -> Confédération | F122: 0 | I122: 0 | L122: 0
C123: 651 | D123: =+$D$30 -> Cantons et concordats | F123: 0 | I123: 0 | L123: 0
C124: 652 | D124: =+$D$31 -> Communes et associations intercommunales | F124: 0 | I124: 0 | L124: 0
C125: 653 | D125: =+$D$32 -> Assurances sociales publiques | F125: 0 | I125: 0 | L125: 0
C126: 654 | D126: =+$D$33 -> Entreprises publiques | F126: 0 | I126: 0 | L126: 0
C127: 655 | D127: =+$D$34 -> Entreprises privées | F127: 0 | I127: 0 | L127: 0
C128: 656 | D128: =+$D$35 -> Organisations privées à but non lucratif | F128: 0 | I128: 0 | L128: 0
C129: 657 | D129: =+$D$36 -> Ménages privés | F129: 0 | I129: 0 | L129: 0
C130: 658 | D130: =+$D$37 -> Etranger | F130: 0 | I130: 0 | L130: 0
C131: 66 | D131: Remboursements de propres subventions d'investissement | F131: =SUM(F132:F140) -> 0 | I131: =SUM(I132:I140) -> 0 | L131: =SUM(L132:L140) -> 0
C132: 660 | D132: =+$D$29 -> Confédération | F132: 0 | I132: 0 | L132: 0
C133: 661 | D133: =+$D$30 -> Cantons et concordats | F133: 0 | I133: 0 | L133: 0
C134: 662 | D134: =+$D$31 -> Communes et associations intercommunales | F134: 0 | I134: 0 | L134: 0
C135: 663 | D135: =+$D$32 -> Assurances sociales publiques | F135: 0 | I135: 0 | L135: 0
C136: 664 | D136: =+$D$33 -> Entreprises publiques | F136: 0 | I136: 0 | L136: 0
C137: 665 | D137: =+$D$34 -> Entreprises privées | F137: 0 | I137: 0 | L137: 0
C138: 666 | D138: =+$D$35 -> Organisations privées à but non lucratif | F138: 0 | I138: 0 | L138: 0
C139: 667 | D139: =+$D$36 -> Ménages privés | F139: 0 | I139: 0 | L139: 0
C140: 668 | D140: =+$D$37 -> Etranger | F140: 0 | I140: 0 | L140: 0
C141: 67 | D141: Subventions d'investissement à redistribuer | F141: =SUM(F142:F150) -> 0 | I141: =SUM(I142:I150) -> 0 | L141: =SUM(L142:L150) -> 0
C142: 670 | D142: =+$D$29 -> Confédération | F142: 0 | I142: 0 | L142: 0
C143: 671 | D143: =+$D$30 -> Cantons et concordats | F143: 0 | I143: 0 | L143: 0
C144: 672 | D144: =+$D$31 -> Communes et associations intercommunales | F144: 0 | I144: 0 | L144: 0
C145: 673 | D145: =+$D$32 -> Assurances sociales publiques | F145: 0 | I145: 0 | L145: 0
C146: 674 | D146: =+$D$33 -> Entreprises publiques | F146: 0 | I146: 0 | L146: 0
C147: 675 | D147: =+$D$34 -> Entreprises privées | F147: 0 | I147: 0 | L147: 0
C148: 676 | D148: =+$D$35 -> Organisations privées à but non lucratif | F148: 0 | I148: 0 | L148: 0
C149: 677 | D149: =+$D$36 -> Ménages privés | F149: 0 | I149: 0 | L149: 0
C150: 678 | D150: =+$D$37 -> Etranger | F150: 0 | I150: 0 | L150: 0
C151: 68 | D151: Recettes d'investissement extraordinaires [e.o.] | F151: =SUM(F152:F158) -> 0 | I151: =SUM(I152:I158) -> 0 | L151: =SUM(L152:L158) -> 0
C152: 680 | D152: Recettes d'investissement e.o. immobilisations corporelles | F152: 0 | I152: 0 | L152: 0
C153: 682 | D153: Recettes d'investissement e.o. immobilisations incorporelles | F153: 0 | I153: 0 | L153: 0
C154: 683 | D154: Subventions d'investissement extraordinaires acquises | F154: 0 | I154: 0 | L154: 0
C155: 684 | D155: Remboursements extraordinaires de prêts | F155: 0 | I155: 0 | L155: 0
C156: 685 | D156: Cessions extraordinaires de participations | F156: 0 | I156: 0 | L156: 0
C157: 686 | D157: Remboursements e.o. de propres subventions d'investissement | F157: 0 | I157: 0 | L157: 0
C158: 689 | D158: Autres recettes d'investissement extraordinaires | F158: 0 | I158: 0 | L158: 0

Sheet BiCHF
B1: Bilan, en CHF | I1: 1
C3: Bilan | E3: 01.01 | G3: Variation en cours d'année | J3: 31.12
C4: en CHF | E4: =+'C|RésCHF'!F3 -> Année t | G4: Augmentation | H4: Diminution | J4: =+'C|RésCHF'!F3 -> Année t
C5: 1 | D5: Actif | E5: =+E6+E15 -> 13275178.03 | G5: =+G6+G15 -> 41302882.7 | H5: =+H6+H15 -> 40901149.78 | J5: =+J6+J15 -> 13676910.95
C6: 10 | D6: Patrimoine financier [PF] | E6: =SUM(E7:E14) -> 5540151.33 | G6: =SUM(G7:G14) -> 39331427.8 | H6: =SUM(H7:H14) -> 40187258.53 | J6: =SUM(J7:J14) -> 4684320.6
C7: 100 | D7: Disponibilités et placements à court terme | E7: 1605376.58 | G7: 16094043.68 | H7: 16916367.33 | J7: 783052.93
C8: 101 | D8: Créances | E8: 1732564.45 | G8: 23063571.7 | H8: 23174594.9 | J8: 1621541.25
C9: 102 | D9: Placements financiers à court terme | E9: 0 | G9: 0 | H9: 0 | J9: 0
C10: 104 | D10: Actifs de régularisation | E10: 96296.3 | G10: 165112.42 | H10: 96296.3 | J10: 165112.42
C11: 106 | D11: Marchandises, fournitures et travaux en cours | E11: 0 | G11: 0 | H11: 0 | J11: 0
C12: 107 | D12: Placements financiers à long terme | E12: 91592 | G12: 8700 | J12: 100292
C13: 108 | D13: Immobilisations corporelles PF | E13: 2014322 | G13: 0 | H13: 0 | J13: 2014322
C14: 109 | D14: Créances envers les FSp et fonds sous CT | E14: 0 | G14: 0 | H14: 0 | J14: 0
C15: 14 | D15: Patrimoine administratif [PA] | E15: =SUM(E16:E21) -> 7735026.7 | G15: =SUM(G16:G21) -> 1971454.9 | H15: =SUM(H16:H21) -> 713891.25 | J15: =SUM(J16:J21) -> 8992590.35
C16: 140 | D16: Immobilisations corporelles PA | E16: 7418541.5 | G16: 1971454.9 | H16: 713891.25 | J16: 8676105.15
C17: 142 | D17: Immobilisations incorporelles PA | E17: 0 | G17: 0 | H17: 0 | J17: 0
C18: 144 | D18: Prêts PA | E18: 0 | G18: 0 | H18: 0 | J18: 0
C19: 145 | D19: Participations, capital social PA | E19: 316485.2 | G19: 0 | H19: 0 | J19: 316485.2
C20: 146 | D20: Subventions d'investissement | E20: 0 | G20: 0 | H20: 0 | J20: 0
C21: 148 | D21: Amortissements supplémentaires cumulés | E21: 0 | G21: 0 | H21: 0 | J21: 0
C23: 2 | D23: Passif | E23: =+E24+E32 -> 13275178.03 | G23: =+G24+G32 -> 19795296.94 | H23: =+H24+H32 -> 19393564.02 | J23: =+J24+J32 -> 13676910.95
C24: 20 | D24: Capitaux de tiers [CT] | E24: =SUM(E25:E31) -> 7618997.05 | G24: =SUM(G25:G31) -> 16834385.15 | H24: =SUM(H25:H31) -> 17466126.05 | J24: =SUM(J25:J31) -> 6987256.15
C25: 200 | D25: Engagements courants | E25: 1460758 | G25: 15631511.7 | H25: 15370873.45 | J25: 1721396.25
C26: 201 | D26: Engagements financiers à court terme | E26: 0 | G26: 500000 | H26: 500000 | J26: 0
C27: 204 | D27: Passifs de régularisation | E27: 33321.65 | G27: 21006.25 | H27: 33321.65 | J27: 21006.25
C28: 205 | D28: Provisions à court terme | E28: 276900 | G28: 81500 | H28: 35600 | J28: 322800
C29: 206 | D29: Engagements financiers à long terme | E29: 5500000 | G29: 600000 | H29: 1500000 | J29: 4600000
C30: 208 | D30: Provisions à long terme | E30: 0 | G30: 0 | H30: 0 | J30: 0
C31: 209 | D31: Engagements envers les FSp et fonds sous CT | E31: 348017.4 | G31: 367.2 | H31: 26330.95 | J31: 322053.65
C32: 29 | D32: Capital propre [CP] | E32: =SUM(E33:E41) -> 5656180.98 | G32: =SUM(G33:G41) -> 2960911.79 | H32: =SUM(H33:H41) -> 1927437.97 | J32: =SUM(J33:J41) -> 6689654.8
C33: 290 | D33: Financements spéciaux [FSp] sous CP | E33: 1670392.41 | G33: 129795.19 | H33: 76124.9 | J33: 1724062.7
C34: 291 | D34: Fonds sous CP | E34: 0 | G34: 0 | H34: 0 | J34: 0
C35: 292 | D35: Réserves des enveloppes budgétaires | E35: 0 | G35: 0 | H35: 0 | J35: 0
C36: 293 | D36: Préfinancements | E36: 1126283.95 | G36: 691214.53 | H36: 21411 | J36: 1796087.48
C37: 294 | D37: Réserve de politique budgétaire | E37: 119981.5 | G37: 300000 | H37: 0 | J37: 419981.5
C38: 295 | D38: Réserve liée au retraitement du PA (introduction MCH2) | E38: 0 | G38: 0 | H38: 0 | J38: 0
C39: 296 | D39: Réserves liées au retraitement du PF | E39: 716207.4 | G39: 0 | H39: 0 | J39: 716207.4
C40: 298 | D40: Autres capitaux propres | E40: 0 | G40: 0 | H40: 0 | J40: 0
C41: 299 | D41: Excédent ou découvert du bilan | E41: 2023315.72 | G41: 1839902.07 | H41: 1829902.07 | J41: 2033315.72

Sheet DatAdCHF
C1: Données additionnelles pour le tableau de bord, en CHF
E3: ='C|RésCHF'!E3&" "&'C|RésCHF'!F3 -> Comptes | Année t | F3: ='C|RésCHF'!K3&" "&'C|RésCHF'!L3 -> Comptes | Année t-1 | G3: Comptes | Année t-2
C4: Nombre d'habitants | E4: 3113 | F4: 3097 | G4: pas de saisie
C5: Compte de résultats
C6: Charges
C7: 3180 | D7: Réévaluations sur créances | E7: 7700 | F7: 12000 | G7: =+$G$4 -> pas de saisie
C8: 3401 | D8: Intérêts passifs des engagements financiers | E8: 60466.08 | F8: =+$G$4 -> pas de saisie | G8: =+$G$4 -> pas de saisie
C9: 3840 | D9: Charges financières extraordinaires (incid. s/trésorerie) | E9: 0 | F9: =+$G$4 -> pas de saisie | G9: =+$G$4 -> pas de saisie
C10: Revenus
C11: 4021 | D11: Impôts fonciers | E11: 535671.75 | F11: =+$G$4 -> pas de saisie | G11: =+$G$4 -> pas de saisie
C12: 4022 | D12: Impôts sur les gains en capital | E12: 307262.9 | F12: =+$G$4 -> pas de saisie | G12: pas de saisie
C13: 4023 | D13: Droits de mutation et de timbre | E13: 0 | F13: pas de saisie | G13: pas de saisie
C14: 4420 | D14: Dividendes | E14: 0 | F14: pas de saisie | G14: pas de saisie
C15: 4490 | D15: Réévaluations PA | E15: 0 | F15: pas de saisie | G15: pas de saisie
C16: 4895 | D16: Prélèvements sur réserve liée au retraitement du PA | E16: 0 | F16: pas de saisie | G16: pas de saisie
C17: Compte des investissements
C18: Dépenses
C19: 50 | D19: =+'C|InvCHF'!D6 -> Immobilisations corporelles | E19: =+$G$4 -> pas de saisie | F19: =+$G$4 -> pas de saisie | G19: 1873146.375
C20: 51 | D20: =+'C|InvCHF'!D15 -> Dépenses d'investissement pour le compte de tiers | E20: =+$G$4 -> pas de saisie | F20: =+$G$4 -> pas de saisie | G20: 0
C21: 52 | D21: =+'C|InvCHF'!D24 -> Immobilisations incorporelles | E21: pas de saisie | F21: pas de saisie | G21: 0
C22: 54 | D22: =+'C|InvCHF'!D28 -> Prêts | E22: pas de saisie | F22: pas de saisie | G22: 0
C23: 55 | D23: =+'C|InvCHF'!D38 -> Participations et capital social | E23: pas de saisie | F23: pas de saisie | G23: 0
C24: 56 | D24: =+'C|InvCHF'!D48 -> Propres subventions d'investissement | E24: pas de saisie | F24: pas de saisie | G24: 0
C25: 57 | D25: =+'C|InvCHF'!D58 -> Subventions d'investissement redistribuées | E25: pas de saisie | F25: pas de saisie | G25: 0
C26: 58 | D26: =+'C|InvCHF'!D68 -> Dépenses d'investissement extraordinaires [e.o.] | E26: pas de saisie | F26: pas de saisie | G26: 0
C27: Recettes
C28: 60 | D28: =+'C|InvCHF'!D79 -> Transferts d'immobilisations corporelles dans le PF | E28: =+$G$4 -> pas de saisie | F28: =+$G$4 -> pas de saisie | G28: 0
C29: 61 | D29: =+'C|InvCHF'!D88 -> Remboursements de dépenses d'invest. pour le compte de tiers | E29: =+$G$4 -> pas de saisie | F29: =+$G$4 -> pas de saisie | G29: 0
C30: 62 | D30: =+'C|InvCHF'!D97 -> Transferts d'immobilisations incorporelles dans le PF | E30: pas de saisie | F30: pas de saisie | G30: 0
C31: 63 | D31: =+'C|InvCHF'!D101 -> Subventions d'investissement acquises | E31: pas de saisie | F31: pas de saisie | G31: 26730.5
C32: 64 | D32: =+'C|InvCHF'!D111 -> Remboursements de prêts | E32: pas de saisie | F32: pas de saisie | G32: 0
C33: 65 | D33: =+'C|InvCHF'!D121 -> Transferts de participations | E33: pas de saisie | F33: pas de saisie | G33: 0
C34: 66 | D34: =+'C|InvCHF'!D131 -> Remboursements de propres subventions d'investissement | E34: pas de saisie | F34: pas de saisie | G34: 0
C35: 67 | D35: =+'C|InvCHF'!D141 -> Subventions d'investissement à redistribuer | E35: pas de saisie | F35: pas de saisie | G35: 0
C36: 68 | D36: =+'C|InvCHF'!D151 -> Recettes d'investissement extraordinaires [e.o.] | E36: pas de saisie | F36: pas de saisie | G36: 0
C37: Bilan
C38: Passif
C39: 2016 | D39: Instruments financiers dérivés à court terme | E39: 0 | F39: 0 | G39: =+$G$4 -> pas de saisie
C40: 2066 | D40: Instruments financiers dérivés à long terme | E40: 0 | F40: 0 | G40: =+$G$4 -> pas de saisie
C41: 2068 | D41: Subventions d'investissements inscrites au passif | E41: 0 | F41: 0 | G41: =+$G$4 -> pas de saisie

Sheet FctCHF
B1: Classification fonctionnelle, en CHF
C3: Compte de résultats | D3: ='C|RésCHF'!E3&" "&'C|RésCHF'!F3 -> Comptes | Année t | G3: ='C|RésCHF'!H3&" "&'C|RésCHF'!I3 -> Budget | Année t | J3: ='C|RésCHF'!K3&" "&'C|RésCHF'!L3 -> Comptes | Année t-1
C4: en CHF | D4: Charges | E4: Revenus | G4: =+D4 -> Charges | H4: =+E4 -> Revenus | J4: =+G4 -> Charges | K4: =+H4 -> Revenus
C5: Total | D5: =SUM(D6:D25) -> 14675862.75 | E5: =+E6+E8+E10+E12+E14+E16+E18+E20+E23+E25 -> 14685862.75 | G5: =SUM(G6:G25) -> 14714100 | H5: =+H6+H8+H10+H12+H14+H16+H18+H20+H23+H25 -> 14729100 | J5: =SUM(J6:J25) -> 16856006.09 | K5: =+K6+K8+K10+K12+K14+K16+K18+K20+K23+K25 -> 16137977.99
B6: 0 | C6: Administration générale | D6: 1169785.43 | E6: 175849.3 | G6: 1262600 | H6: 182600 | J6: 1165617.26 | K6: 179055.55
C7: Charges nettes | E7: =+D6-E6 -> 993936.13 | H7: =+G6-H6 -> 1080000 | K7: =+J6-K6 -> 986561.71
B8: 1 | C8: Ordre et sécurité publics, défense | D8: 350134.3 | E8: 288446.96 | G8: 323500 | H8: 242700 | J8: 289911.65 | K8: 245233.23
C9: =+$C$7 -> Charges nettes | E9: =+D8-E8 -> 61687.34 | H9: =+G8-H8 -> 80800 | K9: =+J8-K8 -> 44678.42
B10: 2 | C10: Formation | D10: 2661998.5 | E10: 164556.5 | G10: 2673800 | H10: 111600 | J10: 2370247.85 | K10: 128316.85
C11: =+$C$7 -> Charges nettes | E11: =+D10-E10 -> 2497442 | H11: =+G10-H10 -> 2562200 | K11: =+J10-K10 -> 2241931
B12: 3 | C12: Culture, sport et loisirs, église | D12: 326094.32 | E12: 222180.9 | G12: 336700 | H12: 233500 | J12: 367720.95 | K12: 256375.75
C13: =+$C$7 -> Charges nettes | E13: =+D12-E12 -> 103913.42 | H13: =+G12-H12 -> 103200 | K13: =+J12-K12 -> 111345.2
B14: 4 | C14: Santé | D14: 11344.55 | G14: 10800 | J14: 7821.6
C15: =+$C$7 -> Charges nettes | E15: =+D14-E14 -> 11344.55 | H15: =+G14-H14 -> 10800 | K15: =+J14-K14 -> 7821.6
B16: 5 | C16: Prévoyance sociale | D16: 2447291.45 | E16: 26322.45 | G16: 2443500 | H16: 16500 | J16: 2348436.94 | K16: 20713.6
C17: =+$C$7 -> Charges nettes | E17: =+D16-E16 -> 2420969 | H17: =+G16-H16 -> 2427000 | K17: =+J16-K16 -> 2327723.34
B18: 6 | C18: Trafic et télécommunications | D18: 1111452.6 | E18: 142212.9 | G18: 1107200 | H18: 132200 | J18: 1050417.6 | K18: 148391.35
C19: =+$C$7 -> Charges nettes | E19: =+D18-E18 -> 969239.7 | H19: =+G18-H18 -> 975000 | K19: =+J18-K18 -> 902026.25
B20: 7 | C20: Protection de l'environnement et aménagement du territoire | D20: 2292980.39 | E20: 2084413.44 | G20: 2389600 | H20: 2205500 | J20: 2652153.37 | K20: 3397733.52
C21: =+$C$7 -> Charges nettes | E21: =+D20-E20 -> 208566.95 | H21: =+G20-H20 -> 184100
C22: Revenus nets | J22: =+K20-J20 -> 745580.15
B23: 8 | C23: Economie publique | D23: 2552561.9 | E23: 2541945.55 | G23: 2789200 | H23: 2777100 | J23: 2632376.56 | K23: 2617265.71
C24: =+$C$7 -> Charges nettes | E24: =+D23-E23 -> 10616.35 | H24: =+G23-H23 -> 12100 | K24: 15110.85
B25: 9 | C25: Finances et impôts | D25: =1762219.31-10000 -> 1752219.31 | E25: 9039934.75 | G25: =1392200-15000 -> 1377200 | H25: 8827400 | J25: =3253274.21-27552.05 -> 3225722.16 | K25: 9144892.43
C26: Revenus nets | D26: =+E25-D25 -> 7287715.44 | G26: =+H25-G25 -> 7450200 | J26: =+K25-J25 -> 5919170.27
C28: Compte des investissements | D28: =+D3 -> Comptes | Année t | G28: =+G3 -> Budget | Année t | J28: =+J3 -> Comptes | Année t-1
D29: Dépenses | E29: Recettes | G29: =+E29 -> Recettes | H29: =+G29 -> Recettes | J29: =+H29 -> Recettes | K29: =+J29 -> Recettes
C30: Total | D30: =SUM(D31:D43) -> 1971454.9 | E30: =+E31+E33+E35+E37+E39+E41+E43 -> 43461 | G30: =SUM(G31:G43) -> 4803000 | H30: =+H31+H33+H35+H37+H39+H41+H43 -> 1000000 | J30: =+J31+J33+J35+J37+J39+J41+J43 -> 1774837.85 | K30: =+K31+K33+K35+K37+K39+K41+K43 -> 200000
B31: 0 | C31: =+C6 -> Administration générale | G31: 180000
C32: Dépenses nettes | E32: =+D31-E31 -> 0 | H32: =+G31-H31 -> 180000 | K32: =+J31-K31 -> 0
B33: 2 | C33: =+C10 -> Formation | D33: =814580.75-100000 -> 714580.75 | G33: 880000 | J33: 212656.65
C34: =+$C$32 -> Dépenses nettes | E34: =+D33-E33 -> 714580.75 | H34: =+G33-H33 -> 880000 | K34: =+J33-K33 -> 212656.65
B35: 3 | C35: =+C12 -> Culture, sport et loisirs, église | D35: =814233.15-300000 -> 514233.15 | E35: 40230 | G35: 1550000 | H35: 900000 | J35: 55814
C36: =+$C$32 -> Dépenses nettes | E36: =+D35-E35 -> 474003.15 | H36: =+G35-H35 -> 650000 | K36: =+J35-K35 -> 55814
B37: 6 | C37: =+C18 -> Trafic et télécommunications | D37: 183614.35 | G37: 358000 | J37: 385355.95
C38: =+$C$32 -> Dépenses nettes | E38: =+D37-E37 -> 183614.35 | H38: =+G37-H37 -> 358000 | K38: =+J37-K37 -> 385355.95
B39: 7 | C39: =+C20 -> Protection de l'environnement et aménagement du territoire | D39: 354480.3 | G39: 857000 | J39: 802618
C40: =+$C$32 -> Dépenses nettes | E40: =+D39-E39 -> 354480.3 | H40: =+G39-H39 -> 857000 | K40: =+J39-K39 -> 802618
B41: 8 | C41: =+C23 -> Economie publique | D41: 204546.35 | E41: 3231 | G41: 978000 | H41: 100000 | J41: 318393.25 | K41: 200000
C42: =+$C$32 -> Dépenses nettes | E42: =+D41-E41 -> 201315.35 | H42: =+G41-H41 -> 878000 | K42: =+J41-K41 -> 118393.25
B43: 9 | C43: =+C25 -> Finances et impôts
C44: Recettes nettes | E44: =+D43-E43 -> 0 | H44: =+G43-H43 -> 0 | K44: =+J43-K43 -> 0

Sheet C|RésKCHF
B1: Compte de résultats, en KCHF
C3: Compte de résultats | Charges | E3: =+'C|RésCHF'!F3 -> Année t | H3: =+'C|RésCHF'!L3 -> Année t-1
C4: en KCHF | E4: Comptes | F4: Budget | H4: Comptes
C5: 3 | D5: =+'C|RésCHF'!D5 -> Charges | E5: =+E6+E15++E26+E27+E30+E37+E40++E54+E56+E64 -> 14546 | F5: =+F6+F15++F26+F27+F30+F37+F40++F54+F56+F64 -> 14643 | H5: =+H6+H15++H26+H27+H30+H37+H40++H54+H56+H64 -> 13741
C6: 30 | D6: =+'C|RésCHF'!D6 -> Charges de personnel | E6: =SUM(E7:E14) -> 2020 | F6: =SUM(F7:F14) -> 2064 | H6: =SUM(H7:H14) -> 1986
C7: 300 | D7: =+'C|RésCHF'!D7 -> Autorités, commissions et juges | E7: =ROUND('C|RésCHF'!E7/1000,0) -> 175 | F7: =ROUND('C|RésCHF'!H7/1000,0) -> 183 | H7: =ROUND('C|RésCHF'!K7/1000,0) -> 178
C8: 301 | D8: =+'C|RésCHF'!D8 -> Salaires du personnel administratif et d'exploitation | E8: =ROUND('C|RésCHF'!E8/1000,0) -> 1525 | F8: =ROUND('C|RésCHF'!H8/1000,0) -> 1542 | H8: =ROUND('C|RésCHF'!K8/1000,0) -> 1497
C9: 302 | D9: =+'C|RésCHF'!D9 -> Salaires des enseignants | E9: =ROUND('C|RésCHF'!E9/1000,0) -> 0 | F9: =ROUND('C|RésCHF'!H9/1000,0) -> 0 | H9: =ROUND('C|RésCHF'!K9/1000,0) -> 0
C10: 303 | D10: =+'C|RésCHF'!D10 -> Travailleurs temporaires | E10: =ROUND('C|RésCHF'!E10/1000,0) -> 0 | F10: =ROUND('C|RésCHF'!H10/1000,0) -> 0 | H10: =ROUND('C|RésCHF'!K10/1000,0) -> 0
C11: 304 | D11: =+'C|RésCHF'!D11 -> Allocations | E11: =ROUND('C|RésCHF'!E11/1000,0) -> 0 | F11: =ROUND('C|RésCHF'!H11/1000,0) -> 0 | H11: =ROUND('C|RésCHF'!K11/1000,0) -> 0
C12: 305 | D12: =+'C|RésCHF'!D12 -> Cotisations patronales | E12: =ROUND('C|RésCHF'!E12/1000,0) -> 295 | F12: =ROUND('C|RésCHF'!H12/1000,0) -> 307 | H12: =ROUND('C|RésCHF'!K12/1000,0) -> 283
C13: 306 | D13: =+'C|RésCHF'!D13 -> Prestations de l'employeur | E13: =ROUND('C|RésCHF'!E13/1000,0) -> 0 | F13: =ROUND('C|RésCHF'!H13/1000,0) -> 0 | H13: =ROUND('C|RésCHF'!K13/1000,0) -> 0
C14: 309 | D14: =+'C|RésCHF'!D14 -> Autres charges de personnel | E14: =ROUND('C|RésCHF'!E14/1000,0) -> 25 | F14: =ROUND('C|RésCHF'!H14/1000,0) -> 32 | H14: =ROUND('C|RésCHF'!K14/1000,0) -> 28
C15: 31 | D15: =+'C|RésCHF'!D15 -> Charges de biens et services et autres charges d'exploitation | E15: =SUM(E16:E25) -> 4076 | F15: =SUM(F16:F25) -> 4595 | H15: =SUM(H16:H25) -> 4086
C16: 310 | D16: =+'C|RésCHF'!D16 -> Charges de matières et de marchandises | E16: =ROUND('C|RésCHF'!E16/1000,0) -> 1725 | F16: =ROUND('C|RésCHF'!H16/1000,0) -> 1800 | H16: =ROUND('C|RésCHF'!K16/1000,0) -> 1755
C17: 311 | D17: =+'C|RésCHF'!D17 -> Immobilisations ne pouvant être portées à l'actif | E17: =ROUND('C|RésCHF'!E17/1000,0) -> 130 | F17: =ROUND('C|RésCHF'!H17/1000,0) -> 168 | H17: =ROUND('C|RésCHF'!K17/1000,0) -> 105
C18: 312 | D18: =+'C|RésCHF'!D18 -> Alimentation et élimination des biens-fonds du PA | E18: =ROUND('C|RésCHF'!E18/1000,0) -> 191 | F18: =ROUND('C|RésCHF'!H18/1000,0) -> 242 | H18: =ROUND('C|RésCHF'!K18/1000,0) -> 232
C19: 313 | D19: =+'C|RésCHF'!D19 -> Prestations de service et honoraires | E19: =ROUND('C|RésCHF'!E19/1000,0) -> 976 | F19: =ROUND('C|RésCHF'!H19/1000,0) -> 1196 | H19: =ROUND('C|RésCHF'!K19/1000,0) -> 913
C20: 314 | D20: =+'C|RésCHF'!D20 -> Gros entretien et entretien courant | E20: =ROUND('C|RésCHF'!E20/1000,0) -> 699 | F20: =ROUND('C|RésCHF'!H20/1000,0) -> 833 | H20: =ROUND('C|RésCHF'!K20/1000,0) -> 716
C21: 315 | D21: =+'C|RésCHF'!D21 -> Entretien des biens meubles et immobilisations incorporelles | E21: =ROUND('C|RésCHF'!E21/1000,0) -> 123 | F21: =ROUND('C|RésCHF'!H21/1000,0) -> 169 | H21: =ROUND('C|RésCHF'!K21/1000,0) -> 154
C22: 316 | D22: =+'C|RésCHF'!D22 -> Loyers, leasing, baux à ferme, frais d'utilisation | E22: =ROUND('C|RésCHF'!E22/1000,0) -> 57 | F22: =ROUND('C|RésCHF'!H22/1000,0) -> 48 | H22: =ROUND('C|RésCHF'!K22/1000,0) -> 50
C23: 317 | D23: =+'C|RésCHF'!D23 -> Dédommagements | E23: =ROUND('C|RésCHF'!E23/1000,0) -> 58 | F23: =ROUND('C|RésCHF'!H23/1000,0) -> 56 | H23: =ROUND('C|RésCHF'!K23/1000,0) -> 57
C24: 318 | D24: =+'C|RésCHF'!D24 -> Réévaluations sur créances | E24: =ROUND('C|RésCHF'!E24/1000,0) -> 96 | F24: =ROUND('C|RésCHF'!H24/1000,0) -> 57 | H24: =ROUND('C|RésCHF'!K24/1000,0) -> 79
C25: 319 | D25: =+'C|RésCHF'!D25 -> Autres charges d'exploitation | E25: =ROUND('C|RésCHF'!E25/1000,0) -> 21 | F25: =ROUND('C|RésCHF'!H25/1000,0) -> 26 | H25: =ROUND('C|RésCHF'!K25/1000,0) -> 25
C26: 32 | D26: =+'C|RésCHF'!D26 -> Charges d'armement (compte réservé à la Confédération) | E26: 0 | F26: 0 | H26: 0
C27: 33 | D27: =+'C|RésCHF'!D27 -> Amortissements du patrimoine administratif | E27: =SUM(E28:E29) -> 671 | F27: =SUM(F28) -> 709 | H27: =SUM(H28) -> 677
C28: 330 | D28: =+'C|RésCHF'!D28 -> Amortissements des immobilisations corporelles du PA | E28: =ROUNDUP('C|RésCHF'!E28/1000,0) -> 671 | F28: =ROUNDUP('C|RésCHF'!H28/1000,0) -> 709 | H28: =ROUNDUP('C|RésCHF'!K28/1000,0) -> 677
C29: 332 | D29: =+'C|RésCHF'!D29 -> Amortissements des immobilisations incorporelles du PA | E29: =ROUND('C|RésCHF'!E29/1000,0) -> 0 | F29: =ROUND('C|RésCHF'!H29/1000,0) -> 0 | H29: =ROUND('C|RésCHF'!K29/1000,0) -> 0
C30: 34 | D30: =+'C|RésCHF'!D30 -> Charges financières | E30: =SUM(E31:E36) -> 125 | F30: =SUM(F31:F36) -> 219 | H30: =SUM(H31:H36) -> 135
C31: 340 | D31: =+'C|RésCHF'!D31 -> Charges d'intérêts | E31: =ROUND('C|RésCHF'!E31/1000,0) -> 74 | F31: =ROUND('C|RésCHF'!H31/1000,0) -> 81 | H31: =ROUND('C|RésCHF'!K31/1000,0) -> 92
C32: 341 | D32: =+'C|RésCHF'!D32 -> Pertes réalisées sur le patrimoine financier | E32: =ROUND('C|RésCHF'!E32/1000,0) -> 0 | F32: =ROUND('C|RésCHF'!H32/1000,0) -> 0 | H32: =ROUND('C|RésCHF'!K32/1000,0) -> 0
C33: 342 | D33: =+'C|RésCHF'!D33 -> Frais d'approvisionnement en capitaux et frais administratifs | E33: =ROUND('C|RésCHF'!E33/1000,0) -> 10 | F33: =ROUND('C|RésCHF'!H33/1000,0) -> 65 | H33: =ROUND('C|RésCHF'!K33/1000,0) -> 9
C34: 343 | D34: =+'C|RésCHF'!D34 -> Charges pour biens-fonds du patrimoine financier | E34: =ROUND('C|RésCHF'!E34/1000,0) -> 41 | F34: =ROUND('C|RésCHF'!H34/1000,0) -> 73 | H34: =ROUND('C|RésCHF'!K34/1000,0) -> 34
C35: 344 | D35: =+'C|RésCHF'!D35 -> Réévaluations des immobilisations du patrimoine financier | E35: =ROUND('C|RésCHF'!E35/1000,0) -> 0 | F35: =ROUND('C|RésCHF'!H35/1000,0) -> 0 | H35: =ROUND('C|RésCHF'!K35/1000,0) -> 0
C36: 349 | D36: =+'C|RésCHF'!D36 -> Autres charges financières | E36: =ROUND('C|RésCHF'!E36/1000,0) -> 0 | F36: =ROUND('C|RésCHF'!H36/1000,0) -> 0 | H36: =ROUND('C|RésCHF'!K36/1000,0) -> 0
C37: 35 | D37: =+'C|RésCHF'!D37 -> Attributions aux financements spéciaux [FSp] et fonds | E37: =SUM(E38:E39) -> 0 | F37: =SUM(F38:F39) -> 0 | H37: =SUM(H38:H39) -> 0
C38: 350 | D38: =+'C|RésCHF'!D38 -> Attributions aux FSp et fonds sous capitaux de tiers | E38: =ROUND('C|RésCHF'!E38/1000,0) -> 0 | F38: =ROUND('C|RésCHF'!H38/1000,0) -> 0 | H38: =ROUND('C|RésCHF'!K38/1000,0) -> 0
C39: 351 | D39: =+'C|RésCHF'!D39 -> Attributions aux FSp et fonds sous capital propre | E39: =ROUND('C|RésCHF'!E39/1000,0) -> 0 | F39: =ROUND('C|RésCHF'!H39/1000,0) -> 0 | H39: =ROUND('C|RésCHF'!K39/1000,0) -> 0
C40: 36 | D40: =+'C|RésCHF'!D40 -> Charges de transferts | E40: =SUM(E42:E48) -> 6393 | F40: =SUM(F42:F48) -> 6186 | H40: =SUM(H42:H48) -> 5924
C41: 360 | D41: =+'C|RésCHF'!D41 -> Parts de revenus destinées à des tiers | E41: =ROUND('C|RésCHF'!E41/1000,0) -> 0 | F41: =ROUND('C|RésCHF'!H41/1000,0) -> 0 | H41: =ROUND('C|RésCHF'!K41/1000,0) -> 0
C42: 361 | D42: =+'C|RésCHF'!D42 -> Dédommagements à des collectivités publiques | E42: =ROUND('C|RésCHF'!E42/1000,0) -> 3905 | F42: =ROUND('C|RésCHF'!H42/1000,0) -> 3793 | H42: =ROUND('C|RésCHF'!K42/1000,0) -> 3541
C43: 362 | D43: =+'C|RésCHF'!D43 -> Péréquation financière et compensation des charges | E43: =ROUND('C|RésCHF'!E43/1000,0) -> 564 | F43: =ROUND('C|RésCHF'!H43/1000,0) -> 552 | H43: =ROUND('C|RésCHF'!K43/1000,0) -> 551
C44: 363 | D44: =+'C|RésCHF'!D44 -> Subventions à des collectivités publiques et à des tiers | E44: =ROUND('C|RésCHF'!E44/1000,0) -> 1924 | F44: =ROUND('C|RésCHF'!H44/1000,0) -> 1841 | H44: =ROUND('C|RésCHF'!K44/1000,0) -> 1832
C45: 364 | D45: =+'C|RésCHF'!D45 -> Réévaluations de prêts du PA | E45: =ROUND('C|RésCHF'!E45/1000,0) -> 0 | F45: =ROUND('C|RésCHF'!H45/1000,0) -> 0 | H45: =ROUND('C|RésCHF'!K45/1000,0) -> 0
C46: 365 | D46: =+'C|RésCHF'!D46 -> Réévaluations de participations du PA | E46: =ROUND('C|RésCHF'!E46/1000,0) -> 0 | F46: =ROUND('C|RésCHF'!H46/1000,0) -> 0 | H46: =ROUND('C|RésCHF'!K46/1000,0) -> 0
C47: 366 | D47: =+'C|RésCHF'!D47 -> Amortissements des subventions d'investissement | E47: =ROUND('C|RésCHF'!E47/1000,0) -> 0 | F47: =ROUND('C|RésCHF'!H47/1000,0) -> 0 | H47: =ROUND('C|RésCHF'!K47/1000,0) -> 0
C48: 369 | D48: =+'C|RésCHF'!D48 -> Autres charges de transferts | E48: =ROUND('C|RésCHF'!E48/1000,0) -> 0 | F48: =ROUND('C|RésCHF'!H48/1000,0) -> 0 | H48: =ROUND('C|RésCHF'!K48/1000,0) -> 0
C49: […]
C51: Compte de résultats | Charges [suite] | E51: =+E3 -> Année t | H51: =+H3 -> Année t-1
C52: en KCHF | E52: =+E4 -> Comptes | F52: =+F4 -> Budget | H52: =+H4 -> Comptes
C53: […]
C54: 37 | D54: =+'C|RésCHF'!D49 -> Subventions redistribuées | E54: =SUM(E55) -> 0 | F54: =SUM(F55) -> 0 | H54: =SUM(H55) -> 0
C55: 370 | D55: =+'C|RésCHF'!D50 -> Subventions redistribuées | E55: =ROUND('C|RésCHF'!E50/1000,0) -> 0 | F55: =ROUND('C|RésCHF'!H50/1000,0) -> 0 | H55: =ROUND('C|RésCHF'!K50/1000,0) -> 0
C56: 38 | D56: =+'C|RésCHF'!D51 -> Charges extraordinaires [e.o.] | E56: =SUM(E57:E63) -> 991 | F56: =SUM(F57:F63) -> 613 | H56: =SUM(H57:H63) -> 645
C57: 380 | D57: =+'C|RésCHF'!D52 -> Charges extraordinaires de personnel | E57: =ROUND('C|RésCHF'!E52/1000,0) -> 0 | F57: =ROUND('C|RésCHF'!H52/1000,0) -> 0 | H57: =ROUND('C|RésCHF'!K52/1000,0) -> 0
C58: 381 | D58: =+'C|RésCHF'!D53 -> Charges e.o. de biens, services et charges d'exploitation | E58: =ROUND('C|RésCHF'!E53/1000,0) -> 0 | F58: =ROUND('C|RésCHF'!H53/1000,0) -> 0 | H58: =ROUND('C|RésCHF'!K53/1000,0) -> 0
C59: 383 | D59: =+'C|RésCHF'!D54 -> Amortissements supplémentaires [AS] | E59: =ROUND('C|RésCHF'!E54/1000,0) -> 0 | F59: =ROUND('C|RésCHF'!H54/1000,0) -> 0 | H59: =ROUND('C|RésCHF'!K54/1000,0) -> 0
C60: 384 | D60: =+'C|RésCHF'!D55 -> Charges financières extraordinaires | E60: =ROUND('C|RésCHF'!E55/1000,0) -> 0 | F60: =ROUND('C|RésCHF'!H55/1000,0) -> 0 | H60: =ROUND('C|RésCHF'!K55/1000,0) -> 0
C61: 386 | D61: =+'C|RésCHF'!D56 -> Charges extraordinaires de transferts | E61: =ROUND('C|RésCHF'!E56/1000,0) -> 0 | F61: =ROUND('C|RésCHF'!H56/1000,0) -> 0 | H61: =ROUND('C|RésCHF'!K56/1000,0) -> 0
C62: 387 | D62: =+'C|RésCHF'!D57 -> AS de prêts, participations, subventions d'investissement | E62: =ROUND('C|RésCHF'!E57/1000,0) -> 0 | F62: =ROUND('C|RésCHF'!H57/1000,0) -> 0 | H62: =ROUND('C|RésCHF'!K57/1000,0) -> 0
C63: 389 | D63: =+'C|RésCHF'!D58 -> Attributions au capital propre | E63: =ROUND('C|RésCHF'!E58/1000,0) -> 991 | F63: =ROUND('C|RésCHF'!H58/1000,0) -> 613 | H63: =ROUND('C|RésCHF'!K58/1000,0) -> 645
C64: 39 | D64: =+'C|RésCHF'!D59 -> Imputations internes | E64: =SUM(E65:E72) -> 270 | F64: =SUM(F65:F72) -> 257 | H64: =SUM(H65:H72) -> 288
C65: 390 | D65: =+'C|RésCHF'!D60 -> Approvisionnement en matériel et marchandises | E65: =ROUND('C|RésCHF'!E60/1000,0) -> 0 | F65: =ROUND('C|RésCHF'!H60/1000,0) -> 0 | H65: =ROUND('C|RésCHF'!K60/1000,0) -> 0
C66: 391 | D66: =+'C|RésCHF'!D61 -> Prestations de service | E66: =ROUND('C|RésCHF'!E61/1000,0) -> 144 | F66: =ROUND('C|RésCHF'!H61/1000,0) -> 134 | H66: =ROUND('C|RésCHF'!K61/1000,0) -> 160
C67: 392 | D67: =+'C|RésCHF'!D62 -> Baux à ferme, loyers, frais d'utilisation | E67: =ROUND('C|RésCHF'!E62/1000,0) -> 0 | F67: =ROUND('C|RésCHF'!H62/1000,0) -> 0 | H67: =ROUND('C|RésCHF'!K62/1000,0) -> 0
C68: 393 | D68: =+'C|RésCHF'!D63 -> Frais administratifs et d'exploitation | E68: =ROUND('C|RésCHF'!E63/1000,0) -> 116 | F68: =ROUND('C|RésCHF'!H63/1000,0) -> 108 | H68: =ROUND('C|RésCHF'!K63/1000,0) -> 118
C69: 394 | D69: =+'C|RésCHF'!D64 -> Intérêts et charges financières théoriques | E69: =ROUND('C|RésCHF'!E64/1000,0) -> 10 | F69: =ROUND('C|RésCHF'!H64/1000,0) -> 15 | H69: =ROUND('C|RésCHF'!K64/1000,0) -> 10
C70: 395 | D70: =+'C|RésCHF'!D65 -> Amortissements planifiés et non planifiés | E70: =ROUND('C|RésCHF'!E65/1000,0) -> 0 | F70: =ROUND('C|RésCHF'!H65/1000,0) -> 0 | H70: =ROUND('C|RésCHF'!K65/1000,0) -> 0
C71: 398 | D71: =+'C|RésCHF'!D66 -> Virements comptables | E71: =ROUND('C|RésCHF'!E66/1000,0) -> 0 | F71: =ROUND('C|RésCHF'!H66/1000,0) -> 0 | H71: =ROUND('C|RésCHF'!K66/1000,0) -> 0
C72: 399 | D72: =+'C|RésCHF'!D67 -> Autres imputations internes | E72: =ROUND('C|RésCHF'!E67/1000,0) -> 0 | F72: =ROUND('C|RésCHF'!H67/1000,0) -> 0 | H72: =ROUND('C|RésCHF'!K67/1000,0) -> 0
C74: Compte de résultats | Revenus | E74: =+E51 -> Année t | H74: =+H3 -> Année t-1
C75: en KCHF | E75: =+E52 -> Comptes | F75: =+F52 -> Budget | H75: =+H52 -> Comptes
C76: 4 | D76: =+'C|RésCHF'!D71 -> Revenus | E76: =+E77+E82+E87+E97+E102+E113+E121+E128+E130+E138 -> 14610 | F76: =+F77+F82+F87+F97+F102+F113+F121+F128+F130+F138 -> 14127 | H76: =+H77+H82+H87+H97+H102+H113+H121+H128+H130+H138 -> 14236
C77: 40 | D77: =+'C|RésCHF'!D72 -> Revenus fiscaux | E77: =SUM(E78:E81) -> 7651 | F77: =SUM(F78:F81) -> 7107 | H77: =SUM(H78:H81) -> 7538
C78: 400 | D78: =+'C|RésCHF'!D73 -> Impôts directs, personnes physiques | E78: =ROUNDDOWN('C|RésCHF'!F73/1000,0) -> 6231 | F78: =ROUND('C|RésCHF'!I73/1000,0) -> 6160 | H78: =ROUND('C|RésCHF'!L73/1000,0) -> 6235
C79: 401 | D79: =+'C|RésCHF'!D74 -> Impôts directs, personnes morales | E79: =ROUND('C|RésCHF'!F74/1000,0) -> 501 | F79: =ROUND('C|RésCHF'!I74/1000,0) -> 212 | H79: =ROUND('C|RésCHF'!L74/1000,0) -> 476
C80: 402 | D80: =+'C|RésCHF'!D75 -> Autres impôts directs | E80: =ROUND('C|RésCHF'!F75/1000,0) -> 898 | F80: =ROUND('C|RésCHF'!I75/1000,0) -> 716 | H80: =ROUND('C|RésCHF'!L75/1000,0) -> 805
C81: 403 | D81: =+'C|RésCHF'!D76 -> Impôts sur la propriété et sur les charges | E81: =ROUND('C|RésCHF'!F76/1000,0) -> 21 | F81: =ROUND('C|RésCHF'!I76/1000,0) -> 19 | H81: =ROUND('C|RésCHF'!L76/1000,0) -> 22
C82: 41 | D82: =+'C|RésCHF'!D77 -> Patentes et concessions | E82: =SUM(E83:E86) -> 12 | F82: =SUM(F83:F86) -> 12 | H82: =SUM(H83:H86) -> 12
C83: 410 | D83: =+'C|RésCHF'!D78 -> Patentes | E83: =ROUND('C|RésCHF'!F78/1000,0) -> 0 | F83: =ROUND('C|RésCHF'!I78/1000,0) -> 0 | H83: =ROUND('C|RésCHF'!L78/1000,0) -> 0
C84: 411 | D84: =+'C|RésCHF'!D79 -> Banque nationale suisse | E84: =ROUND('C|RésCHF'!F79/1000,0) -> 0 | F84: =ROUND('C|RésCHF'!I79/1000,0) -> 0 | H84: =ROUND('C|RésCHF'!L79/1000,0) -> 0
C85: 412 | D85: =+'C|RésCHF'!D80 -> Concessions | E85: =ROUND('C|RésCHF'!F80/1000,0) -> 12 | F85: =ROUND('C|RésCHF'!I80/1000,0) -> 12 | H85: =ROUND('C|RésCHF'!L80/1000,0) -> 12
C86: 413 | D86: =+'C|RésCHF'!D81 -> Parts de revenus à des loteries, Sport-Toto, paris | E86: =ROUND('C|RésCHF'!F81/1000,0) -> 0 | F86: =ROUND('C|RésCHF'!I81/1000,0) -> 0 | H86: =ROUND('C|RésCHF'!L81/1000,0) -> 0
C87: 42 | D87: =+'C|RésCHF'!D82 -> Taxes et redevances | E87: =SUM(E88:E96) -> 5076 | F87: =SUM(F88:F96) -> 5097 | H87: =SUM(H88:H96) -> 4852
C88: 420 | D88: =+'C|RésCHF'!D83 -> Taxes de compensation | E88: =ROUND('C|RésCHF'!F83/1000,0) -> 192 | F88: =ROUND('C|RésCHF'!I83/1000,0) -> 175 | H88: =ROUND('C|RésCHF'!L83/1000,0) -> 195
C89: 421 | D89: =+'C|RésCHF'!D84 -> Emoluments pour actes administratifs | E89: =ROUND('C|RésCHF'!F84/1000,0) -> 73 | F89: =ROUND('C|RésCHF'!I84/1000,0) -> 61 | H89: =ROUND('C|RésCHF'!L84/1000,0) -> 57
C90: 422 | D90: =+'C|RésCHF'!D85 -> Taxes pour hôpitaux et établissements médicaux… | E90: =ROUND('C|RésCHF'!F85/1000,0) -> 0 | F90: =ROUND('C|RésCHF'!I85/1000,0) -> 0 | H90: =ROUND('C|RésCHF'!L85/1000,0) -> 0
C91: 423 | D91: =+'C|RésCHF'!D86 -> Frais d'écolage et taxes de cours | E91: =ROUND('C|RésCHF'!F86/1000,0) -> 0 | F91: =ROUND('C|RésCHF'!I86/1000,0) -> 0 | H91: =ROUND('C|RésCHF'!L86/1000,0) -> 0
C92: 424 | D92: =+'C|RésCHF'!D87 -> Taxes d'utilisation et prestations de service | E92: =ROUND('C|RésCHF'!F87/1000,0) -> 4651 | F92: =ROUND('C|RésCHF'!I87/1000,0) -> 4717 | H92: =ROUND('C|RésCHF'!L87/1000,0) -> 4406
C93: 425 | D93: =+'C|RésCHF'!D88 -> Recettes sur ventes | E93: =ROUND('C|RésCHF'!F88/1000,0) -> 92 | F93: =ROUND('C|RésCHF'!I88/1000,0) -> 88 | H93: =ROUND('C|RésCHF'!L88/1000,0) -> 96
C94: 426 | D94: =+'C|RésCHF'!D89 -> Remboursements | E94: =ROUND('C|RésCHF'!F89/1000,0) -> 68 | F94: =ROUND('C|RésCHF'!I89/1000,0) -> 56 | H94: =ROUND('C|RésCHF'!L89/1000,0) -> 98
C95: 427 | D95: =+'C|RésCHF'!D90 -> Amendes | E95: =ROUND('C|RésCHF'!F90/1000,0) -> 0 | F95: =ROUND('C|RésCHF'!I90/1000,0) -> 0 | H95: =ROUND('C|RésCHF'!L90/1000,0) -> 0
C96: 429 | D96: =+'C|RésCHF'!D91 -> Autres taxes | E96: =ROUND('C|RésCHF'!F91/1000,0) -> 0 | F96: =ROUND('C|RésCHF'!I91/1000,0) -> 0 | H96: =ROUND('C|RésCHF'!L91/1000,0) -> 0
C97: 43 | D97: =+'C|RésCHF'!D92 -> Revenus divers | E97: =SUM(E98:E101) -> 17 | F97: =SUM(F98:F101) -> 0 | H97: =SUM(H98:H101) -> 0
C98: 430 | D98: =+'C|RésCHF'!D93 -> Revenus d'exploitation divers | E98: =ROUND('C|RésCHF'!F93/1000,0) -> 0 | F98: =ROUND('C|RésCHF'!I93/1000,0) -> 0 | H98: =ROUND('C|RésCHF'!L93/1000,0) -> 0
C99: 431 | D99: =+'C|RésCHF'!D94 -> Activations de prestations propres | E99: =ROUND('C|RésCHF'!F94/1000,0) -> 17 | F99: =ROUND('C|RésCHF'!I94/1000,0) -> 0 | H99: =ROUND('C|RésCHF'!L94/1000,0) -> 0
C100: 432 | D100: =+'C|RésCHF'!D95 -> Variations de stocks | E100: =ROUND('C|RésCHF'!F95/1000,0) -> 0 | F100: =ROUND('C|RésCHF'!I95/1000,0) -> 0 | H100: =ROUND('C|RésCHF'!L95/1000,0) -> 0
C101: 439 | D101: =+'C|RésCHF'!D96 -> Autres revenus | E101: =ROUND('C|RésCHF'!F96/1000,0) -> 0 | F101: =ROUND('C|RésCHF'!I96/1000,0) -> 0 | H101: =ROUND('C|RésCHF'!L96/1000,0) -> 0
C102: 44 | D102: =+'C|RésCHF'!D97 -> Revenus financiers | E102: =SUM(E103:E112) -> 167 | F102: =SUM(F103:F112) -> 155 | H102: =SUM(H103:H112) -> 160
C103: 440 | D103: =+'C|RésCHF'!D98 -> Revenus des intérêts | E103: =ROUNDDOWN('C|RésCHF'!F98/1000,0) -> 12 | F103: =ROUND('C|RésCHF'!I98/1000,0) -> 20 | H103: =ROUND('C|RésCHF'!L98/1000,0) -> 16
C104: 441 | D104: =+'C|RésCHF'!D99 -> Gains réalisés sur le patrimoine financier | E104: =ROUND('C|RésCHF'!F99/1000,0) -> 0 | F104: =ROUND('C|RésCHF'!I99/1000,0) -> 0 | H104: =ROUND('C|RésCHF'!L99/1000,0) -> 0
C105: 442 | D105: =+'C|RésCHF'!D100 -> Revenus de participations du patrimoine financier | E105: =ROUND('C|RésCHF'!F100/1000,0) -> 0 | F105: =ROUND('C|RésCHF'!I100/1000,0) -> 0 | H105: =ROUND('C|RésCHF'!L100/1000,0) -> 0
C106: 443 | D106: =+'C|RésCHF'!D101 -> Produits des immeubles du patrimoine financier | E106: =ROUNDDOWN('C|RésCHF'!F101/1000,0) -> 92 | F106: =ROUND('C|RésCHF'!I101/1000,0) -> 85 | H106: =ROUND('C|RésCHF'!L101/1000,0) -> 90
C107: 444 | D107: =+'C|RésCHF'!D102 -> Réévaluations des immobilisations du patrimoine financier | E107: =ROUND('C|RésCHF'!F102/1000,0) -> 9 | F107: =ROUND('C|RésCHF'!I102/1000,0) -> 0 | H107: =ROUND('C|RésCHF'!L102/1000,0) -> 3
C108: 445 | D108: =+'C|RésCHF'!D103 -> Revenus financiers de prêts et de participations du PA | E108: =ROUND('C|RésCHF'!F103/1000,0) -> 8 | F108: =ROUND('C|RésCHF'!I103/1000,0) -> 8 | H108: =ROUND('C|RésCHF'!L103/1000,0) -> 8
C109: 446 | D109: =+'C|RésCHF'!D104 -> Revenus financiers d'entreprises publiques | E109: =ROUND('C|RésCHF'!F104/1000,0) -> 0 | F109: =ROUND('C|RésCHF'!I104/1000,0) -> 0 | H109: =ROUND('C|RésCHF'!L104/1000,0) -> 0
C110: 447 | D110: =+'C|RésCHF'!D105 -> Produits des immeubles du patrimoine administratif | E110: =ROUND('C|RésCHF'!F105/1000,0) -> 46 | F110: =ROUND('C|RésCHF'!I105/1000,0) -> 42 | H110: =ROUND('C|RésCHF'!L105/1000,0) -> 43
C111: 448 | D111: =+'C|RésCHF'!D106 -> Revenus des immeubles loués | E111: =ROUND('C|RésCHF'!F106/1000,0) -> 0 | F111: =ROUND('C|RésCHF'!I106/1000,0) -> 0 | H111: =ROUND('C|RésCHF'!L106/1000,0) -> 0
C112: 449 | D112: =+'C|RésCHF'!D107 -> Autres revenus financiers | E112: =ROUND('C|RésCHF'!F107/1000,0) -> 0 | F112: =ROUND('C|RésCHF'!I107/1000,0) -> 0 | H112: =ROUND('C|RésCHF'!L107/1000,0) -> 0
C113: 45 | D113: =+'C|RésCHF'!D108 -> Prélèvements sur les financements spéciaux [FSp] et fonds | E113: =SUM(E114:E115) -> 23 | F113: =SUM(F114:F115) -> 0 | H113: =SUM(H114:H115) -> 3
C114: 450 | D114: =+'C|RésCHF'!D109 -> Prélèvements sur les FSp et fonds sous capitaux de tiers | E114: =ROUND('C|RésCHF'!F109/1000,0) -> 23 | F114: =ROUND('C|RésCHF'!I109/1000,0) -> 0 | H114: =ROUND('C|RésCHF'!L109/1000,0) -> 3
C115: 451 | D115: =+'C|RésCHF'!D110 -> Prélèvements sur les FSp et fonds sous capital propre | E115: =ROUND('C|RésCHF'!F110/1000,0) -> 0 | F115: =ROUND('C|RésCHF'!I110/1000,0) -> 0 | H115: =ROUND('C|RésCHF'!L110/1000,0) -> 0
C116: […]
C118: Compte de résultats | Revenus [suite] | E118: =+E74 -> Année t | H118: =+H74 -> Année t-1
C119: en KCHF | E119: =+E75 -> Comptes | F119: =+F75 -> Budget | H119: =+H75 -> Comptes
C120: […]
C121: 46 | D121: =+'C|RésCHF'!D111 -> Revenus de transferts | E121: =SUM(E122:E127) -> 1373 | F121: =SUM(F122:F127) -> 1373 | H121: =SUM(H122:H127) -> 1366
C122: 460 | D122: =+'C|RésCHF'!D112 -> Parts à des revenus de tiers | E122: =ROUND('C|RésCHF'!F112/1000,0) -> 0 | F122: =ROUND('C|RésCHF'!I112/1000,0) -> 0 | H122: =ROUND('C|RésCHF'!L112/1000,0) -> 0
C123: 461 | D123: =+'C|RésCHF'!D113 -> Dédommagements de collectivités publiques | E123: =ROUNDUP('C|RésCHF'!F113/1000,0) -> 645 | F123: =ROUNDUP('C|RésCHF'!I113/1000,0) -> 639 | H123: =ROUNDUP('C|RésCHF'!L113/1000,0) -> 623
C124: 462 | D124: =+'C|RésCHF'!D114 -> Péréquation financière et compensation des charges | E124: =ROUND('C|RésCHF'!F114/1000,0) -> 610 | F124: =ROUND('C|RésCHF'!I114/1000,0) -> 657 | H124: =ROUND('C|RésCHF'!L114/1000,0) -> 663
C125: 463 | D125: =+'C|RésCHF'!D115 -> Subventions de collectivités publiques et de tiers | E125: =ROUND('C|RésCHF'!F115/1000,0) -> 117 | F125: =ROUND('C|RésCHF'!I115/1000,0) -> 76 | H125: =ROUND('C|RésCHF'!L115/1000,0) -> 79
C126: 466 | D126: =+'C|RésCHF'!D116 -> Dissolutions des subventions d'investissement portées au passif | E126: =ROUND('C|RésCHF'!F116/1000,0) -> 0 | F126: =ROUND('C|RésCHF'!I116/1000,0) -> 0 | H126: =ROUND('C|RésCHF'!L116/1000,0) -> 0
C127: 469 | D127: =+'C|RésCHF'!D117 -> Autres revenus de transferts | E127: =ROUND('C|RésCHF'!F117/1000,0) -> 1 | F127: =ROUND('C|RésCHF'!I117/1000,0) -> 1 | H127: =ROUND('C|RésCHF'!L117/1000,0) -> 1
C128: 47 | D128: =+'C|RésCHF'!D118 -> Subventions à redistribuer | E128: =SUM(E129) -> 0 | F128: =SUM(F129) -> 0 | H128: =SUM(H129) -> 0
C129: 470 | D129: =+'C|RésCHF'!D119 -> Subventions à redistribuer | E129: =ROUND('C|RésCHF'!F119/1000,0) -> 0 | F129: =ROUND('C|RésCHF'!I119/1000,0) -> 0 | H129: =ROUND('C|RésCHF'!L119/1000,0) -> 0
C130: 48 | D130: =+'C|RésCHF'!D120 -> Revenus extraordinaires [e.o.] | E130: =SUM(E131:E137) -> 21 | F130: =SUM(F131:F137) -> 126 | H130: =SUM(H131:H137) -> 17
C131: 481 | D131: =+'C|RésCHF'!D121 -> Revenus extraordinaires de patentes, concessions | E131: =ROUND('C|RésCHF'!F121/1000,0) -> 0 | F131: =ROUND('C|RésCHF'!I121/1000,0) -> 0 | H131: =ROUND('C|RésCHF'!L121/1000,0) -> 0
C132: 482 | D132: =+'C|RésCHF'!D122 -> Contributions extraordinaires | E132: =ROUND('C|RésCHF'!F122/1000,0) -> 0 | F132: =ROUND('C|RésCHF'!I122/1000,0) -> 0 | H132: =ROUND('C|RésCHF'!L122/1000,0) -> 0
C133: 483 | D133: =+'C|RésCHF'!D123 -> Revenus extraordinaires divers | E133: =ROUND('C|RésCHF'!F123/1000,0) -> 0 | F133: =ROUND('C|RésCHF'!I123/1000,0) -> 0 | H133: =ROUND('C|RésCHF'!L123/1000,0) -> 0
C134: 484 | D134: =+'C|RésCHF'!D124 -> Revenus financiers extraordinaires | E134: =ROUND('C|RésCHF'!F124/1000,0) -> 0 | F134: =ROUND('C|RésCHF'!I124/1000,0) -> 0 | H134: =ROUND('C|RésCHF'!L124/1000,0) -> 0
C135: 486 | D135: =+'C|RésCHF'!D125 -> Revenus extraordinaires de transferts | E135: =ROUND('C|RésCHF'!F125/1000,0) -> 0 | F135: =ROUND('C|RésCHF'!I125/1000,0) -> 0 | H135: =ROUND('C|RésCHF'!L125/1000,0) -> 0
C136: 487 | D136: =+'C|RésCHF'!D126 -> Dissolutions supplémentaires des subventions d'invest. au passif | E136: =ROUND('C|RésCHF'!F126/1000,0) -> 0 | F136: =ROUND('C|RésCHF'!I126/1000,0) -> 0 | H136: =ROUND('C|RésCHF'!L126/1000,0) -> 0
C137: 489 | D137: =+'C|RésCHF'!D127 -> Prélèvements sur le capital propre | E137: =ROUNDDOWN('C|RésCHF'!F127/1000,0) -> 21 | F137: =ROUND('C|RésCHF'!I127/1000,0) -> 126 | H137: =ROUND('C|RésCHF'!L127/1000,0) -> 17
C138: 49 | D138: =+'C|RésCHF'!D128 -> Imputations internes | E138: =SUM(E139:E146) -> 270 | F138: =SUM(F139:F146) -> 257 | H138: =SUM(H139:H146) -> 288
C139: 490 | D139: =+'C|RésCHF'!D129 -> Approvisionnement en matériel et marchandises | E139: =ROUND('C|RésCHF'!F129/1000,0) -> 0 | F139: =ROUND('C|RésCHF'!I129/1000,0) -> 0 | H139: =ROUND('C|RésCHF'!L129/1000,0) -> 0
C140: 491 | D140: =+'C|RésCHF'!D130 -> Prestations de service | E140: =ROUND('C|RésCHF'!F130/1000,0) -> 144 | F140: =ROUND('C|RésCHF'!I130/1000,0) -> 134 | H140: =ROUND('C|RésCHF'!L130/1000,0) -> 160
C141: 492 | D141: =+'C|RésCHF'!D131 -> Baux à ferme, loyers, frais d'utilisation | E141: =ROUND('C|RésCHF'!F131/1000,0) -> 0 | F141: =ROUND('C|RésCHF'!I131/1000,0) -> 0 | H141: =ROUND('C|RésCHF'!L131/1000,0) -> 0
C142: 493 | D142: =+'C|RésCHF'!D132 -> Frais administratifs et d'exploitation | E142: =ROUND('C|RésCHF'!F132/1000,0) -> 116 | F142: =ROUND('C|RésCHF'!I132/1000,0) -> 108 | H142: =ROUND('C|RésCHF'!L132/1000,0) -> 118
C143: 494 | D143: =+'C|RésCHF'!D133 -> Intérêts et charges financières théoriques | E143: =ROUND('C|RésCHF'!F133/1000,0) -> 10 | F143: =ROUND('C|RésCHF'!I133/1000,0) -> 15 | H143: =ROUND('C|RésCHF'!L133/1000,0) -> 10
C144: 495 | D144: =+'C|RésCHF'!D134 -> Amortissements planifiés et non planifiés | E144: =ROUND('C|RésCHF'!F134/1000,0) -> 0 | F144: =ROUND('C|RésCHF'!I134/1000,0) -> 0 | H144: =ROUND('C|RésCHF'!L134/1000,0) -> 0
C145: 498 | D145: =+'C|RésCHF'!D135 -> Virements comptables | E145: =ROUND('C|RésCHF'!F135/1000,0) -> 0 | F145: =ROUND('C|RésCHF'!I135/1000,0) -> 0 | H145: =ROUND('C|RésCHF'!L135/1000,0) -> 0
C146: 499 | D146: =+'C|RésCHF'!D136 -> Autres imputations internes | E146: =ROUND('C|RésCHF'!F136/1000,0) -> 0 | F146: =ROUND('C|RésCHF'!I136/1000,0) -> 0 | H146: =ROUND('C|RésCHF'!L136/1000,0) -> 0
C148: 4-3 | D148: Résultat du compte de résultats | E148: =+E76-E5 -> 64 | F148: =+F76-F5 -> -516 | H148: =+H76-H5 -> 495

Sheet C|InvKCHF
B1: Compte des investissements, en KCHF
C3: Compte des investissements | Dépenses | E3: =+'C|InvCHF'!F3 -> Année t | H3: =+'C|InvCHF'!L3 -> Année t-1
C4: en KCHF | E4: Comptes | F4: Budget | H4: Comptes
C5: 5 | D5: =+'C|InvCHF'!D5 -> Dépenses d'investissement | E5: =+E6+E15+E24+E28+E38+E53+E63+E73 -> 1971 | F5: =+F6+F15+F24+F28+F38+F53+F63+F73 -> 2403 | H5: =+H6+H15+H24+H28+H38+H53+H63+H73 -> 1775
C6: 50 | D6: =+'C|InvCHF'!D6 -> Immobilisations corporelles | E6: =SUM(E7:E14) -> 1971 | F6: =SUM(F7:F14) -> 2359 | H6: =SUM(H7:H14) -> 1775
C7: 500 | D7: =+'C|InvCHF'!D7 -> Terrains | E7: =ROUND('C|InvCHF'!E7/1000,0) -> 0 | F7: =ROUND('C|InvCHF'!H7/1000,0) -> 0 | H7: =ROUND('C|InvCHF'!K7/1000,0) -> 0
C8: 501 | D8: =+'C|InvCHF'!D8 -> Routes et voies de communication | E8: =ROUNDDOWN('C|InvCHF'!E8/1000,0) -> 183 | F8: =ROUNDDOWN('C|InvCHF'!H8/1000,0) -> 308 | H8: =ROUNDDOWN('C|InvCHF'!K8/1000,0) -> 309
C9: 502 | D9: =+'C|InvCHF'!D9 -> Aménagements des cours d'eau | E9: =ROUND('C|InvCHF'!E9/1000,0) -> 0 | F9: =ROUND('C|InvCHF'!H9/1000,0) -> 0 | H9: =ROUND('C|InvCHF'!K9/1000,0) -> 0
C10: 503 | D10: =+'C|InvCHF'!D10 -> Autres travaux de génie civil | E10: =ROUND('C|InvCHF'!E10/1000,0) -> 893 | F10: =ROUND('C|InvCHF'!H10/1000,0) -> 941 | H10: =ROUND('C|InvCHF'!K10/1000,0) -> 1116
C11: 504 | D11: =+'C|InvCHF'!D11 -> Bâtiments | E11: =ROUND('C|InvCHF'!E11/1000,0) -> 895 | F11: =ROUND('C|InvCHF'!H11/1000,0) -> 1060 | H11: =ROUND('C|InvCHF'!K11/1000,0) -> 274
C12: 505 | D12: =+'C|InvCHF'!D12 -> Forêts | E12: =ROUND('C|InvCHF'!E12/1000,0) -> 0 | F12: =ROUND('C|InvCHF'!H12/1000,0) -> 0 | H12: =ROUND('C|InvCHF'!K12/1000,0) -> 0
C13: 506 | D13: =+'C|InvCHF'!D13 -> Biens meubles | E13: =ROUND('C|InvCHF'!E13/1000,0) -> 0 | F13: =ROUND('C|InvCHF'!H13/1000,0) -> 50 | H13: =ROUND('C|InvCHF'!K13/1000,0) -> 76
C14: 509 | D14: =+'C|InvCHF'!D14 -> Autres immobilisations corporelles | E14: =ROUND('C|InvCHF'!E14/1000,0) -> 0 | F14: =ROUND('C|InvCHF'!H14/1000,0) -> 0 | H14: =ROUND('C|InvCHF'!K14/1000,0) -> 0
C15: 51 | D15: =+'C|InvCHF'!D15 -> Dépenses d'investissement pour le compte de tiers | E15: =SUM(E16:E23) -> 0 | F15: =SUM(F16:F23) -> 0 | H15: =SUM(H16:H23) -> 0
C16: 510 | D16: =+'C|InvCHF'!D16 -> Terrains | E16: =ROUND('C|InvCHF'!E16/1000,0) -> 0 | F16: =ROUND('C|InvCHF'!H16/1000,0) -> 0 | H16: =ROUND('C|InvCHF'!K16/1000,0) -> 0
C17: 511 | D17: =+'C|InvCHF'!D17 -> Routes et voies de communication | E17: =ROUND('C|InvCHF'!E17/1000,0) -> 0 | F17: =ROUND('C|InvCHF'!H17/1000,0) -> 0 | H17: =ROUND('C|InvCHF'!K17/1000,0) -> 0
C18: 512 | D18: =+'C|InvCHF'!D18 -> Aménagements des cours d'eau | E18: =ROUND('C|InvCHF'!E18/1000,0) -> 0 | F18: =ROUND('C|InvCHF'!H18/1000,0) -> 0 | H18: =ROUND('C|InvCHF'!K18/1000,0) -> 0
C19: 513 | D19: =+'C|InvCHF'!D19 -> Autres travaux de génie civil | E19: =ROUND('C|InvCHF'!E19/1000,0) -> 0 | F19: =ROUND('C|InvCHF'!H19/1000,0) -> 0 | H19: =ROUND('C|InvCHF'!K19/1000,0) -> 0
C20: 514 | D20: =+'C|InvCHF'!D20 -> Bâtiments | E20: =ROUND('C|InvCHF'!E20/1000,0) -> 0 | F20: =ROUND('C|InvCHF'!H20/1000,0) -> 0 | H20: =ROUND('C|InvCHF'!K20/1000,0) -> 0
C21: 515 | D21: =+'C|InvCHF'!D21 -> Forêts | E21: =ROUND('C|InvCHF'!E21/1000,0) -> 0 | F21: =ROUND('C|InvCHF'!H21/1000,0) -> 0 | H21: =ROUND('C|InvCHF'!K21/1000,0) -> 0
C22: 516 | D22: =+'C|InvCHF'!D22 -> Biens meubles | E22: =ROUND('C|InvCHF'!E22/1000,0) -> 0 | F22: =ROUND('C|InvCHF'!H22/1000,0) -> 0 | H22: =ROUND('C|InvCHF'!K22/1000,0) -> 0
C23: 519 | D23: =+'C|InvCHF'!D23 -> Autres immobilisations corporelles | E23: =ROUND('C|InvCHF'!E23/1000,0) -> 0 | F23: =ROUND('C|InvCHF'!H23/1000,0) -> 0 | H23: =ROUND('C|InvCHF'!K23/1000,0) -> 0
C24: 52 | D24: =+'C|InvCHF'!D24 -> Immobilisations incorporelles | E24: =SUM(E25:E27) -> 0 | F24: =SUM(F25:F27) -> 0 | H24: =SUM(H25:H27) -> 0
C25: 520 | D25: =+'C|InvCHF'!D25 -> Logiciels | E25: =ROUND('C|InvCHF'!E25/1000,0) -> 0 | F25: =ROUND('C|InvCHF'!H25/1000,0) -> 0 | H25: =ROUND('C|InvCHF'!K25/1000,0) -> 0
C26: 521 | D26: =+'C|InvCHF'!D26 -> Licences, droits d'utilisation, droits des marques | E26: =ROUND('C|InvCHF'!E26/1000,0) -> 0 | F26: =ROUND('C|InvCHF'!H26/1000,0) -> 0 | H26: =ROUND('C|InvCHF'!K26/1000,0) -> 0
C27: 529 | D27: =+'C|InvCHF'!D27 -> Autres immobilisations incorporelles | E27: =ROUND('C|InvCHF'!E27/1000,0) -> 0 | F27: =ROUND('C|InvCHF'!H27/1000,0) -> 0 | H27: =ROUND('C|InvCHF'!K27/1000,0) -> 0
C28: 54 | D28: =+'C|InvCHF'!D28 -> Prêts | E28: =SUM(E29:E37) -> 0 | F28: =SUM(F29:F37) -> 0 | H28: =SUM(H29:H37) -> 0
C29: 540 | D29: =+'C|InvCHF'!D29 -> Confédération | E29: 0 | F29: =ROUND('C|InvCHF'!H29/1000,0) -> 0 | H29: =ROUND('C|InvCHF'!K29/1000,0) -> 0
C30: 541 | D30: =+'C|InvCHF'!D30 -> Cantons et concordats | E30: =ROUND('C|InvCHF'!E30/1000,0) -> 0 | F30: =ROUND('C|InvCHF'!H30/1000,0) -> 0 | H30: =ROUND('C|InvCHF'!K30/1000,0) -> 0
C31: 542 | D31: =+'C|InvCHF'!D31 -> Communes et associations intercommunales | E31: =ROUND('C|InvCHF'!E31/1000,0) -> 0 | F31: =ROUND('C|InvCHF'!H31/1000,0) -> 0 | H31: =ROUND('C|InvCHF'!K31/1000,0) -> 0
C32: 543 | D32: =+'C|InvCHF'!D32 -> Assurances sociales publiques | E32: =ROUND('C|InvCHF'!E32/1000,0) -> 0 | F32: =ROUND('C|InvCHF'!H32/1000,0) -> 0 | H32: =ROUND('C|InvCHF'!K32/1000,0) -> 0
C33: 544 | D33: =+'C|InvCHF'!D33 -> Entreprises publiques | E33: =ROUND('C|InvCHF'!E33/1000,0) -> 0 | F33: =ROUND('C|InvCHF'!H33/1000,0) -> 0 | H33: =ROUND('C|InvCHF'!K33/1000,0) -> 0
C34: 545 | D34: =+'C|InvCHF'!D34 -> Entreprises privées | E34: =ROUND('C|InvCHF'!E34/1000,0) -> 0 | F34: =ROUND('C|InvCHF'!H34/1000,0) -> 0 | H34: =ROUND('C|InvCHF'!K34/1000,0) -> 0
C35: 546 | D35: =+'C|InvCHF'!D35 -> Organisations privées à but non lucratif | E35: =ROUND('C|InvCHF'!E35/1000,0) -> 0 | F35: =ROUND('C|InvCHF'!H35/1000,0) -> 0 | H35: =ROUND('C|InvCHF'!K35/1000,0) -> 0
C36: 547 | D36: =+'C|InvCHF'!D36 -> Ménages privés | E36: =ROUND('C|InvCHF'!E36/1000,0) -> 0 | F36: =ROUND('C|InvCHF'!H36/1000,0) -> 0 | H36: =ROUND('C|InvCHF'!K36/1000,0) -> 0
C37: 548 | D37: =+'C|InvCHF'!D37 -> Etranger | E37: =ROUND('C|InvCHF'!E37/1000,0) -> 0 | F37: =ROUND('C|InvCHF'!H37/1000,0) -> 0 | H37: =ROUND('C|InvCHF'!K37/1000,0) -> 0
C38: 55 | D38: =+'C|InvCHF'!D38 -> Participations et capital social | E38: =SUM(E39:E47) -> 0 | F38: =SUM(F39:F47) -> 0 | H38: =SUM(H39:H47) -> 0
C39: 550 | D39: =+'C|InvCHF'!D39 -> Confédération | E39: =ROUND('C|InvCHF'!E39/1000,0) -> 0 | F39: =ROUND('C|InvCHF'!H39/1000,0) -> 0 | H39: =ROUND('C|InvCHF'!K39/1000,0) -> 0
C40: 551 | D40: =+'C|InvCHF'!D40 -> Cantons et concordats | E40: =ROUND('C|InvCHF'!E40/1000,0) -> 0 | F40: =ROUND('C|InvCHF'!H40/1000,0) -> 0 | H40: =ROUND('C|InvCHF'!K40/1000,0) -> 0
C41: 552 | D41: =+'C|InvCHF'!D41 -> Communes et associations intercommunales | E41: =ROUND('C|InvCHF'!E41/1000,0) -> 0 | F41: =ROUND('C|InvCHF'!H41/1000,0) -> 0 | H41: =ROUND('C|InvCHF'!K41/1000,0) -> 0
C42: 553 | D42: =+'C|InvCHF'!D42 -> Assurances sociales publiques | E42: =ROUND('C|InvCHF'!E42/1000,0) -> 0 | F42: =ROUND('C|InvCHF'!H42/1000,0) -> 0 | H42: =ROUND('C|InvCHF'!K42/1000,0) -> 0
C43: 554 | D43: =+'C|InvCHF'!D43 -> Entreprises publiques | E43: =ROUND('C|InvCHF'!E43/1000,0) -> 0 | F43: =ROUND('C|InvCHF'!H43/1000,0) -> 0 | H43: =ROUND('C|InvCHF'!K43/1000,0) -> 0
C44: 555 | D44: =+'C|InvCHF'!D44 -> Entreprises privées | E44: =ROUND('C|InvCHF'!E44/1000,0) -> 0 | F44: =ROUND('C|InvCHF'!H44/1000,0) -> 0 | H44: =ROUND('C|InvCHF'!K44/1000,0) -> 0
C45: 556 | D45: =+'C|InvCHF'!D45 -> Organisations privées à but non lucratif | E45: =ROUND('C|InvCHF'!E45/1000,0) -> 0 | F45: =ROUND('C|InvCHF'!H45/1000,0) -> 0 | H45: =ROUND('C|InvCHF'!K45/1000,0) -> 0
C46: 557 | D46: =+'C|InvCHF'!D46 -> Ménages privés | E46: =ROUND('C|InvCHF'!E46/1000,0) -> 0 | F46: =ROUND('C|InvCHF'!H46/1000,0) -> 0 | H46: =ROUND('C|InvCHF'!K46/1000,0) -> 0
C47: 558 | D47: =+'C|InvCHF'!D47 -> Etranger | E47: =ROUND('C|InvCHF'!E47/1000,0) -> 0 | F47: =ROUND('C|InvCHF'!H47/1000,0) -> 0 | H47: =ROUND('C|InvCHF'!K47/1000,0) -> 0
C48: […]
C50: Compte des investissements | Dépenses (suite) | E50: =+E3 -> Année t | H50: =+H3 -> Année t-1
C51: en KCHF | E51: Comptes | F51: Budget | H51: Comptes
C52: […]
C53: 56 | D53: =+'C|InvCHF'!D48 -> Propres subventions d'investissement | E53: =SUM(E54:E62) -> 0 | F53: =SUM(F54:F62) -> 44 | H53: =SUM(H54:H62) -> 0
C54: 560 | D54: =+'C|InvCHF'!D49 -> Confédération | E54: =ROUND('C|InvCHF'!E49/1000,0) -> 0 | F54: =ROUND('C|InvCHF'!H49/1000,0) -> 0 | H54: =ROUND('C|InvCHF'!K49/1000,0) -> 0
C55: 561 | D55: =+'C|InvCHF'!D50 -> Cantons et concordats | E55: =ROUND('C|InvCHF'!E50/1000,0) -> 0 | F55: =ROUND('C|InvCHF'!H50/1000,0) -> 0 | H55: =ROUND('C|InvCHF'!K50/1000,0) -> 0
C56: 562 | D56: =+'C|InvCHF'!D51 -> Communes et associations intercommunales | E56: =ROUND('C|InvCHF'!E51/1000,0) -> 0 | F56: =ROUND('C|InvCHF'!H51/1000,0) -> 44 | H56: =ROUND('C|InvCHF'!K51/1000,0) -> 0
C57: 563 | D57: =+'C|InvCHF'!D52 -> Assurances sociales publiques | E57: =ROUND('C|InvCHF'!E52/1000,0) -> 0 | F57: =ROUND('C|InvCHF'!H52/1000,0) -> 0 | H57: =ROUND('C|InvCHF'!K52/1000,0) -> 0
C58: 564 | D58: =+'C|InvCHF'!D53 -> Entreprises publiques | E58: =ROUND('C|InvCHF'!E53/1000,0) -> 0 | F58: =ROUND('C|InvCHF'!H53/1000,0) -> 0 | H58: =ROUND('C|InvCHF'!K53/1000,0) -> 0
C59: 565 | D59: =+'C|InvCHF'!D54 -> Entreprises privées | E59: =ROUND('C|InvCHF'!E54/1000,0) -> 0 | F59: =ROUND('C|InvCHF'!H54/1000,0) -> 0 | H59: =ROUND('C|InvCHF'!K54/1000,0) -> 0
C60: 566 | D60: =+'C|InvCHF'!D55 -> Organisations privées à but non lucratif | E60: =ROUND('C|InvCHF'!E55/1000,0) -> 0 | F60: =ROUND('C|InvCHF'!H55/1000,0) -> 0 | H60: =ROUND('C|InvCHF'!K55/1000,0) -> 0
C61: 567 | D61: =+'C|InvCHF'!D56 -> Ménages privés | E61: =ROUND('C|InvCHF'!E56/1000,0) -> 0 | F61: =ROUND('C|InvCHF'!H56/1000,0) -> 0 | H61: =ROUND('C|InvCHF'!K56/1000,0) -> 0
C62: 568 | D62: =+'C|InvCHF'!D57 -> Etranger | E62: =ROUND('C|InvCHF'!E57/1000,0) -> 0 | F62: =ROUND('C|InvCHF'!H57/1000,0) -> 0 | H62: =ROUND('C|InvCHF'!K57/1000,0) -> 0
C63: 57 | D63: =+'C|InvCHF'!D58 -> Subventions d'investissement redistribuées | E63: =SUM(E64:E72) -> 0 | F63: =SUM(F64:F72) -> 0 | H63: =SUM(H64:H72) -> 0
C64: 570 | D64: =+'C|InvCHF'!D59 -> Confédération | E64: =ROUND('C|InvCHF'!E59/1000,0) -> 0 | F64: =ROUND('C|InvCHF'!H59/1000,0) -> 0 | H64: =ROUND('C|InvCHF'!K59/1000,0) -> 0
C65: 571 | D65: =+'C|InvCHF'!D60 -> Cantons et concordats | E65: =ROUND('C|InvCHF'!E60/1000,0) -> 0 | F65: =ROUND('C|InvCHF'!H60/1000,0) -> 0 | H65: =ROUND('C|InvCHF'!K60/1000,0) -> 0
C66: 572 | D66: =+'C|InvCHF'!D61 -> Communes et associations intercommunales | E66: =ROUND('C|InvCHF'!E61/1000,0) -> 0 | F66: =ROUND('C|InvCHF'!H61/1000,0) -> 0 | H66: =ROUND('C|InvCHF'!K61/1000,0) -> 0
C67: 573 | D67: =+'C|InvCHF'!D62 -> Assurances sociales publiques | E67: =ROUND('C|InvCHF'!E62/1000,0) -> 0 | F67: =ROUND('C|InvCHF'!H62/1000,0) -> 0 | H67: =ROUND('C|InvCHF'!K62/1000,0) -> 0
C68: 574 | D68: =+'C|InvCHF'!D63 -> Entreprises publiques | E68: =ROUND('C|InvCHF'!E63/1000,0) -> 0 | F68: =ROUND('C|InvCHF'!H63/1000,0) -> 0 | H68: =ROUND('C|InvCHF'!K63/1000,0) -> 0
C69: 575 | D69: =+'C|InvCHF'!D64 -> Entreprises privées | E69: =ROUND('C|InvCHF'!E64/1000,0) -> 0 | F69: =ROUND('C|InvCHF'!H64/1000,0) -> 0 | H69: =ROUND('C|InvCHF'!K64/1000,0) -> 0
C70: 576 | D70: =+'C|InvCHF'!D65 -> Organisations privées à but non lucratif | E70: =ROUND('C|InvCHF'!E65/1000,0) -> 0 | F70: =ROUND('C|InvCHF'!H65/1000,0) -> 0 | H70: =ROUND('C|InvCHF'!K65/1000,0) -> 0
C71: 577 | D71: =+'C|InvCHF'!D66 -> Ménages privés | E71: =ROUND('C|InvCHF'!E66/1000,0) -> 0 | F71: =ROUND('C|InvCHF'!H66/1000,0) -> 0 | H71: =ROUND('C|InvCHF'!K66/1000,0) -> 0
C72: 578 | D72: =+'C|InvCHF'!D67 -> Etranger | E72: =ROUND('C|InvCHF'!E67/1000,0) -> 0 | F72: =ROUND('C|InvCHF'!H67/1000,0) -> 0 | H72: =ROUND('C|InvCHF'!K67/1000,0) -> 0
C73: 58 | D73: =+'C|InvCHF'!D68 -> Dépenses d'investissement extraordinaires [e.o.] | E73: =SUM(E74:E79) -> 0 | F73: =SUM(F74:F79) -> 0 | H73: =SUM(H74:H79) -> 0
C74: 580 | D74: =+'C|InvCHF'!D69 -> Dépenses d'investissement e.o. immobilisations corporelles | E74: =ROUND('C|InvCHF'!E69/1000,0) -> 0 | F74: =ROUND('C|InvCHF'!H69/1000,0) -> 0 | H74: =ROUND('C|InvCHF'!K69/1000,0) -> 0
C75: 582 | D75: =+'C|InvCHF'!D70 -> Dépenses d'investissement e.o. immobilisations incorporelles | E75: =ROUND('C|InvCHF'!E70/1000,0) -> 0 | F75: =ROUND('C|InvCHF'!H70/1000,0) -> 0 | H75: =ROUND('C|InvCHF'!K70/1000,0) -> 0
C76: 584 | D76: =+'C|InvCHF'!D71 -> Dépenses d'investissement e.o. pour des prêts | E76: =ROUND('C|InvCHF'!E71/1000,0) -> 0 | F76: =ROUND('C|InvCHF'!H71/1000,0) -> 0 | H76: =ROUND('C|InvCHF'!K71/1000,0) -> 0
C77: 585 | D77: =+'C|InvCHF'!D72 -> Dépenses d'investissement e.o. participations, capital social | E77: =ROUND('C|InvCHF'!E72/1000,0) -> 0 | F77: =ROUND('C|InvCHF'!H72/1000,0) -> 0 | H77: =ROUND('C|InvCHF'!K72/1000,0) -> 0
C78: 586 | D78: =+'C|InvCHF'!D73 -> Subventions d'investissement e.o. | E78: =ROUND('C|InvCHF'!E73/1000,0) -> 0 | F78: =ROUND('C|InvCHF'!H73/1000,0) -> 0 | H78: =ROUND('C|InvCHF'!K73/1000,0) -> 0
C79: 589 | D79: =+'C|InvCHF'!D74 -> Autres dépenses d'investissement e.o. | E79: =ROUND('C|InvCHF'!E74/1000,0) -> 0 | F79: =ROUND('C|InvCHF'!H74/1000,0) -> 0 | H79: =ROUND('C|InvCHF'!K74/1000,0) -> 0
C81: Compte des investissements | Recettes | E81: =+E3 -> Année t | H81: =+H50 -> Année t-1
C82: en KCHF | E82: Comptes | F82: Budget | H82: Comptes
C83: 6 | D83: =+'C|InvCHF'!D78 -> Recettes d'investissement | E83: =+E84+E93+E102+E106+E116+E131+E141+E151+E161 -> 43 | F83: =+F84+F93+F102+F106+F116+F131+F141+F151+F161 -> 500 | H83: =+H84+H93+H102+H106+H116+H131+H141+H151+H161 -> 10
C84: 60 | D84: =+'C|InvCHF'!D79 -> Transferts d'immobilisations corporelles dans le PF | E84: =SUM(E85:E92) -> 0 | F84: =SUM(F85:F92) -> 0 | H84: =SUM(H85:H92) -> 0
C85: 600 | D85: =+'C|InvCHF'!D80 -> Transferts de terrains | E85: =ROUND('C|InvCHF'!F80/1000,0) -> 0 | F85: =ROUND('C|InvCHF'!I80/1000,0) -> 0 | H85: =ROUND('C|InvCHF'!L80/1000,0) -> 0
C86: 601 | D86: =+'C|InvCHF'!D81 -> Transferts de routes et voies de communication | E86: =ROUND('C|InvCHF'!F81/1000,0) -> 0 | F86: =ROUND('C|InvCHF'!I81/1000,0) -> 0 | H86: =ROUND('C|InvCHF'!L81/1000,0) -> 0
C87: 602 | D87: =+'C|InvCHF'!D82 -> Transferts d'aménagements des cours d'eau | E87: =ROUND('C|InvCHF'!F82/1000,0) -> 0 | F87: =ROUND('C|InvCHF'!I82/1000,0) -> 0 | H87: =ROUND('C|InvCHF'!L82/1000,0) -> 0
C88: 603 | D88: =+'C|InvCHF'!D83 -> Transferts d'autres travaux de génie civil | E88: =ROUND('C|InvCHF'!F83/1000,0) -> 0 | F88: =ROUND('C|InvCHF'!I83/1000,0) -> 0 | H88: =ROUND('C|InvCHF'!L83/1000,0) -> 0
C89: 604 | D89: =+'C|InvCHF'!D84 -> Transferts de bâtiments | E89: =ROUND('C|InvCHF'!F84/1000,0) -> 0 | F89: =ROUND('C|InvCHF'!I84/1000,0) -> 0 | H89: =ROUND('C|InvCHF'!L84/1000,0) -> 0
C90: 605 | D90: =+'C|InvCHF'!D85 -> Transferts de forêts | E90: =ROUND('C|InvCHF'!F85/1000,0) -> 0 | F90: =ROUND('C|InvCHF'!I85/1000,0) -> 0 | H90: =ROUND('C|InvCHF'!L85/1000,0) -> 0
C91: 606 | D91: =+'C|InvCHF'!D86 -> Transferts de biens meubles | E91: =ROUND('C|InvCHF'!F86/1000,0) -> 0 | F91: =ROUND('C|InvCHF'!I86/1000,0) -> 0 | H91: =ROUND('C|InvCHF'!L86/1000,0) -> 0
C92: 609 | D92: =+'C|InvCHF'!D87 -> Transferts d'autres immobilisations corporelles | E92: =ROUND('C|InvCHF'!F87/1000,0) -> 0 | F92: =ROUND('C|InvCHF'!I87/1000,0) -> 0 | H92: =ROUND('C|InvCHF'!L87/1000,0) -> 0
C93: 61 | D93: =+'C|InvCHF'!D88 -> Remboursements de dépenses d'invest. pour le compte de tiers | E93: =SUM(E94:E101) -> 0 | F93: =SUM(F94:F101) -> 0 | H93: =SUM(H94:H101) -> 0
C94: 610 | D94: =+'C|InvCHF'!D89 -> Terrains | E94: =ROUND('C|InvCHF'!F89/1000,0) -> 0 | F94: =ROUND('C|InvCHF'!I89/1000,0) -> 0 | H94: =ROUND('C|InvCHF'!L89/1000,0) -> 0
C95: 611 | D95: =+'C|InvCHF'!D90 -> Routes et voies de communication | E95: =ROUND('C|InvCHF'!F90/1000,0) -> 0 | F95: =ROUND('C|InvCHF'!I90/1000,0) -> 0 | H95: =ROUND('C|InvCHF'!L90/1000,0) -> 0
C96: 612 | D96: =+'C|InvCHF'!D91 -> Aménagements des cours d'eau | E96: =ROUND('C|InvCHF'!F91/1000,0) -> 0 | F96: =ROUND('C|InvCHF'!I91/1000,0) -> 0 | H96: =ROUND('C|InvCHF'!L91/1000,0) -> 0
C97: 613 | D97: =+'C|InvCHF'!D92 -> Autres travaux de génie civil | E97: =ROUND('C|InvCHF'!F92/1000,0) -> 0 | F97: =ROUND('C|InvCHF'!I92/1000,0) -> 0 | H97: =ROUND('C|InvCHF'!L92/1000,0) -> 0
C98: 614 | D98: =+'C|InvCHF'!D93 -> Bâtiments | E98: =ROUND('C|InvCHF'!F93/1000,0) -> 0 | F98: =ROUND('C|InvCHF'!I93/1000,0) -> 0 | H98: =ROUND('C|InvCHF'!L93/1000,0) -> 0
C99: 615 | D99: =+'C|InvCHF'!D94 -> Forêts | E99: =ROUND('C|InvCHF'!F94/1000,0) -> 0 | F99: =ROUND('C|InvCHF'!I94/1000,0) -> 0 | H99: =ROUND('C|InvCHF'!L94/1000,0) -> 0
C100: 616 | D100: =+'C|InvCHF'!D95 -> Biens meubles | E100: =ROUND('C|InvCHF'!F95/1000,0) -> 0 | F100: =ROUND('C|InvCHF'!I95/1000,0) -> 0 | H100: =ROUND('C|InvCHF'!L95/1000,0) -> 0
C101: 619 | D101: =+'C|InvCHF'!D96 -> Autres immobilisations corporelles | E101: =ROUND('C|InvCHF'!F96/1000,0) -> 0 | F101: =ROUND('C|InvCHF'!I96/1000,0) -> 0 | H101: =ROUND('C|InvCHF'!L96/1000,0) -> 0
C102: 62 | D102: =+'C|InvCHF'!D97 -> Transferts d'immobilisations incorporelles dans le PF | E102: =SUM(E103:E105) -> 0 | F102: =SUM(F103:F105) -> 0 | H102: =SUM(H103:H105) -> 0
C103: 620 | D103: =+'C|InvCHF'!D98 -> Logiciels | E103: =ROUND('C|InvCHF'!F98/1000,0) -> 0 | F103: =ROUND('C|InvCHF'!I98/1000,0) -> 0 | H103: =ROUND('C|InvCHF'!L98/1000,0) -> 0
C104: 621 | D104: =+'C|InvCHF'!D99 -> Licences, droits d'utilisation, droits des marques | E104: =ROUND('C|InvCHF'!F99/1000,0) -> 0 | F104: =ROUND('C|InvCHF'!I99/1000,0) -> 0 | H104: =ROUND('C|InvCHF'!L99/1000,0) -> 0
C105: 629 | D105: =+'C|InvCHF'!D100 -> Autres immobilisations incorporelles | E105: =ROUND('C|InvCHF'!F100/1000,0) -> 0 | F105: =ROUND('C|InvCHF'!I100/1000,0) -> 0 | H105: =ROUND('C|InvCHF'!L100/1000,0) -> 0
C106: 63 | D106: =+'C|InvCHF'!D101 -> Subventions d'investissement acquises | E106: =SUM(E107:E115) -> 43 | F106: =SUM(F107:F115) -> 500 | H106: =SUM(H107:H115) -> 10
C107: 630 | D107: =+'C|InvCHF'!D102 -> Confédération | E107: =ROUND('C|InvCHF'!F102/1000,0) -> 0 | F107: =ROUND('C|InvCHF'!I102/1000,0) -> 0 | H107: =ROUND('C|InvCHF'!L102/1000,0) -> 0
C108: 631 | D108: =+'C|InvCHF'!D103 -> Cantons et concordats | E108: =ROUND('C|InvCHF'!F103/1000,0) -> 0 | F108: =ROUND('C|InvCHF'!I103/1000,0) -> 100 | H108: =ROUND('C|InvCHF'!L103/1000,0) -> 0
C109: 632 | D109: =+'C|InvCHF'!D104 -> Communes et associations intercommunales | E109: =ROUND('C|InvCHF'!F104/1000,0) -> 0 | F109: =ROUND('C|InvCHF'!I104/1000,0) -> 0 | H109: =ROUND('C|InvCHF'!L104/1000,0) -> 0
C110: 633 | D110: =+'C|InvCHF'!D105 -> Assurances sociales publiques | E110: =ROUND('C|InvCHF'!F105/1000,0) -> 0 | F110: =ROUND('C|InvCHF'!I105/1000,0) -> 0 | H110: =ROUND('C|InvCHF'!L105/1000,0) -> 0
C111: 634 | D111: =+'C|InvCHF'!D106 -> Entreprises publiques | E111: =ROUND('C|InvCHF'!F106/1000,0) -> 3 | F111: =ROUND('C|InvCHF'!I106/1000,0) -> 0 | H111: =ROUND('C|InvCHF'!L106/1000,0) -> 10
C112: 635 | D112: =+'C|InvCHF'!D107 -> Entreprises privées | E112: =ROUND('C|InvCHF'!F107/1000,0) -> 40 | F112: =ROUND('C|InvCHF'!I107/1000,0) -> 400 | H112: =ROUND('C|InvCHF'!L107/1000,0) -> 0
C113: 636 | D113: =+'C|InvCHF'!D108 -> Organisations privées à but non lucratif | E113: =ROUND('C|InvCHF'!F108/1000,0) -> 0 | F113: =ROUND('C|InvCHF'!I108/1000,0) -> 0 | H113: =ROUND('C|InvCHF'!L108/1000,0) -> 0
C114: 637 | D114: =+'C|InvCHF'!D109 -> Ménages privés | E114: =ROUND('C|InvCHF'!F109/1000,0) -> 0 | F114: =ROUND('C|InvCHF'!I109/1000,0) -> 0 | H114: =ROUND('C|InvCHF'!L109/1000,0) -> 0
C115: 638 | D115: =+'C|InvCHF'!D110 -> Etranger | E115: =ROUND('C|InvCHF'!F110/1000,0) -> 0 | F115: =ROUND('C|InvCHF'!I110/1000,0) -> 0 | H115: =ROUND('C|InvCHF'!L110/1000,0) -> 0
C116: 64 | D116: =+'C|InvCHF'!D111 -> Remboursements de prêts | E116: =SUM(E117:E125) -> 0 | F116: =SUM(F117:F125) -> 0 | H116: =SUM(H117:H125) -> 0
C117: 640 | D117: =+'C|InvCHF'!D112 -> Confédération | E117: =ROUND('C|InvCHF'!F112/1000,0) -> 0 | F117: =ROUND('C|InvCHF'!I112/1000,0) -> 0 | H117: =ROUND('C|InvCHF'!L112/1000,0) -> 0
C118: 641 | D118: =+'C|InvCHF'!D113 -> Cantons et concordats | E118: =ROUND('C|InvCHF'!F113/1000,0) -> 0 | F118: =ROUND('C|InvCHF'!I113/1000,0) -> 0 | H118: =ROUND('C|InvCHF'!L113/1000,0) -> 0
C119: 642 | D119: =+'C|InvCHF'!D114 -> Communes et associations intercommunales | E119: =ROUND('C|InvCHF'!F114/1000,0) -> 0 | F119: =ROUND('C|InvCHF'!I114/1000,0) -> 0 | H119: =ROUND('C|InvCHF'!L114/1000,0) -> 0
C120: 643 | D120: =+'C|InvCHF'!D115 -> Assurances sociales publiques | E120: =ROUND('C|InvCHF'!F115/1000,0) -> 0 | F120: =ROUND('C|InvCHF'!I115/1000,0) -> 0 | H120: =ROUND('C|InvCHF'!L115/1000,0) -> 0
C121: 644 | D121: =+'C|InvCHF'!D116 -> Entreprises publiques | E121: =ROUND('C|InvCHF'!F116/1000,0) -> 0 | F121: =ROUND('C|InvCHF'!I116/1000,0) -> 0 | H121: =ROUND('C|InvCHF'!L116/1000,0) -> 0
C122: 645 | D122: =+'C|InvCHF'!D117 -> Entreprises privées | E122: =ROUND('C|InvCHF'!F117/1000,0) -> 0 | F122: =ROUND('C|InvCHF'!I117/1000,0) -> 0 | H122: =ROUND('C|InvCHF'!L117/1000,0) -> 0
C123: 646 | D123: =+'C|InvCHF'!D118 -> Organisations privées à but non lucratif | E123: =ROUND('C|InvCHF'!F118/1000,0) -> 0 | F123: =ROUND('C|InvCHF'!I118/1000,0) -> 0 | H123: =ROUND('C|InvCHF'!L118/1000,0) -> 0
C124: 647 | D124: =+'C|InvCHF'!D119 -> Ménages privés | E124: =ROUND('C|InvCHF'!F119/1000,0) -> 0 | F124: =ROUND('C|InvCHF'!I119/1000,0) -> 0 | H124: =ROUND('C|InvCHF'!L119/1000,0) -> 0
C125: 648 | D125: =+'C|InvCHF'!D120 -> Etranger | E125: =ROUND('C|InvCHF'!F120/1000,0) -> 0 | F125: =ROUND('C|InvCHF'!I120/1000,0) -> 0 | H125: =ROUND('C|InvCHF'!L120/1000,0) -> 0
C126: […]
C128: Compte des investissements | Recettes (suite) | E128: =+E3 -> Année t | H128: =+H81 -> Année t-1
C129: en KCHF | E129: Comptes | F129: Budget | H129: Comptes
C130: […]
C131: 65 | D131: =+'C|InvCHF'!D121 -> Transferts de participations | E131: =SUM(E132:E140) -> 0 | F131: =SUM(F132:F140) -> 0 | H131: =SUM(H132:H140) -> 0
C132: 650 | D132: =+'C|InvCHF'!D122 -> Confédération | E132: =ROUND('C|InvCHF'!F122/1000,0) -> 0 | F132: =ROUND('C|InvCHF'!I122/1000,0) -> 0 | H132: =ROUND('C|InvCHF'!L122/1000,0) -> 0
C133: 651 | D133: =+'C|InvCHF'!D123 -> Cantons et concordats | E133: =ROUND('C|InvCHF'!F123/1000,0) -> 0 | F133: =ROUND('C|InvCHF'!I123/1000,0) -> 0 | H133: =ROUND('C|InvCHF'!L123/1000,0) -> 0
C134: 652 | D134: =+'C|InvCHF'!D124 -> Communes et associations intercommunales | E134: =ROUND('C|InvCHF'!F124/1000,0) -> 0 | F134: =ROUND('C|InvCHF'!I124/1000,0) -> 0 | H134: =ROUND('C|InvCHF'!L124/1000,0) -> 0
C135: 653 | D135: =+'C|InvCHF'!D125 -> Assurances sociales publiques | E135: =ROUND('C|InvCHF'!F125/1000,0) -> 0 | F135: =ROUND('C|InvCHF'!I125/1000,0) -> 0 | H135: =ROUND('C|InvCHF'!L125/1000,0) -> 0
C136: 654 | D136: =+'C|InvCHF'!D126 -> Entreprises publiques | E136: =ROUND('C|InvCHF'!F126/1000,0) -> 0 | F136: =ROUND('C|InvCHF'!I126/1000,0) -> 0 | H136: =ROUND('C|InvCHF'!L126/1000,0) -> 0
C137: 655 | D137: =+'C|InvCHF'!D127 -> Entreprises privées | E137: =ROUND('C|InvCHF'!F127/1000,0) -> 0 | F137: =ROUND('C|InvCHF'!I127/1000,0) -> 0 | H137: =ROUND('C|InvCHF'!L127/1000,0) -> 0
C138: 656 | D138: =+'C|InvCHF'!D128 -> Organisations privées à but non lucratif | E138: =ROUND('C|InvCHF'!F128/1000,0) -> 0 | F138: =ROUND('C|InvCHF'!I128/1000,0) -> 0 | H138: =ROUND('C|InvCHF'!L128/1000,0) -> 0
C139: 657 | D139: =+'C|InvCHF'!D129 -> Ménages privés | E139: =ROUND('C|InvCHF'!F129/1000,0) -> 0 | F139: =ROUND('C|InvCHF'!I129/1000,0) -> 0 | H139: =ROUND('C|InvCHF'!L129/1000,0) -> 0
C140: 658 | D140: =+'C|InvCHF'!D130 -> Etranger | E140: =ROUND('C|InvCHF'!F130/1000,0) -> 0 | F140: =ROUND('C|InvCHF'!I130/1000,0) -> 0 | H140: =ROUND('C|InvCHF'!L130/1000,0) -> 0
C141: 66 | D141: =+'C|InvCHF'!D131 -> Remboursements de propres subventions d'investissement | E141: =SUM(E142:E150) -> 0 | F141: =SUM(F142:F150) -> 0 | H141: =SUM(H142:H150) -> 0
C142: 660 | D142: =+'C|InvCHF'!D132 -> Confédération | E142: =ROUND('C|InvCHF'!F132/1000,0) -> 0 | F142: =ROUND('C|InvCHF'!I132/1000,0) -> 0 | H142: =ROUND('C|InvCHF'!L132/1000,0) -> 0
C143: 661 | D143: =+'C|InvCHF'!D133 -> Cantons et concordats | E143: =ROUND('C|InvCHF'!F133/1000,0) -> 0 | F143: =ROUND('C|InvCHF'!I133/1000,0) -> 0 | H143: =ROUND('C|InvCHF'!L133/1000,0) -> 0
C144: 662 | D144: =+'C|InvCHF'!D134 -> Communes et associations intercommunales | E144: =ROUND('C|InvCHF'!F134/1000,0) -> 0 | F144: =ROUND('C|InvCHF'!I134/1000,0) -> 0 | H144: =ROUND('C|InvCHF'!L134/1000,0) -> 0
C145: 663 | D145: =+'C|InvCHF'!D135 -> Assurances sociales publiques | E145: =ROUND('C|InvCHF'!F135/1000,0) -> 0 | F145: =ROUND('C|InvCHF'!I135/1000,0) -> 0 | H145: =ROUND('C|InvCHF'!L135/1000,0) -> 0
C146: 664 | D146: =+'C|InvCHF'!D136 -> Entreprises publiques | E146: =ROUND('C|InvCHF'!F136/1000,0) -> 0 | F146: =ROUND('C|InvCHF'!I136/1000,0) -> 0 | H146: =ROUND('C|InvCHF'!L136/1000,0) -> 0
C147: 665 | D147: =+'C|InvCHF'!D137 -> Entreprises privées | E147: =ROUND('C|InvCHF'!F137/1000,0) -> 0 | F147: =ROUND('C|InvCHF'!I137/1000,0) -> 0 | H147: =ROUND('C|InvCHF'!L137/1000,0) -> 0
C148: 666 | D148: =+'C|InvCHF'!D138 -> Organisations privées à but non lucratif | E148: =ROUND('C|InvCHF'!F138/1000,0) -> 0 | F148: =ROUND('C|InvCHF'!I138/1000,0) -> 0 | H148: =ROUND('C|InvCHF'!L138/1000,0) -> 0
C149: 667 | D149: =+'C|InvCHF'!D139 -> Ménages privés | E149: =ROUND('C|InvCHF'!F139/1000,0) -> 0 | F149: =ROUND('C|InvCHF'!I139/1000,0) -> 0 | H149: =ROUND('C|InvCHF'!L139/1000,0) -> 0
C150: 668 | D150: =+'C|InvCHF'!D140 -> Etranger | E150: =ROUND('C|InvCHF'!F140/1000,0) -> 0 | F150: =ROUND('C|InvCHF'!I140/1000,0) -> 0 | H150: =ROUND('C|InvCHF'!L140/1000,0) -> 0
C151: 67 | D151: =+'C|InvCHF'!D141 -> Subventions d'investissement à redistribuer | E151: =SUM(E152:E160) -> 0 | F151: =SUM(F152:F160) -> 0 | H151: =SUM(H152:H160) -> 0
C152: 670 | D152: =+'C|InvCHF'!D142 -> Confédération | E152: =ROUND('C|InvCHF'!F142/1000,0) -> 0 | F152: =ROUND('C|InvCHF'!I142/1000,0) -> 0 | H152: =ROUND('C|InvCHF'!L142/1000,0) -> 0
C153: 671 | D153: =+'C|InvCHF'!D143 -> Cantons et concordats | E153: =ROUND('C|InvCHF'!F143/1000,0) -> 0 | F153: =ROUND('C|InvCHF'!I143/1000,0) -> 0 | H153: =ROUND('C|InvCHF'!L143/1000,0) -> 0
C154: 672 | D154: =+'C|InvCHF'!D144 -> Communes et associations intercommunales | E154: =ROUND('C|InvCHF'!F144/1000,0) -> 0 | F154: =ROUND('C|InvCHF'!I144/1000,0) -> 0 | H154: =ROUND('C|InvCHF'!L144/1000,0) -> 0
C155: 673 | D155: =+'C|InvCHF'!D145 -> Assurances sociales publiques | E155: =ROUND('C|InvCHF'!F145/1000,0) -> 0 | F155: =ROUND('C|InvCHF'!I145/1000,0) -> 0 | H155: =ROUND('C|InvCHF'!L145/1000,0) -> 0
C156: 674 | D156: =+'C|InvCHF'!D146 -> Entreprises publiques | E156: =ROUND('C|InvCHF'!F146/1000,0) -> 0 | F156: =ROUND('C|InvCHF'!I146/1000,0) -> 0 | H156: =ROUND('C|InvCHF'!L146/1000,0) -> 0
C157: 675 | D157: =+'C|InvCHF'!D147 -> Entreprises privées | E157: =ROUND('C|InvCHF'!F147/1000,0) -> 0 | F157: =ROUND('C|InvCHF'!I147/1000,0) -> 0 | H157: =ROUND('C|InvCHF'!L147/1000,0) -> 0
C158: 676 | D158: =+'C|InvCHF'!D148 -> Organisations privées à but non lucratif | E158: =ROUND('C|InvCHF'!F148/1000,0) -> 0 | F158: =ROUND('C|InvCHF'!I148/1000,0) -> 0 | H158: =ROUND('C|InvCHF'!L148/1000,0) -> 0
C159: 677 | D159: =+'C|InvCHF'!D149 -> Ménages privés | E159: =ROUND('C|InvCHF'!F149/1000,0) -> 0 | F159: =ROUND('C|InvCHF'!I149/1000,0) -> 0 | H159: =ROUND('C|InvCHF'!L149/1000,0) -> 0
C160: 678 | D160: =+'C|InvCHF'!D150 -> Etranger | E160: =ROUND('C|InvCHF'!F150/1000,0) -> 0 | F160: =ROUND('C|InvCHF'!I150/1000,0) -> 0 | H160: =ROUND('C|InvCHF'!L150/1000,0) -> 0
C161: 68 | D161: =+'C|InvCHF'!D151 -> Recettes d'investissement extraordinaires [e.o.] | E161: =SUM(E162:E168) -> 0 | F161: =SUM(F162:F168) -> 0 | H161: =SUM(H162:H168) -> 0
C162: 680 | D162: =+'C|InvCHF'!D152 -> Recettes d'investissement e.o. immobilisations corporelles | E162: =ROUND('C|InvCHF'!F152/1000,0) -> 0 | F162: =ROUND('C|InvCHF'!I152/1000,0) -> 0 | H162: =ROUND('C|InvCHF'!L152/1000,0) -> 0
C163: 682 | D163: =+'C|InvCHF'!D153 -> Recettes d'investissement e.o. immobilisations incorporelles | E163: =ROUND('C|InvCHF'!F153/1000,0) -> 0 | F163: =ROUND('C|InvCHF'!I153/1000,0) -> 0 | H163: =ROUND('C|InvCHF'!L153/1000,0) -> 0
C164: 683 | D164: =+'C|InvCHF'!D154 -> Subventions d'investissement extraordinaires acquises | E164: =ROUND('C|InvCHF'!F154/1000,0) -> 0 | F164: =ROUND('C|InvCHF'!I154/1000,0) -> 0 | H164: =ROUND('C|InvCHF'!L154/1000,0) -> 0
C165: 684 | D165: =+'C|InvCHF'!D155 -> Remboursements extraordinaires de prêts | E165: =ROUND('C|InvCHF'!F155/1000,0) -> 0 | F165: =ROUND('C|InvCHF'!I155/1000,0) -> 0 | H165: =ROUND('C|InvCHF'!L155/1000,0) -> 0
C166: 685 | D166: =+'C|InvCHF'!D156 -> Cessions extraordinaires de participations | E166: =ROUND('C|InvCHF'!F156/1000,0) -> 0 | F166: =ROUND('C|InvCHF'!I156/1000,0) -> 0 | H166: =ROUND('C|InvCHF'!L156/1000,0) -> 0
C167: 686 | D167: =+'C|InvCHF'!D157 -> Remboursements e.o. de propres subventions d'investissement | E167: =ROUND('C|InvCHF'!F157/1000,0) -> 0 | F167: =ROUND('C|InvCHF'!I157/1000,0) -> 0 | H167: =ROUND('C|InvCHF'!L157/1000,0) -> 0
C168: 689 | D168: =+'C|InvCHF'!D158 -> Autres recettes d'investissement extraordinaires | E168: =ROUND('C|InvCHF'!F158/1000,0) -> 0 | F168: =ROUND('C|InvCHF'!I158/1000,0) -> 0 | H168: =ROUND('C|InvCHF'!L158/1000,0) -> 0
C170: 5-6 | D170: Investissement net | E170: =+E5-E83 -> 1928 | F170: =+F5-F83 -> 1903 | H170: =+H5-H83 -> 1765

Sheet BiKCHF
B1: Bilan, en KCHF
C3: Bilan | Actif | E3: 01.01 | F3: Variation en cours d'année | H3: 31.12 | K3: Contrôle des arrondis en KCHF
C4: en KCHF | E4: =+'C|RésCHF'!F3 -> Année t | F4: Augmentation | G4: Diminution | H4: =+'C|RésCHF'!F3 -> Année t
C5: 1 | D5: =+BiCHF!D5 -> Actif | E5: =+E6+E15 -> 13274 | F5: =+F6+F15 -> 41303 | G5: =+G6+G15 -> 40901 | H5: =+H6+H15 -> 13676 | K5: =+E5+F5-G5 -> 13676 | L5: =+H5-K5 -> 0
C6: 10 | D6: =+BiCHF!D6 -> Patrimoine financier [PF] | E6: =SUM(E7:E14) -> 5539 | F6: =SUM(F7:F14) -> 39332 | G6: =SUM(G7:G14) -> 40187 | H6: =SUM(H7:H14) -> 4684 | K6: 4684 | L6: =+H6-K6 -> 0
C7: 100 | D7: =+BiCHF!D7 -> Disponibilités et placements à court terme | E7: =ROUND(BiCHF!E7/1000,0) -> 1605 | F7: =ROUND(BiCHF!G7/1000,0) -> 16094 | G7: =ROUND(BiCHF!H7/1000,0) -> 16916 | H7: =ROUND(BiCHF!J7/1000,0) -> 783 | K7: 783 | L7: =+H7-K7 -> 0
C8: 101 | D8: =+BiCHF!D8 -> Créances | E8: =ROUND(BiCHF!E8/1000,0) -> 1733 | F8: =ROUND(BiCHF!G8/1000,0) -> 23064 | G8: =ROUND(BiCHF!H8/1000,0) -> 23175 | H8: =ROUND(BiCHF!J8/1000,0) -> 1622 | K8: 1622 | L8: =+H8-K8 -> 0
C9: 102 | D9: =+BiCHF!D9 -> Placements financiers à court terme | E9: =ROUND(BiCHF!E9/1000,0) -> 0 | F9: =ROUND(BiCHF!G9/1000,0) -> 0 | G9: =ROUND(BiCHF!H9/1000,0) -> 0 | H9: =ROUND(BiCHF!J9/1000,0) -> 0 | K9: 0 | L9: 0
C10: 104 | D10: =+BiCHF!D10 -> Actifs de régularisation | E10: =ROUND(BiCHF!E10/1000,0) -> 96 | F10: =ROUND(BiCHF!G10/1000,0) -> 165 | G10: =ROUND(BiCHF!H10/1000,0) -> 96 | H10: =ROUND(BiCHF!J10/1000,0) -> 165 | K10: 165 | L10: 0
C11: 106 | D11: =+BiCHF!D11 -> Marchandises, fournitures et travaux en cours | E11: =ROUND(BiCHF!E11/1000,0) -> 0 | F11: =ROUND(BiCHF!G11/1000,0) -> 0 | G11: =ROUND(BiCHF!H11/1000,0) -> 0 | H11: =ROUND(BiCHF!J11/1000,0) -> 0 | K11: 0 | L11: 0
C12: 107 | D12: =+BiCHF!D12 -> Placements financiers à long terme | E12: =ROUNDDOWN(BiCHF!E12/1000,0) -> 91 | F12: =ROUND(BiCHF!G12/1000,0) -> 9 | G12: =ROUND(BiCHF!H12/1000,0) -> 0 | H12: =ROUND(BiCHF!J12/1000,0) -> 100 | K12: 100 | L12: 0
C13: 108 | D13: =+BiCHF!D13 -> Immobilisations corporelles PF | E13: =ROUND(BiCHF!E13/1000,0) -> 2014 | F13: =ROUND(BiCHF!G13/1000,0) -> 0 | G13: =ROUND(BiCHF!H13/1000,0) -> 0 | H13: =ROUND(BiCHF!J13/1000,0) -> 2014 | K13: 2014 | L13: 0
C14: 109 | D14: =+BiCHF!D14 -> Créances envers les FSp et fonds sous CT | E14: =ROUND(BiCHF!E14/1000,0) -> 0 | F14: =ROUND(BiCHF!G14/1000,0) -> 0 | G14: =ROUND(BiCHF!H14/1000,0) -> 0 | H14: =ROUND(BiCHF!J14/1000,0) -> 0 | K14: 0 | L14: 0
C15: 14 | D15: =+BiCHF!D15 -> Patrimoine administratif [PA] | E15: =SUM(E16:E21) -> 7735 | F15: =SUM(F16:F21) -> 1971 | G15: =SUM(G16:G21) -> 714 | H15: =SUM(H16:H21) -> 8992 | K15: 8992 | L15: 0
C16: 140 | D16: =+BiCHF!D16 -> Immobilisations corporelles PA | E16: =ROUNDUP(BiCHF!E16/1000,0) -> 7419 | F16: =ROUND(BiCHF!G16/1000,0) -> 1971 | G16: =ROUND(BiCHF!H16/1000,0) -> 714 | H16: =ROUND(BiCHF!J16/1000,0) -> 8676 | K16: 8676 | L16: 0
C17: 142 | D17: =+BiCHF!D17 -> Immobilisations incorporelles PA | E17: =ROUND(BiCHF!E17/1000,0) -> 0 | F17: =ROUND(BiCHF!G17/1000,0) -> 0 | G17: =ROUND(BiCHF!H17/1000,0) -> 0 | H17: =ROUND(BiCHF!J17/1000,0) -> 0 | K17: 0 | L17: 0
C18: 144 | D18: =+BiCHF!D18 -> Prêts PA | E18: =ROUND(BiCHF!E18/1000,0) -> 0 | F18: =ROUND(BiCHF!G18/1000,0) -> 0 | G18: =ROUND(BiCHF!H18/1000,0) -> 0 | H18: =ROUND(BiCHF!J18/1000,0) -> 0 | K18: 0 | L18: 0
C19: 145 | D19: =+BiCHF!D19 -> Participations, capital social PA | E19: =ROUND(BiCHF!E19/1000,0) -> 316 | F19: =ROUND(BiCHF!G19/1000,0) -> 0 | G19: =ROUND(BiCHF!H19/1000,0) -> 0 | H19: =ROUND(BiCHF!J19/1000,0) -> 316 | K19: 316 | L19: 0
C20: 146 | D20: =+BiCHF!D20 -> Subventions d'investissement | E20: =ROUND(BiCHF!E20/1000,0) -> 0 | F20: =ROUND(BiCHF!G20/1000,0) -> 0 | G20: =ROUND(BiCHF!H20/1000,0) -> 0 | H20: =ROUND(BiCHF!J20/1000,0) -> 0 | K20: 0 | L20: 0
C21: 148 | D21: =+BiCHF!D21 -> Amortissements supplémentaires cumulés | E21: =ROUND(BiCHF!E21/1000,0) -> 0 | F21: =ROUND(BiCHF!G21/1000,0) -> 0 | G21: =ROUND(BiCHF!H21/1000,0) -> 0 | H21: =ROUND(BiCHF!J21/1000,0) -> 0 | K21: 0 | L21: 0
C23: Bilan | Passif | E23: 01.01 | F23: Variation en cours d'année | H23: 31.12 | K23: Contrôle des arrondis en KCHF
C24: en KCHF | E24: =+E4 -> Année t | F24: Augmentation | G24: Diminution | H24: =+H4 -> Année t
C25: 2 | D25: =+BiCHF!D23 -> Passif | E25: =+E26+E34 -> 13274 | F25: =+F26+F34 -> 19795 | G25: =+G26+G34 -> 19393 | H25: =+H26+H34 -> 13676 | K25: =+E25+F25-G25 -> 13676 | L25: 0
C26: 20 | D26: =+BiCHF!D24 -> Capitaux de tiers [CT] | E26: =SUM(E27:E33) -> 7619 | F26: =SUM(F27:F33) -> 16834 | G26: =SUM(G27:G33) -> 17466 | H26: =SUM(H27:H33) -> 6987 | K26: 6987 | L26: 0
C27: 200 | D27: =+BiCHF!D25 -> Engagements courants | E27: =ROUND(BiCHF!E25/1000,0) -> 1461 | F27: =ROUNDDOWN(BiCHF!G25/1000,0) -> 15631 | G27: =ROUND(BiCHF!H25/1000,0) -> 15371 | H27: =ROUND(BiCHF!J25/1000,0) -> 1721 | K27: 1721 | L27: 0
C28: 201 | D28: =+BiCHF!D26 -> Engagements financiers à court terme | E28: =ROUND(BiCHF!E26/1000,0) -> 0 | F28: =ROUND(BiCHF!G26/1000,0) -> 500 | G28: =ROUND(BiCHF!H26/1000,0) -> 500 | H28: =ROUND(BiCHF!J26/1000,0) -> 0 | K28: 0 | L28: 0
C29: 204 | D29: =+BiCHF!D27 -> Passifs de régularisation | E29: =ROUND(BiCHF!E27/1000,0) -> 33 | F29: =ROUND(BiCHF!G27/1000,0) -> 21 | G29: =ROUND(BiCHF!H27/1000,0) -> 33 | H29: =ROUND(BiCHF!J27/1000,0) -> 21 | K29: 21 | L29: 0
C30: 205 | D30: =+BiCHF!D28 -> Provisions à court terme | E30: =ROUND(BiCHF!E28/1000,0) -> 277 | F30: =ROUND(BiCHF!G28/1000,0) -> 82 | G30: =ROUND(BiCHF!H28/1000,0) -> 36 | H30: =ROUND(BiCHF!J28/1000,0) -> 323 | K30: 323 | L30: 0
C31: 206 | D31: =+BiCHF!D29 -> Engagements financiers à long terme | E31: =ROUND(BiCHF!E29/1000,0) -> 5500 | F31: =ROUND(BiCHF!G29/1000,0) -> 600 | G31: =ROUND(BiCHF!H29/1000,0) -> 1500 | H31: =ROUND(BiCHF!J29/1000,0) -> 4600 | K31: 4600 | L31: 0
C32: 208 | D32: =+BiCHF!D30 -> Provisions à long terme | E32: =ROUND(BiCHF!E30/1000,0) -> 0 | F32: =ROUND(BiCHF!G30/1000,0) -> 0 | G32: =ROUND(BiCHF!H30/1000,0) -> 0 | H32: =ROUND(BiCHF!J30/1000,0) -> 0 | K32: 0 | L32: 0
C33: 209 | D33: =+BiCHF!D31 -> Engagements envers les FSp et fonds sous CT | E33: =ROUND(BiCHF!E31/1000,0) -> 348 | F33: =ROUND(BiCHF!G31/1000,0) -> 0 | G33: =ROUND(BiCHF!H31/1000,0) -> 26 | H33: =ROUND(BiCHF!J31/1000,0) -> 322 | K33: 322 | L33: 0
C34: 29 | D34: =+BiCHF!D32 -> Capital propre [CP] | E34: =SUM(E35:E43) -> 5655 | F34: =SUM(F35:F43) -> 2961 | G34: =SUM(G35:G43) -> 1927 | H34: =SUM(H35:H43) -> 6689 | K34: 6689 | L34: 0
C35: 290 | D35: =+BiCHF!D33 -> Financements spéciaux [FSp] sous CP | E35: =ROUND(BiCHF!E33/1000,0) -> 1670 | F35: =ROUND(BiCHF!G33/1000,0) -> 130 | G35: =ROUND(BiCHF!H33/1000,0) -> 76 | H35: =ROUND(BiCHF!J33/1000,0) -> 1724 | K35: 1724 | L35: 0
C36: 291 | D36: =+BiCHF!D34 -> Fonds sous CP | E36: =ROUND(BiCHF!E34/1000,0) -> 0 | F36: =ROUND(BiCHF!G34/1000,0) -> 0 | G36: =ROUND(BiCHF!H34/1000,0) -> 0 | H36: =ROUND(BiCHF!J34/1000,0) -> 0 | K36: 0 | L36: 0
C37: 292 | D37: =+BiCHF!D35 -> Réserves des enveloppes budgétaires | E37: =ROUND(BiCHF!E35/1000,0) -> 0 | F37: =ROUND(BiCHF!G35/1000,0) -> 0 | G37: =ROUND(BiCHF!H35/1000,0) -> 0 | H37: =ROUND(BiCHF!J35/1000,0) -> 0 | K37: 0 | L37: 0
C38: 293 | D38: =+BiCHF!D36 -> Préfinancements | E38: =ROUNDDOWN(BiCHF!E36/1000,0) -> 1126 | F38: =ROUND(BiCHF!G36/1000,0) -> 691 | G38: =ROUNDDOWN(BiCHF!H36/1000,0) -> 21 | H38: =ROUND(BiCHF!J36/1000,0) -> 1796 | K38: 1796 | L38: 0
C39: 294 | D39: =+BiCHF!D37 -> Réserve de politique budgétaire | E39: =ROUND(BiCHF!E37/1000,0) -> 120 | F39: =ROUND(BiCHF!G37/1000,0) -> 300 | G39: =ROUND(BiCHF!H37/1000,0) -> 0 | H39: =ROUND(BiCHF!J37/1000,0) -> 420 | K39: 420 | L39: 0
C40: 295 | D40: =+BiCHF!D38 -> Réserve liée au retraitement du PA (introduction MCH2) | E40: =ROUND(BiCHF!E38/1000,0) -> 0 | F40: =ROUND(BiCHF!G38/1000,0) -> 0 | G40: =ROUND(BiCHF!H38/1000,0) -> 0 | H40: =ROUND(BiCHF!J38/1000,0) -> 0 | K40: 0 | L40: 0
C41: 296 | D41: =+BiCHF!D39 -> Réserves liées au retraitement du PF | E41: 0 | F41: 0 | G41: =ROUND(BiCHF!H39/1000,0) -> 0 | H41: 0 | K41: 0 | L41: 0
C42: 298 | D42: =+BiCHF!D40 -> Autres capitaux propres | E42: =ROUND(BiCHF!E40/1000,0) -> 0 | F42: =ROUND(BiCHF!G40/1000,0) -> 0 | G42: =ROUND(BiCHF!H40/1000,0) -> 0 | H42: =ROUND(BiCHF!J40/1000,0) -> 0 | K42: 0 | L42: 0
C43: 299 | D43: =+BiCHF!D41 -> Excédent ou découvert du bilan | E43: =ROUND(BiCHF!E41/1000,0)+ROUND(BiCHF!E39/1000,0) -> 2739 | F43: =ROUND(BiCHF!G41/1000,0)+ROUND(BiCHF!G39/1000,0) -> 1840 | G43: =ROUND(BiCHF!H41/1000,0)+ROUND(BiCHF!H39/1000,0) -> 1830 | H43: =ROUND(BiCHF!J41/1000,0)+ROUND(BiCHF!J39/1000,0) -> 2749 | K43: 2749 | L43: 0

Sheet CdR
B1: Rubriques du compte de résultats selon la classification par nature | J1: 11
B3: N° | C3: Libellé | D3: KCHF | E3: N° | F3: Libellé | G3: KCHF
B4: 3 | C4: =+'C|RésCHF'!D5 -> Charges | D4: =SUM(D5:D14) -> 14546 | E4: 4 | F4: =+'C|RésCHF'!D71 -> Revenus | G4: =SUM(G5:G14) -> 14610
B5: 30 | C5: ='C|RésKCHF'!D6 -> Charges de personnel | D5: ='C|RésKCHF'!E6 -> 2020 | E5: 40 | F5: ='C|RésKCHF'!D77 -> Revenus fiscaux | G5: ='C|RésKCHF'!E77 -> 7651
B6: 31 | C6: ='C|RésKCHF'!D15 -> Charges de biens et services et autres charges d'exploitation | D6: ='C|RésKCHF'!E15 -> 4076 | E6: 41 | F6: =+'C|RésKCHF'!D82 -> Patentes et concessions | G6: =+'C|RésKCHF'!E82 -> 12
B7: 32 | C7: Charges d’armement (Confédération uniquement) | E7: 42 | F7: =+'C|RésKCHF'!D87 -> Taxes et redevances | G7: =+'C|RésKCHF'!E87 -> 5076
B8: 33 | C8: ='C|RésKCHF'!D27 -> Amortissements du patrimoine administratif | D8: ='C|RésKCHF'!E27 -> 671 | E8: 43 | F8: ='C|RésKCHF'!D97 -> Revenus divers | G8: ='C|RésKCHF'!E97 -> 17
B9: 34 | C9: ='C|RésKCHF'!D30 -> Charges financières | D9: ='C|RésKCHF'!E30 -> 125 | E9: 44 | F9: ='C|RésKCHF'!D102 -> Revenus financiers | G9: ='C|RésKCHF'!E102 -> 167
B10: 35 | C10: ='C|RésKCHF'!D37 -> Attributions aux financements spéciaux [FSp] et fonds | D10: ='C|RésKCHF'!E37 -> 0 | E10: 45 | F10: ='C|RésKCHF'!D113 -> Prélèvements sur les financements spéciaux [FSp] et fonds | G10: ='C|RésKCHF'!E113 -> 23
B11: 36 | C11: =+'C|RésKCHF'!D40 -> Charges de transferts | D11: =+'C|RésKCHF'!E40 -> 6393 | E11: 46 | F11: ='C|RésKCHF'!D121 -> Revenus de transferts | G11: ='C|RésKCHF'!E121 -> 1373
B12: 37 | C12: =+'C|RésKCHF'!D54 -> Subventions redistribuées | D12: =+'C|RésKCHF'!E54 -> 0 | E12: 47 | F12: ='C|RésKCHF'!D128 -> Subventions à redistribuer | G12: ='C|RésKCHF'!E128 -> 0
B13: 38 | C13: =+'C|RésKCHF'!D56 -> Charges extraordinaires [e.o.] | D13: =+'C|RésKCHF'!E56 -> 991 | E13: 48 | F13: ='C|RésKCHF'!D130 -> Revenus extraordinaires [e.o.] | G13: ='C|RésKCHF'!E130 -> 21
B14: 39 | C14: =+'C|RésKCHF'!D64 -> Imputations internes | D14: =+'C|RésKCHF'!E64 -> 270 | E14: 49 | F14: ='C|RésKCHF'!D138 -> Imputations internes | G14: ='C|RésKCHF'!E138 -> 270
B16: Résultat total | D16: =+G4-D4 -> 64
AC17: 14297
AC18: =+TabFin!#REF!+TabFin!#REF!+AC17+64 -> 

Sheet CdREch
B1: Présentation échelonnée du compte de résultats
B3: N° | C3: Libellé | D3: Débit | E3: Crédit | F3: Solde
B4: 30 | C4: =+'C|RésCHF'!D6 -> Charges de personnel | D4: ='C|RésKCHF'!E6 -> 2020
B5: 31 | C5: Charges de biens et services | D5: =+'C|RésKCHF'!E15 -> 4076
B6: 33 | C6: =+'C|RésCHF'!D27 -> Amortissements du patrimoine administratif | D6: ='C|RésKCHF'!E27 -> 671
B7: 35 | C7: Attributions aux financements spéciaux et fonds | D7: ='C|RésKCHF'!E37 -> 0
B8: 36 | C8: =+'C|RésCHF'!D40 -> Charges de transferts | D8: ='C|RésKCHF'!E40 -> 6393
B9: 37 | C9: =+'C|RésCHF'!D49 -> Subventions redistribuées | D9: =+'C|RésKCHF'!E54 -> 0
B10: Charges d'exploitation | D10: =SUM(D4:D9) -> 13160
B11: 40 | C11: =+'C|RésCHF'!D72 -> Revenus fiscaux | E11: ='C|RésKCHF'!E77 -> 7651
B12: 41 | C12: =+'C|RésCHF'!D77 -> Patentes et concessions | E12: =+'C|RésKCHF'!E82 -> 12
B13: 42 | C13: =+'C|RésCHF'!D82 -> Taxes et redevances | E13: ='C|RésKCHF'!E87 -> 5076
B14: 43 | C14: =+'C|RésCHF'!D92 -> Revenus divers | E14: ='C|RésKCHF'!E97 -> 17
B15: 45 | C15: Prélèvements sur les financements spéciaux et fonds | E15: ='C|RésKCHF'!E113 -> 23
B16: 46 | C16: =+'C|RésCHF'!D111 -> Revenus de transferts | E16: ='C|RésKCHF'!E121 -> 1373
B17: 47 | C17: =+'C|RésCHF'!D118 -> Subventions à redistribuer | E17: =+'C|RésKCHF'!E128 -> 0
B18: Revenus d'exploitation | C18: Revenus d'exploitation | E18: =SUM(E11:E17) -> 14152
B19: Résultat d'exploitation (excédent de revenus) | F19: =+E18-D10 -> 992
B21: 34 | C21: =+'C|RésCHF'!D30 -> Charges financières | D21: ='C|RésKCHF'!E30 -> 125
B22: 44 | C22: =+'C|RésCHF'!D97 -> Revenus financiers | E22: ='C|RésKCHF'!E102 -> 167
B23: Résultat financier (excédent de revenus) | F23: =+E22-D21 -> 42
B25: Charges opérationnelles | D25: =D21+D10 -> 13285
B26: Revenus opérationnels | E26: =E22+E18 -> 14319
B27: Résultat opérationnel (excédent de revenus) | F27: =+E26-D25 -> 1034
B29: 38 | C29: =+'C|RésCHF'!D51 -> Charges extraordinaires [e.o.] | D29: ='C|RésKCHF'!E56 -> 991
B30: 48 | C30: =+'C|RésCHF'!D120 -> Revenus extraordinaires [e.o.] | E30: ='C|RésKCHF'!E130 -> 21
B31: Résultat extraordinaire (excédent de charges) | F31: =+E30-D29 -> -970
B33: Total des charges (hors imputations internes) | D33: =+D29+D25 -> 14276
B34: Total des revenus (hors imputations internes) | E34: =+E30+E26 -> 14340
B35: Résultat total (excédent de revenus) | F35: =+E34-D33 -> 64

Sheet ClaFonc
B1: Compte de résultats et compte des investissements selon la classification fonctionnelle
B3: N° | C3: Libellé de la fonction | D3: KCHF | E3: KCHF | F3: KCHF
B4: Compte de résultats | D4: Charges | E4: Revenus | F4: Résultat net
B5: 0 | C5: =+FctCHF!C6 -> Administration générale | D5: =ROUND(FctCHF!D6/1000,0) -> 1170 | E5: =ROUND(FctCHF!E6/1000,0) -> 176 | F5: =+E5-D5 -> -994
B6: 1 | C6: =+FctCHF!C8 -> Ordre et sécurité publics, défense | D6: =ROUND(FctCHF!D8/1000,0) -> 350 | E6: =ROUNDUP(FctCHF!E8/1000,0) -> 289 | F6: -61
B7: 2 | C7: =+FctCHF!C10 -> Formation | D7: =ROUND(FctCHF!D10/1000,0) -> 2662 | E7: =ROUND(FctCHF!E10/1000,0) -> 165 | F7: -2497
B8: 3 | C8: =+FctCHF!C12 -> Culture, sport et loisirs, église | D8: =ROUND(FctCHF!D12/1000,0) -> 326 | E8: =ROUND(FctCHF!E12/1000,0) -> 222 | F8: -104
B9: 4 | C9: =+FctCHF!C14 -> Santé | D9: =ROUND(FctCHF!D14/1000,0) -> 11 | E9: =ROUND(FctCHF!E14/1000,0) -> 0 | F9: -11
B10: 5 | C10: =+FctCHF!C16 -> Prévoyance sociale | D10: =ROUND(FctCHF!D16/1000,0) -> 2447 | E10: =ROUND(FctCHF!E16/1000,0) -> 26 | F10: -2421
B11: 6 | C11: =+FctCHF!C18 -> Trafic et télécommunications | D11: =ROUNDUP(FctCHF!D18/1000,0) -> 1112 | E11: =ROUND(FctCHF!E18/1000,0) -> 142 | F11: -970
B12: 7 | C12: =+FctCHF!C20 -> Protection de l'environnement et aménagement du territoire | D12: =ROUND(FctCHF!D20/1000,0) -> 2293 | E12: =ROUND(FctCHF!E20/1000,0) -> 2084 | F12: -209
B13: 8 | C13: =+FctCHF!C23 -> Economie publique | D13: =ROUND(FctCHF!D23/1000,0) -> 2553 | E13: =ROUND(FctCHF!E23/1000,0) -> 2542 | F13: -11
B14: 9 | C14: =+FctCHF!C25 -> Finances et impôts | D14: =ROUND(FctCHF!D25/1000-130,0) -> 1622 | E14: =ROUND(FctCHF!E25/1000-76,0) -> 8964 | F14: 7342
C15: Total | D15: =SUM(D5:D14) -> 14546 | E15: =SUM(E5:E14) -> 14610 | F15: =SUM(F5:F14) -> 64
B16: Compte des investissements | D16: Dépenses | E16: Recettes | F16: Résultat net
B17: 0 | C17: =+C5 -> Administration générale | D17: 0 | E17: 0 | F17: =+E17-D17 -> 0
B18: 1 | C18: =+C6 -> Ordre et sécurité publics, défense | D18: 0 | E18: 0 | F18: 0
B19: 2 | C19: Formation | D19: =ROUND(FctCHF!D33/1000,0) -> 715 | E19: =ROUND(FctCHF!E33/1000,0) -> 0 | F19: =+E19-D19 -> -715
B20: 3 | C20: Culture, sport et loisirs, église | D20: =ROUND(FctCHF!D35/1000,0) -> 514 | E20: =ROUND(FctCHF!E35/1000,0) -> 40 | F20: -474
B21: 4 | C21: Santé | D21: 0 | E21: 0 | F21: 0
B22: 5 | C22: Prévoyance sociale | D22: 0 | E22: 0 | F22: 0
B23: 6 | C23: Trafic et télécommunications | D23: =ROUND(FctCHF!D37/1000,0) -> 184 | E23: =ROUND(FctCHF!E37/1000,0) -> 0 | F23: -184
B24: 7 | C24: Protection de l'environnement et aménagement du territoire | D24: =ROUND(FctCHF!D39/1000,0) -> 354 | E24: =ROUND(FctCHF!E39/1000,0) -> 0 | F24: -354
B25: 8 | C25: Economie publique | D25: =ROUNDDOWN(FctCHF!D41/1000,0) -> 204 | E25: =ROUND(FctCHF!E41/1000,0) -> 3 | F25: -201
B26: 9 | C26: Finances et impôts | D26: 0 | E26: 0 | F26: 0
C27: Total | D27: =SUM(D17:D26) -> 1971 | E27: =SUM(E17:E26) -> 43 | F27: =SUM(F17:F26) -> -1928

Sheet CdI
B1: Rubriques du compte des investissements selon la classification par nature
B3: N° | C3: Libellé | D3: KCHF | E3: N° | F3: Libellé | G3: KCHF
B4: 5 | C4: Dépenses d’investissement | D4: =SUM(D5:D13) -> 1971 | E4: 6 | F4: Recettes d’investissement | G4: =SUM(G5:G13) -> 43
B5: 50 | C5: =+'C|InvKCHF'!D6 -> Immobilisations corporelles | D5: =+'C|InvKCHF'!E6 -> 1971 | E5: 60 | F5: =+'C|InvKCHF'!D84 -> Transferts d'immobilisations corporelles dans le PF | G5: =+'C|InvKCHF'!E84 -> 0
B6: 51 | C6: =+'C|InvKCHF'!D15 -> Dépenses d'investissement pour le compte de tiers | D6: =+'C|InvKCHF'!E15 -> 0 | E6: 61 | F6: =+'C|InvKCHF'!D93 -> Remboursements de dépenses d'invest. pour le compte de tiers | G6: =+'C|InvKCHF'!E93 -> 0
B7: 52 | C7: =+'C|InvKCHF'!D24 -> Immobilisations incorporelles | D7: =+'C|InvKCHF'!E24 -> 0 | E7: 62 | F7: =+'C|InvKCHF'!D102 -> Transferts d'immobilisations incorporelles dans le PF | G7: =+'C|InvKCHF'!E102 -> 0
E8: 63 | F8: =+'C|InvKCHF'!D106 -> Subventions d'investissement acquises | G8: =+'C|InvKCHF'!E106 -> 43
B9: 54 | C9: =+'C|InvKCHF'!D28 -> Prêts | D9: =+'C|InvKCHF'!E28 -> 0 | E9: 64 | F9: =+'C|InvKCHF'!D116 -> Remboursements de prêts | G9: =+'C|InvKCHF'!E116 -> 0
B10: 55 | C10: =+'C|InvKCHF'!D38 -> Participations et capital social | D10: =+'C|InvKCHF'!E38 -> 0 | E10: 65 | F10: =+'C|InvKCHF'!D131 -> Transferts de participations | G10: =+'C|InvKCHF'!E131 -> 0
B11: 56 | C11: =+'C|InvKCHF'!D53 -> Propres subventions d'investissement | D11: =+'C|InvKCHF'!E53 -> 0 | E11: 66 | F11: =+'C|InvKCHF'!D141 -> Remboursements de propres subventions d'investissement | G11: =+'C|InvKCHF'!E141 -> 0
B12: 57 | C12: =+'C|InvKCHF'!D63 -> Subventions d'investissement redistribuées | D12: =+'C|InvKCHF'!E63 -> 0 | E12: 67 | F12: =+'C|InvKCHF'!D151 -> Subventions d'investissement à redistribuer | G12: =+'C|InvKCHF'!E151 -> 0
B13: 58 | C13: =+'C|InvKCHF'!D73 -> Dépenses d'investissement extraordinaires [e.o.] | D13: =+'C|InvKCHF'!E73 -> 0 | E13: 68 | F13: =+'C|InvKCHF'!D161 -> Recettes d'investissement extraordinaires [e.o.] | G13: =+'C|InvKCHF'!E161 -> 0

Sheet TabFin
B1: Tableau de financement selon MCH1
B3: Libellé | C3: KCHF | D3: Libellé | E3: KCHF
B4: Charges monétaires | C4: =SUM(C5:C11) -> 12614 | D4: Revenus monétaires | E4: =SUM(E5:E11) -> 14279
B5: =+CdR!C5 -> Charges de personnel | C5: =+CdR!D5 -> 2020 | D5: =+CdR!F5 -> Revenus fiscaux | E5: =+CdR!G5 -> 7651
B6: =+CdR!C6 -> Charges de biens et services et autres charges d'exploitation | C6: =+CdR!D6 -> 4076 | D6: =+CdR!F6 -> Patentes et concessions | E6: =+CdR!G6 -> 12
B7: =+CdR!C7 -> Charges d’armement (Confédération uniquement) | D7: =+CdR!F7 -> Taxes et redevances | E7: =+CdR!G7 -> 5076
D8: =+CdR!F8 -> Revenus divers | E8: 0
B9: =+CdR!C9 -> Charges financières | C9: =+CdR!D9 -> 125 | D9: =+CdR!F9 -> Revenus financiers | E9: =+CdR!G9 -> 167
B10: =+CdR!C11 -> Charges de transferts | C10: =+CdR!D11 -> 6393 | D10: =+CdR!F11 -> Revenus de transferts | E10: =+CdR!G11 -> 1373
B11: =+CdR!C12 -> Subventions redistribuées | C11: =+CdR!D12 -> 0 | D11: =+CdR!F12 -> Subventions à redistribuer | E11: =+CdR!G12 -> 0
B12: Résultat monétaire | E12: =+E4-C4 -> 1665
B14: Amortissements | E14: =SUM(E15:E15) -> 671
B15: =+CdR!C8 -> Amortissements du patrimoine administratif | E15: =+CdR!D8 -> 671
B17: Autres charges non monétaires | C17: =SUM(C18:C21) -> 1261 | D17: Revenus non monétaires | E17: =SUM(E18:E21) -> 331
B18: =+CdR!C10 -> Attributions aux financements spéciaux [FSp] et fonds | C18: =+CdR!D10 -> 0 | D18: =+CdR!F10 -> Prélèvements sur les financements spéciaux [FSp] et fonds | E18: =+CdR!G10 -> 23
D19: =+'C|RésKCHF'!D99 -> Activations de prestations propres | E19: =+CdR!G8 -> 17
B20: Charges extraordinaires | C20: =+CdR!D13 -> 991 | D20: =+CdR!F13 -> Revenus extraordinaires [e.o.] | E20: =+CdR!G13 -> 21
B21: =+CdR!C14 -> Imputations internes | C21: =+CdR!D14 -> 270 | D21: =+CdR!F14 -> Imputations internes | E21: =+CdR!G14 -> 270
B22: Autres charges non monétaires - revenus non monétaires | E22: =+C17-E17 -> 930
B23: Excédent de revenus (boni) | E23: =+CdREch!F35 -> 64
B24: Excédent et autres opérations non monétaires | E24: =+C17+E23-E17 -> 994
B26: Autofinancement | E26: =+E14+E24 -> 1665
B28: Investissement brut | C28: =ROUND(CdI!D4,0) -> 1971
B29: Recettes d'investissement | D29: =ROUND(CdI!G4,0) -> 43
B30: Investissement net | E30: =+C28-D29 -> 1928
B31: Emprunt | E31: =+E30-E26 -> 263
B33: Variation du patrimoine administratif | E33: =+E30-E14 -> 1257
B34: Variation du capital propre | E34: =+E24 -> 994

Sheet FxTré
B1: Tableau des flux de trésorerie préconisé par le MCH2
C3: KCHF
B4: + Excédent de revenus du compte de résultats | C4: =CdR!D16 -> 64
B5: + Amortissements du patrimoine administratif | C5: =CdR!D8 -> 671
B6: + Attributions à des comptes du capital propre | C6: =+'C|RésKCHF'!E63+'C|RésKCHF'!E39 -> 991
B7: – Prélèvements sur des comptes du capital propre | C7: =-'C|RésKCHF'!E115-'C|RésKCHF'!E137 -> -21
B8: – Activation de prestations propres | C8: =-'C|RésKCHF'!E99 -> -17
B9: – Correction de valeur de placements | C9: =-'C|RésKCHF'!E107 -> -9
B10: + Diminution des créances | C10: =+BiKCHF!E8-BiKCHF!H8 -> 111
B11: – Augmentation des actifs de régularisation | C11: =BiKCHF!E10-BiKCHF!H10 -> -69
B12: + Augmentation des engagements courants | C12: =+BiKCHF!H27-BiKCHF!E27 -> 260
B13: + Augmentation des provisions à court terme | C13: =+BiKCHF!H30-BiKCHF!E30 -> 46
B14: – Diminution des passifs de régularisation | C14: =+BiKCHF!H29-BiKCHF!E29 -> -12
B15: – Diminution des financements spéciaux et fonds sous capitaux de tiers | C15: =-BiKCHF!E33+BiKCHF!H33 -> -26
B16: Flux de trésorerie provenant de l'activité opérationnelle [FTO] | C16: =SUM(C4:C15) -> 1989
B18: – Dépenses pour des investissements nets avec incidence sur la trésorerie | C18: =-'C|InvKCHF'!E170+'C|RésKCHF'!E99 -> -1911
B19: Flux de trésorerie provenant de l'activité d'investissement [FTI] | C19: =+C18 -> -1911
B20: Flux de trésorerie provenant de l'activité de placement [FTP] | C20: 0
B21: Flux de trésorerie provenant de l'activité d'investissement et de placement [FTI+P] | C21: =+C19+C20 -> -1911
B23: + Augmentation des engagements financiers à court terme | C23: =+BiKCHF!F28 -> 500
B24: – Remboursement d'engagements financiers à court terme | C24: =-BiKCHF!G28 -> -500
B25: + Augmentation des engagements financiers à long terme | C25: =+BiKCHF!F31 -> 600
B26: – Remboursement d'engagements financiers à long terme | C26: =-BiKCHF!G31 -> -1500
B27: Flux de trésorerie provenant de l'activité de financement [FTF] | C27: =SUM(C23:C26) -> -900
B29: Variation des liquidités et placements à court terme [FTO] + [FTI+P] + [FTF] | C29: =+C16+C21+C27 -> -822
B31: Liquidités et placements à court terme au 01.01.Année t (Compte 100) | C31: =+BiKCHF!E7 -> 1605
B32: Liquidités et placements à court terme au 31.12.Année t (Compte 100) | C32: =+BiKCHF!H7 -> 783
B34: Contôle avec la variation des liquidités au bilan | C34: =+C32-C31 -> -822

Sheet AmCalc
B1: Calcul pour la comparaison d'un amortissement linéaire et dégressif
B3: Durée d'utilisation | D3: 10 | E3: 10
B4: Méthode d'amortissement | D4: linéaire | E4: dégressif
B5: Taux d'amortissement (%) | D5: 10 | E5: 35
B6: Années
B7: 0 | C7: t | D7: 10 | E7: =+D7 -> 10
B8: 1 | C8: t+1 | D8: =+D$7-(D$5/10*$B8) -> 9 | E8: =+E7-(E$5/100*E7) -> 6.5
B9: =+B8+1 -> 2 | C9: t+2 | D9: =+D$7-(D$5/10*$B9) -> 8 | E9: =+E8-(E$5/100*E8) -> 4.225
B10: =+B9+1 -> 3 | C10: t+3 | D10: 7 | E10: 2.74625
B11: 4 | C11: t+4 | D11: 6 | E11: 1.7850625
B12: 5 | C12: t+5 | D12: 5 | E12: 1.160290625
B13: 6 | C13: t+6 | D13: 4 | E13: 0.7541889063
B14: 7 | C14: t+7 | D14: 3 | E14: 0.4902227891
B15: 8 | C15: t+8 | D15: 2 | E15: 0.3186448129
B16: 9 | C16: t+9 | D16: 1 | E16: 0.2071191284
B17: 10 | C17: t+10 | D17: 0 | E17: 0.1346274334

Sheet ChCofi
B1: Compte de financement de la Confédération, 2018
B3: Libellé | C3: Débit | D3: Crédit | E3: Solde
B4: Recettes fiscales | C4: 68121
B5: Patentes et concessions | C5: 1212
B6: Recettes financières | C6: 1121
B7: Autres recettes courantes | C7: 1789
B8: Recettes d'investissement | C8: 1270
B9: Recettes ordinaires | C9: =SUM(C4:C8) -> 73513
B10: Dépenses propres | D10: 10252
B11: Dépenses de transfert courantes | D11: 48120
B12: Dépenses financières | D12: 1203
B13: Dépenses d'investissement | D13: 11000
B14: Dépenses ordinaires | D14: =SUM(D10:D13) -> 70575
B15: Solde de financement ordinaire (excédent) | E15: =+C9-D14 -> 2938
B17: Recettes extraordinaires | D17: 90
B18: Dépenses extraordinaires | C18: 0
B19: Solde de financement total | E19: =+E15+D17-C18 -> 3028

Sheet ImpII
B1: Importance des imputations internes dans le total des charges et des revenus
B3: N° | C3: Libellé | D3: KCHF | E3: N° | F3: Libellé | G3: KCHF
B4: 3 | C4: Charges | D4: =+'C|RésKCHF'!E5 -> 14546 | E4: 4 | F4: Revenus | G4: =+'C|RésKCHF'!E76 -> 14610
B5: … | C5: dont … | E5: … | F5: dont …
B6: 39 | C6: =+'C|RésCHF'!D59 -> Imputations internes | D6: =SUM(D7:D14) -> 270 | E6: 49 | F6: =+'C|RésCHF'!D128 -> Imputations internes | G6: =SUM(G7:G14) -> 270
B7: 390 | C7: =+'C|RésCHF'!D60 -> Approvisionnement en matériel et marchandises | D7: =+'C|RésKCHF'!E65 -> 0 | E7: =+B7+100 -> 490 | F7: =+C7 -> Approvisionnement en matériel et marchandises | G7: =+'C|RésKCHF'!E139 -> 0
B8: =+B7+1 -> 391 | C8: =+'C|RésCHF'!D61 -> Prestations de service | D8: =+'C|RésKCHF'!E66 -> 144 | E8: =+B8+100 -> 491 | F8: =+C8 -> Prestations de service | G8: =+'C|RésKCHF'!E140 -> 144
B9: =+B8+1 -> 392 | C9: =+'C|RésCHF'!D62 -> Baux à ferme, loyers, frais d'utilisation | D9: =+'C|RésKCHF'!E67 -> 0 | E9: 492 | F9: Baux à ferme, loyers, frais d'utilisation | G9: =+'C|RésKCHF'!E141 -> 0
B10: =+B9+1 -> 393 | C10: =+'C|RésCHF'!D63 -> Frais administratifs et d'exploitation | D10: =+'C|RésKCHF'!E68 -> 116 | E10: 493 | F10: Frais administratifs et d'exploitation | G10: =+'C|RésKCHF'!E142 -> 116
B11: =+B10+1 -> 394 | C11: =+'C|RésCHF'!D64 -> Intérêts et charges financières théoriques | D11: =+'C|RésKCHF'!E69 -> 10 | E11: 494 | F11: Intérêts et charges financières théoriques | G11: =+'C|RésKCHF'!E143 -> 10
B12: =+B11+1 -> 395 | C12: =+'C|RésCHF'!D65 -> Amortissements planifiés et non planifiés | D12: =+'C|RésKCHF'!E70 -> 0 | E12: 495 | F12: Amortissements planifiés et non planifiés | G12: =+'C|RésKCHF'!E144 -> 0
B13: 398 | C13: =+'C|RésCHF'!D66 -> Virements comptables | D13: =+'C|RésKCHF'!E71 -> 0 | E13: 498 | F13: =+C13 -> Virements comptables | G13: =+'C|RésKCHF'!E145 -> 0
B14: =+B13+1 -> 399 | C14: =+'C|RésCHF'!D67 -> Autres imputations internes | D14: =+'C|RésKCHF'!E72 -> 0 | E14: 499 | F14: Autres imputations internes | G14: =+'C|RésKCHF'!E146 -> 0
B16: Imputations en % du total des charges | D16: =+D6/D4*100 -> 1.856180393 | E16: Transferts en % du total des revenus | G16: =+G6/G4*100 -> 1.848049281
X18: =+#REF!+#REF!+X17+64 -> 

Sheet Fisc
B1: Importance des impôts et des contributions causales dans le total des revenus
B3: N° | C3: Libellé | D3: KCHF
B4: 4 | C4: Revenus | D4: =+'C|RésKCHF'!E76 -> 14610
B5: … | C5: dont …
B6: =+'C|RésKCHF'!C77 -> 40 | C6: =+'C|RésKCHF'!D77 -> Revenus fiscaux | D6: =+'C|RésKCHF'!E77 -> 7651
B7: =+'C|RésKCHF'!C78 -> 400 | C7: =+'C|RésKCHF'!D78 -> Impôts directs, personnes physiques | D7: =+'C|RésKCHF'!E78 -> 6231
B8: =+'C|RésKCHF'!C79 -> 401 | C8: =+'C|RésKCHF'!D79 -> Impôts directs, personnes morales | D8: =+'C|RésKCHF'!E79 -> 501
B9: =+'C|RésKCHF'!C80 -> 402 | C9: =+'C|RésKCHF'!D80 -> Autres impôts directs | D9: =+'C|RésKCHF'!E80 -> 898
B10: =+'C|RésKCHF'!C81 -> 403 | C10: =+'C|RésKCHF'!D81 -> Impôts sur la propriété et sur les charges | D10: =+'C|RésKCHF'!E81 -> 21
B11: […]
B12: =+'C|RésKCHF'!C87 -> 42 | C12: =+'C|RésKCHF'!D87 -> Taxes et redevances | D12: =+'C|RésKCHF'!E87 -> 5076
B13: =+'C|RésKCHF'!C88 -> 420 | C13: =+'C|RésKCHF'!D88 -> Taxes de compensation | D13: =+'C|RésKCHF'!E88 -> 192
B14: =+'C|RésKCHF'!C89 -> 421 | C14: =+'C|RésKCHF'!D89 -> Emoluments pour actes administratifs | D14: =+'C|RésKCHF'!E89 -> 73
B15: =+'C|RésKCHF'!C90 -> 422 | C15: =+'C|RésKCHF'!D90 -> Taxes pour hôpitaux et établissements médicaux… | D15: =+'C|RésKCHF'!E90 -> 0
B16: =+'C|RésKCHF'!C91 -> 423 | C16: =+'C|RésKCHF'!D91 -> Frais d'écolage et taxes de cours | D16: =+'C|RésKCHF'!E91 -> 0
B17: =+'C|RésKCHF'!C92 -> 424 | C17: =+'C|RésKCHF'!D92 -> Taxes d'utilisation et prestations de service | D17: =+'C|RésKCHF'!E92 -> 4651
B18: =+'C|RésKCHF'!C93 -> 425 | C18: =+'C|RésKCHF'!D93 -> Recettes sur ventes | D18: =+'C|RésKCHF'!E93 -> 92
B19: =+'C|RésKCHF'!C94 -> 426 | C19: =+'C|RésKCHF'!D94 -> Remboursements | D19: =+'C|RésKCHF'!E94 -> 68
B20: =+'C|RésKCHF'!C95 -> 427 | C20: =+'C|RésKCHF'!D95 -> Amendes | D20: =+'C|RésKCHF'!E95 -> 0
B21: =+'C|RésKCHF'!C96 -> 429 | C21: =+'C|RésKCHF'!D96 -> Autres taxes | D21: =+'C|RésKCHF'!E96 -> 0
B23: Revenus fiscaux en % du total des revenus | D23: =+D6/$D$4*100 -> 52.36824093
B24: Taxes et redevances en % du total des revenus | D24: =+D12/$D$4*100 -> 34.74332649
B25: Total | D25: =SUM(D23:D24) -> 87.11156742 | X25: =+#REF!+#REF!+X24+64 -> 

Sheet Trans
B1: Importance des transferts dans le total des charges et des revenus
B3: N° | C3: Libellé | D3: KCHF | E3: N° | F3: Libellé | G3: KCHF
B4: 3 | C4: Charges | D4: =+'C|RésKCHF'!E5 -> 14546 | E4: 4 | F4: Revenus | G4: =+'C|RésKCHF'!E76 -> 14610
B5: … | C5: dont … | E5: … | F5: dont …
B6: 36 | C6: =+'C|RésCHF'!D40 -> Charges de transferts | D6: =+'C|RésKCHF'!E40 -> 6393 | E6: 46 | F6: =+'C|RésCHF'!D111 -> Revenus de transferts | G6: =+'C|RésKCHF'!E121 -> 1373
B7: 360 | C7: =+'C|RésCHF'!D41 -> Parts de revenus destinées à des tiers | D7: =+'C|RésKCHF'!E41 -> 0 | E7: 460 | F7: =+'C|RésCHF'!D112 -> Parts à des revenus de tiers | G7: =+'C|RésKCHF'!E122 -> 0
B8: 361 | C8: =+'C|RésCHF'!D42 -> Dédommagements à des collectivités publiques | D8: =+'C|RésKCHF'!E42 -> 3905 | E8: 461 | F8: =+'C|RésCHF'!D113 -> Dédommagements de collectivités publiques | G8: =+'C|RésKCHF'!E123 -> 645
B9: =+B8+1 -> 362 | C9: =+'C|RésCHF'!D43 -> Péréquation financière et compensation des charges | D9: =+'C|RésKCHF'!E43 -> 564 | E9: =+E8+1 -> 462 | F9: =+'C|RésCHF'!D114 -> Péréquation financière et compensation des charges | G9: =+'C|RésKCHF'!E124 -> 610
B10: =+B9+1 -> 363 | C10: =+'C|RésCHF'!D44 -> Subventions à des collectivités publiques et à des tiers | D10: =+'C|RésKCHF'!E44 -> 1924 | E10: =+E9+1 -> 463 | F10: =+'C|RésCHF'!D115 -> Subventions de collectivités publiques et de tiers | G10: =+'C|RésKCHF'!E125 -> 117
B11: [...] * | E11: 469 | F11: =+'C|RésCHF'!D117 -> Autres revenus de transferts | G11: =+'C|RésKCHF'!E127 -> 1
B13: Transferts en % du total des charges | D13: =+D6/D4*100 -> 43.95022687 | E13: Transferts en % du total des revenus | G13: =+G6/G4*100 -> 9.397672827
X15: =+#REF!+#REF!+X14+64 -> 

Sheet PotFis
B1: Revenus à intégrer dans l’estimation du potentiel fiscal
B3: N° | C3: Libellé | D3: KCHF
B4: 4 | C4: =+'C|RésKCHF'!D76 -> Revenus | D4: =+'C|RésKCHF'!E76 -> 14610
B5: … | C5: dont …
B6: 40 | C6: =+'C|RésCHF'!D72 -> Revenus fiscaux | D6: ='C|RésKCHF'!E77 -> 7651
B7: 400 | C7: =+'C|RésCHF'!D73 -> Impôts directs, personnes physiques | D7: ='C|RésKCHF'!E78 -> 6231
B8: 401 | C8: =+'C|RésCHF'!D74 -> Impôts directs, personnes morales | D8: ='C|RésKCHF'!E79 -> 501
B9: 402 | C9: =+'C|RésCHF'!D75 -> Autres impôts directs | D9: ='C|RésKCHF'!E80 -> 898
B10: 403 | C10: =+'C|RésCHF'!D76 -> Impôts sur la propriété et sur les charges | D10: ='C|RésKCHF'!E81 -> 21
B11: 41 | C11: =+'C|RésCHF'!D77 -> Patentes et concessions | D11: =+'C|RésKCHF'!E82 -> 12
B12: 410 | C12: =+'C|RésCHF'!D78 -> Patentes | D12: =+'C|RésKCHF'!E83 -> 0
B13: 411 | C13: =+'C|RésCHF'!D79 -> Banque nationale suisse | D13: =+'C|RésKCHF'!E84 -> 0
B14: 412 | C14: =+'C|RésCHF'!D80 -> Concessions | D14: =+'C|RésKCHF'!E85 -> 12
B15: 413 | C15: =+'C|RésCHF'!D81 -> Parts de revenus à des loteries, Sport-Toto, paris | D15: =+'C|RésKCHF'!E86 -> 0

Sheet TdB
B1: Structure du tableau de bord financier
B3: Groupes | C3: Indicateurs du tableau de bord financier | E3: Indicateurs MCH2
E4: 1ère priorité | F4: 2e priorité
B5: Equilibres | C5: Couverture des charges | D5: I1
B6: budgétaires | C6: Autofinancement de l'investissement net | D6: I2 | E6: #1
C7: Engagements nets supplémentaires | D7: I3
C8: Poids des intérêts nets | D8: I4
B9: Qualité de la | C9: Maîtrise des dépenses courantes par habitant | D9: I5
B10: gestion financière | C10: Effort d'investissement | D10: I6
C11: Exactitude de la prévision fiscale | D11: I7
C12: Intérêt moyen de la dette | D12: I8
B13: Importance de | C13: Taux d'endettement net | D13: I9 | E13: #
B14: l'endettement | C14: Dette brute par rapport aux revenus | D14: I10 | F14: ##
B15: Indicateurs | C15: Taux d'autofinancement | D15: I11 | F15: ##
B16: auxiliaires | C16: Part des charges d'intérêts | D16: I12 | E16: #2
C17: Part du «service de la dette » | D17: I13 | F17: ##
C18: Proportion des investissements | D18: I14 | F18: ##3
C19: Dette nette par habitant | D19: I15 | F19: ##
B21: 1 Indicateur intitulé « Degré d'autofinancement » dans le Manuel MCH2.
B22: 2 Indicateur analogue à l’indicateur du poids des intérêts nets.
B23: 3 Indicateur analogue à l’indicateur de l’effort d'investissement.

Sheet TdBP
B1: Pondération des indicateurs du tableau de bord financier
B3: Groupes | C3: Indicateurs du tableau de bord financier | E3: Pondérations
E4: Indicateurs | F4: Groupes
B5: Equilibres | C5: Couverture des charges | D5: I1 | E5: 2 | F5: 2
B6: budgétaires | C6: Autofinancement de l'investissement net | D6: I2# | E6: 2
C7: Engagements nets supplémentaires | D7: I3 | E7: 2
C8: Poids des intérêts nets | D8: I4 | E8: 1
B9: Qualité de la | C9: Maîtrise des dépenses courantes par habitant | D9: I5 | E9: 2 | F9: 2
B10: gestion financière | C10: Effort d'investissement | D10: I6 | E10: 2
C11: Exactitude de la prévision fiscale | D11: I7 | E11: 1
C12: Intérêt moyen de la dette | D12: I8 | E12: 1
B13: Importance de | C13: Taux d'endettement net | D13: I9# | E13: 2 | F13: 1
B14: l'endettement | C14: Dette brute par rapport aux revenus | D14: I10## | E14: 1
B16: # Indicateur MCH2 de première priorité
B17: ## Indicateur MCH2 de deuxième priorité

Sheet IndCalc
B1: Calcul et notation des indicateurs du tableau de bord financier
B3: Groupes | C3: Indicateurs
D4: Numéro | E4: Formule | G4: Chiffre | H4: Valeur | I4: Note
B5: Equilibres | C5: Couverture des charges | D5: I1 | H5: =+G6/G7*100 -> 107.7832142 | I5: =(IF(H5<90,1,IF(H5<93,2-(93-H5)*(1/3),IF(H5<95.5,3-(95.5-H5)*(1/2.5),IF(H5<97.5,4-(97.5-H5)*(1/2),IF(H5<99,5-(99-H5)*(1/1.5),IF(H5<100,6-(100-H5)*(1/1),IF(H5<103,6,IF(H5<110,6-(H5-103)*(1/7),IF(H5<120,5-(H5-110)*(1/10),4)))))))))) -> 5.316683693
B6: budgétaires | E6: Numérateur | F6: Revenus courants | G6: =+'C|RésKCHF'!E77+'C|RésKCHF'!E82+'C|RésKCHF'!E87+'C|RésKCHF'!E97+'C|RésKCHF'!E102+'C|RésKCHF'!E113+'C|RésKCHF'!E121+'C|RésKCHF'!E130+-'C|RésKCHF'!E136-'C|RésKCHF'!E137+DatAdCHF!E16/1000 -> 14319 | H6: en %
E7: Dénominateur | F7: Charges courantes | G7: =+'C|RésKCHF'!E6+'C|RésKCHF'!E15+'C|RésKCHF'!E26+'C|RésKCHF'!E27+'C|RésKCHF'!E30+'C|RésKCHF'!E37+'C|RésKCHF'!E40+'C|RésKCHF'!E57+'C|RésKCHF'!E58+'C|RésKCHF'!E60+'C|RésKCHF'!E61 -> 13285
C8: Autofinancement de l'investissement net | D8: I2# | H8: =+G9/G10*100 -> 91.09263709 | I8: =IF(H8<25,1,IF(H8<100,6-(100-H8)*(5/75),6)) -> 5.406175806
E9: Numérateur | F9: Autofinancement | G9: =+'C|RésKCHF'!E76-'C|RésKCHF'!E5+'C|RésKCHF'!E27+'C|RésKCHF'!E37-'C|RésKCHF'!E113+'C|RésKCHF'!E45+'C|RésKCHF'!E46+'C|RésKCHF'!E47-'C|RésKCHF'!E126+'C|RésKCHF'!E59+'C|RésKCHF'!E62-'C|RésKCHF'!E136+'C|RésKCHF'!E63-'C|RésKCHF'!E137-DatAdCHF!E15/1000 -> 1682 | H9: en %
E10: Dénominateur | F10: Investissements nets (moyenne sur trois ans) | G10: =('C|InvKCHF'!E5+'C|InvKCHF'!H5+SUM(DatAdCHF!G19:G26)/1000-'C|InvKCHF'!E83-'C|InvKCHF'!H83-SUM(DatAdCHF!G28:G36)/1000)/3 -> 1846.471958
C11: Engagements nets supplémentaires | D11: I3 | H11: =+G12/G13*100 -> 1.768956791 | I11: =(IF(H11<0,6,IF(H11<5,6-(H11-0)*(5/5),1))) -> 4.231043209
E12: Numérateur | F12: Variation des engagements nets entre le 1.1 et le 31.12 | G12: =(BiKCHF!H26-DatAdCHF!E41/1000-BiKCHF!H6)-(BiKCHF!E26-DatAdCHF!F41/1000-BiKCHF!E6) -> 223 | H12: en %
E13: Dénominateur | F13: Dépenses courantes | G13: =+SldPri!E21 -> 12606.3
C14: Poids des intérêts nets | D14: I4 | H14: =+G15/G16*100 -> -0.4356473227 | I14: =(IF(H14<0,6,IF(H14<4,6-(H14-0)*(1/4),IF(H14<7,5-(H14-4)*(1/3),IF(H14<13,4-(H14-7)*(3/6),1))))) -> 6
E15: Numérateur | F15: Intérêts nets | G15: =+'C|RésKCHF'!E31+'C|RésKCHF'!E33+'C|RésKCHF'!E34-'C|RésKCHF'!E103-DatAdCHF!E14/1000-'C|RésKCHF'!E106-'C|RésKCHF'!E108-'C|RésKCHF'!E110-'C|RésKCHF'!E111 -> -33 | H15: en %
E16: Dénominateur | F16: Revenus fiscaux fondamentaux | G16: =+'C|RésKCHF'!E78+'C|RésKCHF'!E79+DatAdCHF!E11/1000+DatAdCHF!E12/1000+DatAdCHF!E13/1000 -> 7574.93465
B17: Qualité de la | C17: Maîtrise des dépenses courantes par habitant | D17: I5 | H17: =+G18/G19*100 -> 3.486318497 | I17: =IF(H17<1,6,IF(H17<6,6-(H17-1)*(5/5),1)) -> 3.513681503
B18: gestion financière | E18: Numérateur | F18: Variations des dépenses courantes par rapport à l'année précédente | G18: =(SldPri!E21/DatAdCHF!E4-SldPri!N21/DatAdCHF!F4)*1000 -> 136.4245846 | H18: en %
E19: Dénominateur | F19: Dépenses courantes de l'exercice précédent par habitant | G19: =+SldPri!N21/DatAdCHF!F4*1000 -> 3913.14175
C20: Effort d'investissement | D20: I6 | H20: =+G21/G22*100 -> 14.64721574 | I20: =(IF(H20<0,1,IF(H20<3,4-(3-H20)*(1/1),IF(H20<7,6-(7-H20)*(1/2),IF(H20<10,6,IF(H20<14,6-(H20-10)*(1/2),IF(H20<17,4-(H20-14)*(1/1),1))))))) -> 3.352784256
E21: Numérateur | F21: =+F10 -> Investissements nets (moyenne sur trois ans) | G21: =+G10 -> 1846.471958 | H21: en %
E22: Dénominateur | F22: =+F13 -> Dépenses courantes | G22: =+G13 -> 12606.3
C23: Exactitude de la prévision fiscale | D23: I7 | H23: =+G24/G25*100 -> -5.347593583 | I23: =(IF(H23<-10,4,IF(H23<-1,6-(-1-H23)*(2/9),IF(H23<1,6,IF(H23<5,6-(H23-1)*(5/4),1))))) -> 5.033868093
E24: Numérateur | F24: Différence entre les revenus fiscaux fondamentaux budgetés et effectifs | G24: =+'C|RésKCHF'!F78+'C|RésKCHF'!F79-'C|RésKCHF'!E78-'C|RésKCHF'!E79 -> -360 | H24: en %
E25: Dénominateur | F25: Revenus fiscaux fondamentaux effectifs | G25: =+'C|RésKCHF'!E78+'C|RésKCHF'!E79 -> 6732
C26: Intérêt moyen de la dette | D26: I8 | H26: =+G27/G28*100 -> 1.197348119 | I26: =IF(H26<2.5,6,IF(H26>7.5,1,6-(H26-2.5)*(5/5))) -> 6
E27: Numérateur | F27: Intérêts passifs | G27: =DatAdCHF!E8/1000 -> 60.46608 | H27: en %
E28: Dénominateur | F28: Moyenne de la dette brute au 1.1 et au 31.12 | G28: =(BiKCHF!E28+BiKCHF!H28+BiKCHF!H31+BiKCHF!E31-DatAdCHF!E39-DatAdCHF!F39-DatAdCHF!E40-DatAdCHF!F40-DatAdCHF!E41-DatAdCHF!F41)/2 -> 5050
B29: Importance de | C29: Taux d'endettement net | D29: I9# | H29: =+G30/G31*100 -> 30.10064044 | I29: =IF(H29<=50,6,IF(H29<=100,6-(H29-50)*(1/50),IF(H29<200,5-(H29-100)*(4/100),1))) -> 6
B30: l'endettement | E30: Numérateur | F30: Engagements nets | G30: =+BiKCHF!H26-BiKCHF!H6-DatAdCHF!E41 -> 2303 | H30: en %
E31: Dénominateur | F31: Revenus fiscaux | G31: =+'C|RésKCHF'!E77 -> 7651
C32: Dette brute par rapport aux revenus | D32: I10## | H32: =+G33/G34*100 -> 44.14414414 | I32: =IF(H32<25,6,IF(H32<125,6-(H32-25)*(2/100),IF(H32<200,4-(H32-125)*(3/75),1))) -> 5.617117117
E33: Numérateur | F33: Dette brute | G33: =+BiKCHF!H27+BiKCHF!H28-DatAdCHF!E39/1000+BiKCHF!H31-DatAdCHF!E40/1000-DatAdCHF!E41/1000 -> 6321 | H33: en %
E34: Dénominateur | F34: Revenus courants | G34: =+'C|RésKCHF'!E77+'C|RésKCHF'!E82+'C|RésKCHF'!E87+'C|RésKCHF'!E97+'C|RésKCHF'!E102+'C|RésKCHF'!E113+'C|RésKCHF'!E121+'C|RésKCHF'!E130-'C|RésKCHF'!E136-'C|RésKCHF'!E137+DatAdCHF!E16 -> 14319
B35: Indicateurs | C35: Taux d'autofinancement | D35: I11## | H35: =+G36/G37*100 -> 11.74663035 | I35: =IF(H35>=8,6,IF(H35>=4,6-(8-H35)*(2/4),IF(H35>=1,4-(4-H35)*(3/3),1))) -> 6
B36: auxiliaires | E36: Numérateur | F36: =+F9 -> Autofinancement | G36: =+G9 -> 1682 | H36: en %
E37: Dénominateur | F37: =+F34 -> Revenus courants | G37: =+G34 -> 14319
C38: Part des charges d'intérêts | D38: I12# | H38: =+G39/G40*100 -> 0.4329911307 | I38: =IF(H38<=0,6,IF(H38<4,6-(H38-0)*(1/2),IF(H38<7,6-(H38-2)*(1/1),1))) -> 5.783504435
E39: Numérateur | F39: =+F15 -> Intérêts nets | G39: =+'C|RésKCHF'!E31-'C|RésKCHF'!E103 -> 62 | H39: en %
E40: Dénominateur | F40: =+F37 -> Revenus courants | G40: =+G34 -> 14319
C41: Part du « service de la dette » | D41: I13## | H41: =+G42/G43*100 -> 5.119072561 | I41: =IF(H41<=2.5,6,IF(H41<15,6-(H41-2.5)*(1/2.5),1)) -> 4.952370976
E42: Numérateur | F42: Service de la dette | G42: =+'C|RésKCHF'!E31-'C|RésKCHF'!E103+'C|RésKCHF'!E27+'C|RésKCHF'!E45+'C|RésKCHF'!E46+'C|RésKCHF'!E47-'C|RésKCHF'!E126 -> 733 | H42: en %
E43: Dénominateur | F43: =+F40 -> Revenus courants | G43: =+G40 -> 14319
C44: Proportion des investissements | D44: I14## | H44: =+G45/G46*100 -> 13.52102241 | I44: =(IF(H44<0,1,IF(H44<3,4-(3-H44)*(1/1),IF(H44<7,6-(7-H44)*(1/2),IF(H44<10,6,IF(H44<14,6-(H44-10)*(1/2),IF(H44<17,4-(H44-14)*(1/1),1))))))) -> 4.239488794
E45: Numérateur | F45: Investissements bruts | G45: =+'C|InvKCHF'!E5-'C|InvKCHF'!E63 -> 1971 | H45: en %
E46: Dénominateur | F46: Dépenses totales | G46: =+SldPri!E31 -> 14577.3
C47: Dette nette par habitant | D47: I15## | H47: =+G48/G49*1000 -> 739.8008352 | I47: =IF(H47<=0,6,IF(H47<4000,6-(H47-0)*(2/4000),IF(H47<7000,4-(H47-4000)*(3/3000),1))) -> 5.630099582
E48: Numérateur | F48: =+F30 -> Engagements nets | G48: =+G30 -> 2303 | H48: en CHF
E49: Dénominateur | F49: Population résidente permanente | G49: =+DatAdCHF!E4 -> 3113

Sheet TdBSyn
B1: Synthèse du tableau de bord financier
B4: Groupes | C4: Indicateurs du tableau de bord financier | D4: Indicateurs | I4: Groupes | K4: Note de synthèse
D5: Numéro | E5: Valeur | F5: Note | G5: Pondération | I5: Note de synthèse | J5: Pondération | K5: globale
B6: Equilibres | C6: Couverture des charges | D6: I1 | E6: =+IndCalc!H5 -> 107.7832142 | F6: =+IndCalc!I5 -> 5.316683693 | G6: 2 | I6: =(F6*G6+F7*G7+F8*G8+F9*G9)/SUM(G6:G9) -> 5.129686488 | J6: 2 | K6: =+(J6*I6+J10*I10+J14*I14)/SUM(J6:J15) -> 4.877469044
B7: budgétaires | C7: Autofinancement de l'investissement net | D7: I2# | E7: =+IndCalc!H8 -> 91.09263709 | F7: =+IndCalc!I8 -> 5.406175806 | G7: 2
C8: Engagements nets supplémentaires | D8: I3 | E8: =+IndCalc!H11 -> 1.768956791 | F8: =+IndCalc!I11 -> 4.231043209 | G8: 2
C9: Poids des intérêts nets | D9: I4 | E9: =+IndCalc!H14 -> -0.4356473227 | F9: =+IndCalc!I14 -> 6 | G9: 1
B10: Qualité de la | C10: Maîtrise des dépenses courantes par habitant | D10: I5 | E10: =+IndCalc!H17 -> 3.486318497 | F10: =+IndCalc!I17 -> 3.513681503 | G10: 2 | I10: =(F10*G10+F11*G11+F12*G12+F13*G13)/SUM(G10:G13) -> 4.127799935 | J10: 2
B11: gestion financière | C11: Effort d'investissement | D11: I6 | E11: =+IndCalc!H20 -> 14.64721574 | F11: =+IndCalc!I20 -> 3.352784256 | G11: 2
C12: Exactitude de la prévision fiscale | D12: I7 | E12: =+IndCalc!H23 -> -5.347593583 | F12: =+IndCalc!I23 -> 5.033868093 | G12: 1
C13: Intérêt moyen de la dette | D13: I8 | E13: =+IndCalc!H26 -> 1.197348119 | F13: =+IndCalc!I26 -> 6 | G13: 1
B14: Importance de | C14: Taux d'endettement net | D14: I9# | E14: =+IndCalc!H29 -> 30.10064044 | F14: =+IndCalc!I29 -> 6 | G14: 2 | I14: =(F14*G14+F15*G15)/SUM(G14:G15) -> 5.872372372 | J14: 1
B15: l'endettement | C15: Dette brute par rapport aux revenus | D15: I10## | E15: =+IndCalc!H32 -> 44.14414414 | F15: =+IndCalc!I32 -> 5.617117117 | G15: 1
B16: Indicateurs | C16: Taux d'autofinancement | D16: I11## | E16: =+IndCalc!H35 -> 11.74663035 | F16: =+IndCalc!I35 -> 6
B17: auxiliaires | C17: Part des charges d'intérêts | D17: I12# | E17: =+IndCalc!H38 -> 0.4329911307 | F17: =+IndCalc!I38 -> 5.783504435
C18: Part du service de la dette | D18: I13## | E18: =+IndCalc!H41 -> 5.119072561 | F18: =+IndCalc!I41 -> 4.952370976
C19: Proportion des investissements | D19: I14## | E19: =+IndCalc!H44 -> 13.52102241 | F19: =+IndCalc!I44 -> 4.239488794
C20: Dette nette par habitant | D20: I15## | E20: =+IndCalc!H47 -> 739.8008352 | F20: =+IndCalc!I47 -> 5.630099582
B21: # Indicateur MCH2 de première priorité
B22: ## Indicateur MCH2 de deuxième priorité

Sheet PIB
B1: Estimation du PIB potentiel et de l'écart de production, et du facteur k
B3: Année | C3: 2015 | D3: =+C3+1 -> 2016 | E3: =+D3+1 -> 2017 | F3: =+E3+1 -> 2018 | G3: =+F3+1 -> 2019 | I3: Sources
C4: t-2 | D4: t-1 | E4: t | F4: t+1 | G4: t+2
B5: PIB effectif national (CHF mio) | C5: 661248.6907 | D5: 671836.7605 | E5: 682698.2927 | I5: https://www.seco.admin.ch/seco/de/home/wirtschaftslage---wirtschaftspolitik/Wirtschaftslage/bip-quartalsschaetzungen-/daten.html | P5: selon l'approche de la production, données brutes
B6: Population suisse | C6: 8327126 | D6: 8419550 | E6: 8484130 | I6: https://www.bfs.admin.ch/bfs/fr/home/statistiques/population.html | P6: Population résidante permanente totale, à la fin de l'année
B7: PIB effectif national, par habitant (CHF) | C7: =+C5/C6*1000000 -> 79408.99305 | D7: =+D5/D6*1000000 -> 79794.85371 | E7: =+E5/E6*1000000 -> 80467.68409
B8: Population de MaCollectivité | C8: 3002 | D8: 3097 | E8: 3113
B9: PIB effectif estimé pour MaCollectivité (CHF mio) | C9: =+C7*C8/1000000 -> 238.3857971 | D9: =+D7*D8/1000000 -> 247.1246619 | E9: =+E7*E8/1000000 -> 250.4959006
B10: Pronostic de croissance du PIB pour les années à venir | F10: 0.024 | G10: 0.02 | I10: https://www.seco.admin.ch/seco/fr/home/wirtschaftslage---wirtschaftspolitik/Wirtschaftslage/konjunkturprognosen.html | P10: Groupe d’experts de la Confédération pour les prévisions conjoncturelles, tendance conjoncturelle pronostiquée au printemps 2018
B11: PIB effectif pronostiqué pour MaCollectivité (CHF mio) | F11: =+E9*(1+F10) -> 256.5078022 | G11: =+F11*(1+G10) -> 261.6379582
B12: PIB potentiel pour MaCollectivité à l'Année t (CHF mio) | E12: =AVERAGE(C9:E9,F11:G11) -> 250.830424
B13: Ecart de production (CHF mio) | E13: =+E9-E12 -> -0.3345234347
B14: Ecart de production en % par rapport au PIB potentiel | E14: =+E13/E12 -> -0.001333663713
B16: Année | C16: =+E3 -> 2017
C17: t
B18: =+B12 -> PIB potentiel pour MaCollectivité à l'Année t (CHF mio) | C18: =+E12 -> 250.830424
B19: =+B9 -> PIB effectif estimé pour MaCollectivité (CHF mio) | C19: =+E9 -> 250.4959006
B20: Facteur k estimé pour l'Année t | C20: =+C18/C19 -> 1.001335445

Sheet k
B1: Facteur conjoncturel k pour l'application du frein fédéral à l'endettement
D3: PIB potentiel par rapport à l'effectif (k) | E3: PIB potentiel normé à 1.00 | F3: Maximum du graphique
C4: t-14 | E4: 1 | F4: 1.05
B5: 03 | C5: t-14 | D5: 1.018 | E5: 1 | F5: 1.05
B6: 04 | C6: t-13 | D6: 1.009 | E6: 1 | F6: 1.05
B7: 04 | C7: t-12 | D7: 0.998 | E7: 1 | F7: 1.05
B8: 05 | C8: t-11 | D8: 0.986 | E8: 1 | F8: 1.05
B9: 07 | C9: t-10 | D9: 0.974 | E9: 1 | F9: 1.05
B10: 08 | C10: t-9 | D10: 0.983 | E10: 1 | F10: 1.05
B11: 09 | C11: t-8 | D11: 1.018 | E11: 1 | F11: 1.05
B12: =+B11+1 -> 10 | C12: t-7 | D12: 1.013 | E12: 1 | F12: 1.05
B13: 11 | C13: t-6 | D13: 1.007 | E13: 1 | F13: 1.05
B14: 12 | C14: t-5 | D14: 1.012 | E14: 1 | F14: 1.05
B15: 13 | C15: t-4 | D15: 1.008 | E15: 1 | F15: 1.05
B16: 14 | C16: t-3 | D16: 1.006 | E16: 1 | F16: 1.05
B17: 15 | C17: t-2 | D17: 1.011 | E17: 1 | F17: 1.05
B18: 16 | C18: t-1 | D18: 1.011 | E18: 1 | F18: 1.05
B19: =+B18+1 -> 17 | C19: t | D19: 1.009 | E19: 1 | F19: 1.05
B20: 18 | C20: t+2 | D20: 0.995 | E20: 1 | F20: 1.05
B21: B19 | C21: t+3 | D21: 0.996 | E21: 1 | F21: 1.05
C22: t+3 | E22: 1 | F22: 1.05
B24: Source pour le facteur k : | E24: Administration fédérale des finances, Comptes ou budget des différentes années, Tome 1
E25: https://www.efv.admin.ch/efv/fr/home.html

Sheet SldFin
B1: Solde financier
B3: Année t (2017)
C5: N° | D5: Libellé | E5: KCHF | G5: N° | H5: Libellé | I5: KCHF
B6: + | C6: 30 | D6: =+'C|RésCHF'!D6 -> Charges de personnel | E6: ='C|RésKCHF'!E6 -> 2020 | F6: + | G6: 40 | H6: =+'C|RésCHF'!D72 -> Revenus fiscaux | I6: ='C|RésKCHF'!E77 -> 7651
B7: + | C7: 31 | D7: =+'C|RésCHF'!D15 -> Charges de biens et services et autres charges d'exploitation | E7: ='C|RésKCHF'!E15 -> 4076 | F7: + | G7: 41 | H7: =+'C|RésCHF'!D77 -> Patentes et concessions | I7: ='C|RésKCHF'!E82 -> 12
B8: ― | C8: 3180 | D8: Réévaluations sur créances | E8: =-DatAdCHF!E7/1000 -> -7.7 | F8: + | G8: 42 | H8: =+'C|RésCHF'!D82 -> Taxes et redevances | I8: ='C|RésKCHF'!E87 -> 5076
B9: + | C9: 34 | D9: =+'C|RésCHF'!D30 -> Charges financières | E9: ='C|RésKCHF'!E30 -> 125 | F9: + | G9: 430 | H9: =+'C|RésCHF'!D93 -> Revenus d'exploitation divers | I9: ='C|RésKCHF'!E98 -> 0
B10: ― | C10: 344 | D10: ='C|RésCHF'!D35 -> Réévaluations des immobilisations du patrimoine financier | E10: ='C|RésKCHF'!E35 -> 0 | F10: + | G10: 439 | H10: Autres revenus (avec incidence sur les liquidités) | I10: =+'C|RésKCHF'!E101 -> 0
B11: + | C11: 36 | D11: ='C|RésCHF'!D40 -> Charges de transferts | E11: ='C|RésKCHF'!E40 -> 6393 | F11: + | G11: 44 | H11: =+'C|RésCHF'!D97 -> Revenus financiers | I11: ='C|RésKCHF'!E102 -> 167
B12: ― | C12: 364 | D12: ='C|RésCHF'!D45 -> Réévaluations de prêts du PA | E12: =-'C|RésKCHF'!E45 -> 0 | F12: ― | G12: 444 | H12: =+'C|RésCHF'!D102 -> Réévaluations des immobilisations du patrimoine financier | I12: =-'C|RésKCHF'!E107 -> -9
B13: ― | C13: 365 | D13: ='C|RésCHF'!D46 -> Réévaluations de participations du PA | E13: =-'C|RésKCHF'!E46 -> 0 | F13: ― | G13: 4490 | H13: Réévaluations du patrimoine administratif | I13: =-'C|RésKCHF'!E112 -> 0
B14: ― | C14: 366 | D14: ='C|RésCHF'!D47 -> Amortissements des subventions d'investissement | E14: =-'C|RésKCHF'!E47 -> 0 | F14: + | G14: 46 | H14: =+'C|RésCHF'!D111 -> Revenus de transferts | I14: ='C|RésKCHF'!E121 -> 1373
B15: + | C15: 380 | D15: =+'C|RésCHF'!D52 -> Charges extraordinaires de personnel | E15: =+'C|RésKCHF'!E57 -> 0 | F15: ― | G15: 466 | H15: ='C|RésCHF'!D116 -> Dissolutions des subventions d'investissement portées au passif | I15: =-'C|RésKCHF'!E126 -> 0
B16: + | C16: 381 | D16: =+'C|RésCHF'!D53 -> Charges e.o. de biens, services et charges d'exploitation | E16: =+'C|RésKCHF'!E58 -> 0 | F16: + | G16: 481 | H16: ='C|RésCHF'!D121 -> Revenus extraordinaires de patentes, concessions | I16: =+'C|RésKCHF'!E131 -> 0
B17: + | C17: 3840 | D17: Charges financières extraordinaires | E17: =+DatAdCHF!E9 -> 0 | F17: + | G17: 482 | H17: ='C|RésCHF'!D122 -> Contributions extraordinaires | I17: =+'C|RésKCHF'!E132 -> 0
B18: + | C18: 386 | D18: =+'C|RésCHF'!D56 -> Charges extraordinaires de transferts | E18: =+'C|RésKCHF'!E61 -> 0 | F18: + | G18: 483 | H18: ='C|RésCHF'!D123 -> Revenus extraordinaires divers | I18: =+'C|RésKCHF'!E133 -> 0
F19: + | G19: 484 | H19: ='C|RésCHF'!D124 -> Revenus financiers extraordinaires | I19: =+'C|RésKCHF'!E134 -> 0
F20: + | G20: 486 | H20: =+'C|RésCHF'!D125 -> Revenus extraordinaires de transferts | I20: =+'C|RésKCHF'!E135 -> 0
B21: Dépenses courantes | E21: =SUM(E6:E20) -> 12606.3 | F21: Recettes courantes | I21: =SUM(I6:I20) -> 14270
B22: + | C22: 50 | D22: =+'C|InvCHF'!D6 -> Immobilisations corporelles | E22: =+'C|InvKCHF'!E6 -> 1971 | F22: + | G22: 60 | H22: ='C|InvKCHF'!D84 -> Transferts d'immobilisations corporelles dans le PF | I22: =+'C|InvKCHF'!E84 -> 0
B23: + | C23: 51 | D23: =+'C|InvCHF'!D15 -> Dépenses d'investissement pour le compte de tiers | E23: =+'C|InvKCHF'!E15 -> 0 | F23: + | G23: 61 | H23: ='C|InvCHF'!D88 -> Remboursements de dépenses d'invest. pour le compte de tiers | I23: =+'C|InvKCHF'!E93 -> 0
B24: + | C24: 52 | D24: =+'C|InvKCHF'!D24 -> Immobilisations incorporelles | E24: =+'C|InvKCHF'!E24 -> 0 | F24: + | G24: 62 | H24: ='C|InvCHF'!D97 -> Transferts d'immobilisations incorporelles dans le PF | I24: =+'C|InvKCHF'!E102 -> 0
F25: + | G25: 63 | H25: ='C|InvCHF'!D101 -> Subventions d'investissement acquises | I25: =+'C|InvKCHF'!E106 -> 43
B26: + | C26: 54 | D26: =+'C|InvCHF'!D28 -> Prêts | E26: =+'C|InvKCHF'!E28 -> 0 | F26: + | G26: 64 | H26: ='C|InvCHF'!D111 -> Remboursements de prêts | I26: =+'C|InvKCHF'!E116 -> 0
B27: + | C27: 55 | D27: =+'C|InvCHF'!D38 -> Participations et capital social | E27: =+'C|InvKCHF'!E38 -> 0 | F27: + | G27: 65 | H27: ='C|InvCHF'!D121 -> Transferts de participations | I27: =+'C|InvKCHF'!E131 -> 0
B28: + | C28: 56 | D28: =+'C|InvCHF'!D48 -> Propres subventions d'investissement | E28: =+'C|InvKCHF'!E53 -> 0 | F28: + | G28: 66 | H28: ='C|InvCHF'!D131 -> Remboursements de propres subventions d'investissement | I28: =+'C|InvKCHF'!E141 -> 0
B29: + | C29: 58 | D29: =+'C|InvCHF'!D68 -> Dépenses d'investissement extraordinaires [e.o.] | E29: =+'C|InvKCHF'!E73 -> 0 | F29: + | G29: 68 | H29: ='C|InvCHF'!D151 -> Recettes d'investissement extraordinaires [e.o.] | I29: =+'C|InvKCHF'!E161 -> 0
B30: Dépenses d'investissement | E30: =SUM(E22:E29) -> 1971 | F30: Recettes d'investissement | I30: =SUM(I22:I29) -> 43
B31: Dépenses totales | E31: =+E21+E30 -> 14577.3 | F31: Recettes totales | I31: =+I21+I30 -> 14313
B32: Solde de financement (– Dépenses totales + Recettes totales), ici déficit de financement | I32: =-E31+I31 -> -264.3

Sheet SCS
B1: Estimation du solde conjoncturel | G1: et du solde structurel
C3: Impôt sur les personnes …
C4: … physiques | F4: ... morales | K4: Ecart de production en % du PIB potentiel | M4: 0.05
B5: Facteur k | C5: =+k!D19 -> 1.009 | D5: =+PIB!C20 -> 1.001335445 | F5: =+C5 -> 1.009 | G5: =+D5 -> 1.001335445 | K5: =+B5 -> Facteur k | M5: =1/(M4+1) -> 0.9523809524
B6: Recettes effectives (KCHF) | C6: =+'C|RésKCHF'!E78 -> 6231 | F6: =+'C|RésKCHF'!E79 -> 501 | K6: Impôt sur les personnes physiques
B7: Elasticité α | C7: 1.93 | F7: 1.8 | L7: Recettes effectives (KCHF) | M7: =+C6 -> 6231
B8: kα | C8: =+C5^C7 -> 1.017442678 | D8: =+D5^C7 -> 1.002579009 | F8: =+F5^F7 -> 1.016258285 | G8: =+G5^F7 -> 1.002405084 | L8: Elasticité α | M8: =+C7 -> 1.93
B9: 1–kα | C9: =1-C8 -> -0.01744267822 | D9: =1-D8 -> -0.002579008836 | F9: =1-F8 -> -0.0162582851 | G9: =1-G8 -> -0.002405084488 | L9: 1–kα | M9: =1-(M5^M8) -> 0.08986743736
B10: Recettes conjoncturelles (KCHF) | C10: =+C9*$C$6 -> -108.685328 | D10: =+D9*$C$6 -> -16.06980406 | F10: =+F9*$F$6 -> -8.145400836 | G10: =+G9*$F$6 -> -1.204947329 | L10: Recettes conjoncturelles (KCHF) | M10: =+M7*M9 -> 559.9640022
K11: Impôt sur les personnes morales
B12: Facteur k | C12: =+C5 -> 1.009 | D12: =+D5 -> 1.001335445 | L12: =+L7 -> Recettes effectives (KCHF) | M12: =+F6 -> 501
B13: Dépenses effectives (KCHF) | C13: =+CdREch!D25-CdREch!D6-CdREch!D7 -> 12614 | L13: Elasticité α | M13: =+F7 -> 1.8
B14: Elasticité β | C14: -0.13 | L14: 1–kα | M14: =1-M5^M13 -> 0.08407637399
B15: kβ | C15: =+C12^C14 -> 0.9988359117 | D15: =+D12^C14 -> 0.9998265231 | L15: =+L10 -> Recettes conjoncturelles (KCHF) | M15: =+M12*M14 -> 42.12226337
B16: 1–kβ | C16: =1-C15 -> 0.001164088301 | D16: =1-D15 -> 0.0001734769496 | K16: Dépenses
B17: Dépenses conjoncturelles (KCHF) | C17: =+C16*$C$13 -> 14.68380983 | D17: =+D16*$C$13 -> 2.188238242 | L17: Dépenses effectives (KCHF) | M17: =+C13 -> 12614
L18: Elasticité β | M18: =+C14 -> -0.13
B19: Facteur k | C19: =+C12 -> 1.009 | D19: =+D12 -> 1.001335445 | L19: 1–kβ | M19: =1-M5^M18 -> -0.006362878995
B20: =+B10 -> Recettes conjoncturelles (KCHF) | C20: =+C10+F10 -> -116.8307288 | D20: =+D10+G10 -> -17.27475139 | L20: Dépenses conjoncturelles (KCHF) | M20: =+M17*M19 -> -80.26135564
B21: =+B17 -> Dépenses conjoncturelles (KCHF) | C21: =+C17 -> 14.68380983 | D21: =+D17 -> 2.188238242 | K21: =+B22 -> Solde conjoncturel (KCHF) | M21: =+M10+M15-M20 -> 682.3476212
B22: Solde conjoncturel (KCHF) | C22: =+C20-C21 -> -131.5145387 | D22: =+D20-D21 -> -19.46298963 | K22: =+B25 -> Solde opérationnel effectif (KCHF) | M22: =+C25 -> 1034
K23: =+B27 -> Solde opérationnel structurel (KCHF) | M23: =+M22-M21 -> 351.6523788
B24: Facteur k | C24: =+C19 -> 1.009 | D24: =+D19 -> 1.001335445
B25: Solde opérationnel effectif (KCHF) | C25: =CdREch!F27 -> 1034
B26: =+B22 -> Solde conjoncturel (KCHF) | C26: =+C22 -> -131.5145387 | D26: =+D22 -> -19.46298963
B27: Solde opérationnel structurel (KCHF) | C27: =+C25-C26 -> 1165.514539 | D27: =+C25-D26 -> 1053.46299
B29: Facteur k | C29: =+C24 -> 1.009 | D29: =+D24 -> 1.001335445
B30: Solde de financement effectif (KCHF) | C30: =+SldFin!I32 -> -264.3
B31: =+B26 -> Solde conjoncturel (KCHF) | C31: =ROUND(C26,0) -> -132 | D31: =ROUND(D26,0) -> -19
B32: Solde de financement structurel (KCHF) | C32: =+C30-C31 -> -132.3 | D32: =+C30-D31 -> -245.3

Sheet DetEng
B1: Dette et engagements bruts et nets au 31.12. de l'Année t et de l'Année t-1
B3: Année t (2017) | K3: Année t-1 (2016)
B5: N° | C5: Libellé | D5: KCHF | E5: N° | F5: Libellé | G5: KCHF | H5: Libellé | I5: KCHF | K5: N° | L5: Libellé | M5: KCHF | N5: N° | O5: Libellé | P5: KCHF | Q5: Libellé | R5: KCHF
B6: 100 | C6: =+BiCHF!D7 -> Disponibilités et placements à court terme | D6: =BiKCHF!H7 -> 783 | E6: 200 | F6: =+BiCHF!D25 -> Engagements courants | G6: =BiKCHF!H27 -> 1721 | K6: 100 | L6: =+C6 -> Disponibilités et placements à court terme | M6: =BiKCHF!E7 -> 1605 | N6: 200 | O6: =+F6 -> Engagements courants | P6: =BiKCHF!E27 -> 1461
B7: 101 | C7: =+BiCHF!D8 -> Créances | D7: =BiKCHF!H8 -> 1622 | E7: 201 | F7: =+BiCHF!D26 -> Engagements financiers à court terme | G7: =BiKCHF!H28 -> 0 | K7: 101 | L7: =+C7 -> Créances | M7: =BiKCHF!E8 -> 1733 | N7: 201 | O7: =+F7 -> Engagements financiers à court terme | P7: =BiKCHF!E28 -> 0
B8: 102 | C8: =+BiCHF!D9 -> Placements financiers à court terme | D8: =BiKCHF!H9 -> 0 | K8: 102 | L8: Placements financiers à court terme | M8: =BiKCHF!E9 -> 0
B9: 106 | C9: =+BiCHF!D11 -> Marchandises, fournitures et travaux en cours | D9: =BiKCHF!H11 -> 0 | E9: 206 | F9: =+BiCHF!D29 -> Engagements financiers à long terme | G9: =BiKCHF!H31 -> 4600 | K9: 106 | L9: Marchandises, fournitures et travaux en cours | M9: =BiKCHF!E11 -> 0 | N9: 206 | O9: Engagements financiers à long terme | P9: =BiKCHF!E31 -> 5500
B10: 107 | C10: =+BiCHF!D12 -> Placements financiers à long terme | D10: =BiKCHF!H12 -> 100 | K10: 107 | L10: Placements financiers à long terme | M10: =BiKCHF!E12 -> 91
B11: 108 | C11: =+BiCHF!D13 -> Immobilisations corporelles PF | D11: =BiKCHF!H13 -> 2014 | K11: 108 | L11: Immobilisations corporelles PF | M11: =BiKCHF!E13 -> 2014
C12: Patrimoine financier «disponible» | D12: =SUM(D6:D11) -> 4519 | F12: Dette brute * | G12: =SUM(G6:G11)-DatAdCHF!E39-DatAdCHF!E40-DatAdCHF!E41 -> 6321 | H12: Dette nette | I12: =+G12-D12 -> 1802 | L12: =+C12 -> Patrimoine financier «disponible» | M12: =SUM(M6:M11) -> 5443 | O12: =+F12 -> Dette brute * | P12: =SUM(P6:P11) -> 6961 | Q12: =+H12 -> Dette nette | R12: =+P12-M12 -> 1518
B13: 104 | C13: =+BiCHF!D10 -> Actifs de régularisation | D13: =BiKCHF!H10 -> 165 | E13: 204 | F13: =+BiCHF!D27 -> Passifs de régularisation | G13: =BiKCHF!H29 -> 21 | K13: 104 | L13: =+C13 -> Actifs de régularisation | M13: =BiKCHF!E10 -> 96 | N13: 204 | O13: =+F13 -> Passifs de régularisation | P13: =BiKCHF!E29 -> 33
E14: 205 | F14: =+BiCHF!D28 -> Provisions à court terme | G14: =BiKCHF!H30 -> 323 | N14: 205 | O14: =+F14 -> Provisions à court terme | P14: =BiKCHF!E30 -> 277
E15: 208 | F15: =+BiCHF!D30 -> Provisions à long terme | G15: =BiKCHF!H32 -> 0 | N15: 208 | O15: Provisions à long terme | P15: =BiKCHF!E32 -> 0
B16: 109 | C16: =+BiCHF!D14 -> Créances envers les FSp et fonds sous CT | D16: =BiKCHF!H14 -> 0 | E16: 209 | F16: =+BiCHF!D31 -> Engagements envers les FSp et fonds sous CT | G16: =BiKCHF!H33 -> 322 | K16: 109 | L16: =+C16 -> Créances envers les FSp et fonds sous CT | M16: =BiKCHF!E14 -> 0 | N16: 209 | O16: Engagements envers les FSp et fonds sous CT | P16: =BiKCHF!E33 -> 348
B17: 10 | C17: =+BiCHF!D6 -> Patrimoine financier [PF] | D17: =SUM(D12:D16) -> 4684 | E17: 20 | F17: Capitaux de tiers (=engagements bruts) | G17: =SUM(G12:G16) -> 6987 | H17: Engagements nets | I17: =+G17-D17 -> 2303 | K17: 10 | L17: =+C17 -> Patrimoine financier [PF] | M17: =SUM(M12:M16) -> 5539 | N17: 20 | O17: =+F17 -> Capitaux de tiers (=engagements bruts) | P17: =SUM(P12:P16) -> 7619 | Q17: =+H17 -> Engagements nets | R17: =+P17-M17 -> 2080
B18: * Pour être tout à fait précis, la dette brute correspond aux rubriques 200+201+206, desquelles il faut déduire -s'ils existent- les instruments financiers dérivés à court terme (2016) et à long terme (2066), ainsi que les éventuelles subventions d’investissement inscrites au passif (2068).

Sheet SldPri
B1: Solde primaire de l'Année t et de l'Année t-1
B3: Année t (2017) | K3: Année t-1 (2016)
C5: N° | D5: Libellé | E5: KCHF | G5: N° | H5: Libellé | I5: KCHF | L5: N° | M5: Libellé | N5: KCHF | P5: N° | Q5: Libellé | R5: KCHF
B6: + | C6: 30 | D6: =+'C|RésCHF'!D6 -> Charges de personnel | E6: ='C|RésKCHF'!E6 -> 2020 | F6: + | G6: 40 | H6: =+'C|RésCHF'!D72 -> Revenus fiscaux | I6: ='C|RésKCHF'!E77 -> 7651 | K6: + | L6: 30 | M6: =+D6 -> Charges de personnel | N6: ='C|RésKCHF'!H6 -> 1986 | O6: + | P6: 40 | Q6: =+H6 -> Revenus fiscaux | R6: ='C|RésKCHF'!H77 -> 7538
B7: + | C7: 31 | D7: =+'C|RésCHF'!D15 -> Charges de biens et services et autres charges d'exploitation | E7: ='C|RésKCHF'!E15 -> 4076 | F7: + | G7: 41 | H7: =+'C|RésCHF'!D77 -> Patentes et concessions | I7: ='C|RésKCHF'!E82 -> 12 | K7: + | L7: 31 | M7: =+D7 -> Charges de biens et services et autres charges d'exploitation | N7: ='C|RésKCHF'!H15 -> 4086 | O7: + | P7: 41 | Q7: =+H7 -> Patentes et concessions | R7: ='C|RésKCHF'!H82 -> 12
B8: ― | C8: 3180 | D8: Réévaluations sur créances | E8: =-DatAdCHF!E7/1000 -> -7.7 | F8: + | G8: 42 | H8: =+'C|RésCHF'!D82 -> Taxes et redevances | I8: ='C|RésKCHF'!E87 -> 5076 | K8: ― | L8: 3180 | M8: =+D8 -> Réévaluations sur créances | N8: =-DatAdCHF!F7/1000 -> -12 | O8: + | P8: 42 | Q8: =+H8 -> Taxes et redevances | R8: ='C|RésKCHF'!H87 -> 4852
B9: + | C9: 34 | D9: =+'C|RésCHF'!D30 -> Charges financières | E9: ='C|RésKCHF'!E30 -> 125 | F9: + | G9: 430 | H9: =+'C|RésCHF'!D93 -> Revenus d'exploitation divers | I9: ='C|RésKCHF'!E98 -> 0 | K9: + | L9: 34 | M9: Charges financières | N9: ='C|RésKCHF'!H30 -> 135 | O9: + | P9: 430 | Q9: Revenus d'exploitation divers | R9: ='C|RésKCHF'!H98 -> 0
B10: ― | C10: 344 | D10: ='C|RésCHF'!D35 -> Réévaluations des immobilisations du patrimoine financier | E10: ='C|RésKCHF'!E35 -> 0 | F10: + | G10: 439 | H10: Autres revenus (avec incidence sur les liquidités) | I10: =+'C|RésKCHF'!E101 -> 0 | K10: ― | L10: 344 | M10: Réévaluations des immobilisations du patrimoine financier | N10: ='C|RésKCHF'!H35 -> 0 | O10: + | P10: 439 | Q10: Autres revenus (avec incidence sur les liquidités) | R10: =+'C|RésKCHF'!H101 -> 0
B11: + | C11: 36 | D11: ='C|RésCHF'!D40 -> Charges de transferts | E11: ='C|RésKCHF'!E40 -> 6393 | F11: + | G11: 44 | H11: =+'C|RésCHF'!D97 -> Revenus financiers | I11: ='C|RésKCHF'!E102 -> 167 | K11: + | L11: 36 | M11: Charges de transferts | N11: ='C|RésKCHF'!H40 -> 5924 | O11: + | P11: 44 | Q11: Revenus financiers | R11: ='C|RésKCHF'!H102 -> 160
B12: ― | C12: 364 | D12: ='C|RésCHF'!D45 -> Réévaluations de prêts du PA | E12: =-'C|RésKCHF'!E45 -> 0 | F12: ― | G12: 444 | H12: =+'C|RésCHF'!D102 -> Réévaluations des immobilisations du patrimoine financier | I12: =-'C|RésKCHF'!E107 -> -9 | K12: ― | L12: 364 | M12: Réévaluations de prêts du PA | N12: =-'C|RésKCHF'!H45 -> 0 | O12: ― | P12: 444 | Q12: Réévaluations des immobilisations du patrimoine financier | R12: =-'C|RésKCHF'!H107 -> -3
B13: ― | C13: 365 | D13: ='C|RésCHF'!D46 -> Réévaluations de participations du PA | E13: =-'C|RésKCHF'!E46 -> 0 | F13: ― | G13: 4490 | H13: Réévaluations du patrimoine administratif | I13: =-'C|RésKCHF'!E112 -> 0 | K13: ― | L13: 365 | M13: Réévaluations de participations du PA | N13: =-'C|RésKCHF'!H46 -> 0 | O13: ― | P13: 4490 | Q13: Réévaluations du patrimoine administratif | R13: =-'C|RésKCHF'!H112 -> 0
B14: ― | C14: 366 | D14: ='C|RésCHF'!D47 -> Amortissements des subventions d'investissement | E14: =-'C|RésKCHF'!E47 -> 0 | F14: + | G14: 46 | H14: =+'C|RésCHF'!D111 -> Revenus de transferts | I14: ='C|RésKCHF'!E121 -> 1373 | K14: ― | L14: 366 | M14: Amortissements des subventions d'investissement | N14: =-'C|RésKCHF'!H47 -> 0 | O14: + | P14: 46 | Q14: Revenus de transferts | R14: ='C|RésKCHF'!H121 -> 1366
B15: + | C15: 380 | D15: =+'C|RésCHF'!D52 -> Charges extraordinaires de personnel | E15: =+'C|RésKCHF'!E57 -> 0 | F15: ― | G15: 466 | H15: ='C|RésCHF'!D116 -> Dissolutions des subventions d'investissement portées au passif | I15: =-'C|RésKCHF'!E126 -> 0 | K15: + | L15: 380 | M15: Charges extraordinaires de personnel | N15: =+'C|RésKCHF'!H57 -> 0 | O15: ― | P15: 466 | Q15: Dissolutions des subventions d'investissement portées au passif | R15: =-'C|RésKCHF'!H126 -> 0
B16: + | C16: 381 | D16: =+'C|RésCHF'!D53 -> Charges e.o. de biens, services et charges d'exploitation | E16: =+'C|RésKCHF'!E58 -> 0 | F16: + | G16: 481 | H16: ='C|RésCHF'!D121 -> Revenus extraordinaires de patentes, concessions | I16: =+'C|RésKCHF'!E131 -> 0 | K16: + | L16: 381 | M16: Charges e.o. de biens, services et charges d'exploitation | N16: =+'C|RésKCHF'!H58 -> 0 | O16: + | P16: 481 | Q16: Revenus extraordinaires de patentes, concessions | R16: =+'C|RésKCHF'!H131 -> 0
B17: + | C17: 3840 | D17: Charges financières extraordinaires | E17: =+DatAdCHF!E9 -> 0 | F17: + | G17: 482 | H17: ='C|RésCHF'!D122 -> Contributions extraordinaires | I17: =+'C|RésKCHF'!E132 -> 0 | K17: + | L17: 3840 | M17: Charges financières extraordinaires | N17: =+'C|RésKCHF'!H60 -> 0 | O17: + | P17: 482 | Q17: Contributions extraordinaires | R17: =+'C|RésKCHF'!H132 -> 0
B18: + | C18: 386 | D18: =+'C|RésCHF'!D56 -> Charges extraordinaires de transferts | E18: =+'C|RésKCHF'!E61 -> 0 | F18: + | G18: 483 | H18: ='C|RésCHF'!D123 -> Revenus extraordinaires divers | I18: =+'C|RésKCHF'!E133 -> 0 | K18: + | L18: 386 | M18: Charges extraordinaires de transferts | N18: =+'C|RésKCHF'!H61 -> 0 | O18: + | P18: 483 | Q18: Revenus extraordinaires divers | R18: =+'C|RésKCHF'!H133 -> 0
F19: + | G19: 484 | H19: ='C|RésCHF'!D124 -> Revenus financiers extraordinaires | I19: =+'C|RésKCHF'!E134 -> 0 | O19: + | P19: 484 | Q19: Revenus financiers extraordinaires | R19: =+'C|RésKCHF'!H134 -> 0
F20: + | G20: 486 | H20: =+'C|RésCHF'!D125 -> Revenus extraordinaires de transferts | I20: =+'C|RésKCHF'!E135 -> 0 | O20: + | P20: 486 | Q20: Revenus extraordinaires de transferts | R20: =+'C|RésKCHF'!H135 -> 0
B21: Dépenses courantes | E21: =SUM(E6:E20) -> 12606.3 | F21: Recettes courantes | I21: =SUM(I6:I20) -> 14270 | K21: =+B21 -> Dépenses courantes | N21: =SUM(N6:N20) -> 12119 | O21: =+F21 -> Recettes courantes | R21: =SUM(R6:R20) -> 13925
B22: + | C22: 50 | D22: =+'C|InvCHF'!D6 -> Immobilisations corporelles | E22: =+'C|InvKCHF'!E6 -> 1971 | F22: + | G22: 60 | H22: ='C|InvKCHF'!D84 -> Transferts d'immobilisations corporelles dans le PF | I22: =+'C|InvKCHF'!E84 -> 0 | K22: + | L22: 50 | M22: =+D22 -> Immobilisations corporelles | N22: =+'C|InvKCHF'!H6 -> 1775 | O22: + | P22: 60 | Q22: =+H22 -> Transferts d'immobilisations corporelles dans le PF | R22: =+'C|InvKCHF'!H84 -> 0
B23: + | C23: 51 | D23: =+'C|InvCHF'!D15 -> Dépenses d'investissement pour le compte de tiers | E23: =+'C|InvKCHF'!E15 -> 0 | F23: + | G23: 61 | H23: ='C|InvCHF'!D88 -> Remboursements de dépenses d'invest. pour le compte de tiers | I23: =+'C|InvKCHF'!E93 -> 0 | K23: + | L23: 51 | M23: =+D23 -> Dépenses d'investissement pour le compte de tiers | N23: =+'C|InvKCHF'!H15 -> 0 | O23: + | P23: 61 | Q23: =+H23 -> Remboursements de dépenses d'invest. pour le compte de tiers | R23: =+'C|InvKCHF'!H93 -> 0
B24: + | C24: 52 | D24: =+'C|InvKCHF'!D24 -> Immobilisations incorporelles | E24: =+'C|InvKCHF'!E24 -> 0 | F24: + | G24: 62 | H24: ='C|InvCHF'!D97 -> Transferts d'immobilisations incorporelles dans le PF | I24: =+'C|InvKCHF'!E102 -> 0 | K24: + | L24: 52 | M24: =+D24 -> Immobilisations incorporelles | N24: =+'C|InvKCHF'!H24 -> 0 | O24: + | P24: 62 | Q24: =+H24 -> Transferts d'immobilisations incorporelles dans le PF | R24: =+'C|InvKCHF'!H102 -> 0
F25: + | G25: 63 | H25: ='C|InvCHF'!D101 -> Subventions d'investissement acquises | I25: =+'C|InvKCHF'!E106 -> 43 | M25: 0 | O25: + | P25: 63 | Q25: Subventions d'investissement acquises | R25: =+'C|InvKCHF'!H106 -> 10
B26: + | C26: 54 | D26: =+'C|InvCHF'!D28 -> Prêts | E26: =+'C|InvKCHF'!E28 -> 0 | F26: + | G26: 64 | H26: ='C|InvCHF'!D111 -> Remboursements de prêts | I26: =+'C|InvKCHF'!E116 -> 0 | K26: + | L26: 54 | M26: Prêts | N26: =+'C|InvKCHF'!H28 -> 0 | O26: + | P26: 64 | Q26: Remboursements de prêts | R26: =+'C|InvKCHF'!H116 -> 0
B27: + | C27: 55 | D27: =+'C|InvCHF'!D38 -> Participations et capital social | E27: =+'C|InvKCHF'!E38 -> 0 | F27: + | G27: 65 | H27: ='C|InvCHF'!D121 -> Transferts de participations | I27: =+'C|InvKCHF'!E131 -> 0 | K27: + | L27: 55 | M27: Participations et capital social | N27: =+'C|InvKCHF'!H38 -> 0 | O27: + | P27: 65 | Q27: Transferts de participations | R27: =+'C|InvKCHF'!H131 -> 0
B28: + | C28: 56 | D28: =+'C|InvCHF'!D48 -> Propres subventions d'investissement | E28: =+'C|InvKCHF'!E53 -> 0 | F28: + | G28: 66 | H28: ='C|InvCHF'!D131 -> Remboursements de propres subventions d'investissement | I28: =+'C|InvKCHF'!E141 -> 0 | K28: + | L28: 56 | M28: Propres subventions d'investissement | N28: =+'C|InvKCHF'!H53 -> 0 | O28: + | P28: 66 | Q28: Remboursements de propres subventions d'investissement | R28: =+'C|InvKCHF'!H141 -> 0
B29: + | C29: 58 | D29: =+'C|InvCHF'!D68 -> Dépenses d'investissement extraordinaires [e.o.] | E29: =+'C|InvKCHF'!E73 -> 0 | F29: + | G29: 68 | H29: ='C|InvCHF'!D151 -> Recettes d'investissement extraordinaires [e.o.] | I29: =+'C|InvKCHF'!E161 -> 0 | K29: + | L29: 58 | M29: Dépenses d'investissement extraordinaires [e.o.] | N29: =+'C|InvKCHF'!H73 -> 0 | O29: + | P29: 68 | Q29: =+H29 -> Recettes d'investissement extraordinaires [e.o.] | R29: =+'C|InvKCHF'!H161 -> 0
B30: Dépenses d'investissement | E30: =SUM(E22:E29) -> 1971 | F30: Recettes d'investissement | I30: =SUM(I22:I29) -> 43 | K30: =+B30 -> Dépenses d'investissement | N30: =SUM(N22:N29) -> 1775 | O30: =+F30 -> Recettes d'investissement | R30: =SUM(R22:R29) -> 10
B31: Dépenses totales | E31: =+E21+E30 -> 14577.3 | F31: Recettes totales | I31: =+I21+I30 -> 14313 | K31: =+B31 -> Dépenses totales | N31: =+N21+N30 -> 13894 | O31: =+F31 -> Recettes totales | R31: =+R21+R30 -> 13935 | U31: =+R31-N31 -> 41
B32: dont | C32: 340 | D32: =+'C|RésCHF'!D31 -> Charges d'intérêts | E32: =+'C|RésKCHF'!E31 -> 74 | F32: =+$B$32 -> dont | G32: 440 | H32: =+'C|RésCHF'!D98 -> Revenus des intérêts | I32: ='C|RésKCHF'!E103 -> 12 | K32: =+$B$32 -> dont | L32: 340 | M32: =+D32 -> Charges d'intérêts | N32: =+'C|RésKCHF'!H31 -> 92 | O32: =+$B$32 -> dont | P32: 440 | Q32: =+H32 -> Revenus des intérêts | R32: ='C|RésKCHF'!H103 -> 16
C33: 342 | D33: Frais d'approvisionnement en capitaux | E33: =+'C|RésKCHF'!E33 -> 10 | G33: 442 | H33: Revenus de participations | I33: =+'C|RésKCHF'!E105 -> 0 | L33: 342 | M33: =+D33 -> Frais d'approvisionnement en capitaux | N33: =+'C|RésKCHF'!H33 -> 9 | P33: 442 | Q33: =+H33 -> Revenus de participations | R33: =+'C|RésKCHF'!H105 -> 0
C34: 343 | D34: Charges pour bien-fonds PF | E34: =+'C|RésKCHF'!E34 -> 41 | G34: 443 | H34: Produits des immeubles PF | I34: =+'C|RésKCHF'!E106 -> 92 | L34: 343 | M34: =+D34 -> Charges pour bien-fonds PF | N34: =+'C|RésKCHF'!H34 -> 34 | P34: 443 | Q34: =+H34 -> Produits des immeubles PF | R34: =+'C|RésKCHF'!H106 -> 90
D35: Total des dépenses d'« intérêts » | E35: =SUM(E32:E34) -> 125 | H35: Total des recettes d'« intérêts » | I35: =SUM(I32:I34) -> 104 | M35: =+D35 -> Total des dépenses d'« intérêts » | N35: =SUM(N32:N34) -> 135 | Q35: =+H35 -> Total des recettes d'« intérêts » | R35: =SUM(R32:R34) -> 106
B36: Solde de financement total (– Dépenses totales + Recettes totales), ici déficit de financement | I36: =-E31+I31 -> -264.3 | K36: =+B36 -> Solde de financement total (– Dépenses totales + Recettes totales), ici déficit de financement | R36: =-N31+R31 -> 41
B37: – Intérêts nets (– Total des dépenses d'« intérêts » + Total des recettes d'« intérêts ») | I37: =-E35+I35 -> -21 | K37: =+B37 -> – Intérêts nets (– Total des dépenses d'« intérêts » + Total des recettes d'« intérêts ») | R37: =-N35+R35 -> -29
B38: Solde (de financement) primaire (Solde de financement – Intérêts nets), ici déficit primaire | I38: =+I36-I37 -> -243.3 | K38: =+B38 -> Solde (de financement) primaire (Solde de financement – Intérêts nets), ici déficit primaire | R38: =+R36-R37 -> 70
E40: =+E31+$I37 -> 14556.3

Sheet BdN
B1: Données pour l'effet boule de neige pour les Années t-20 à t
D3: rt | E3: Yt | F3: Rt | G3: Gt | H3: Dt | I3: it | J3: rt-it | K3: (rt-it)Dt-1 | L3: It = it*Dt-1 | M3: St = Rt - Gt | N3: SFt = Rt - Gt - It | O3: Bt = (rt-it)Dt-1 + + St | P3: (Dt/Yt*100) | Q3: (1+ Dt/Dt-1)*100)
D4: Taux de croissance économique | E4: Revenus fiscaux | F4: Recettes totales | G4: Dépenses hors intérêts | H4: Engage-ments nets | I4: Taux d'intérêt | J4: Effet de levier des taux… | K4: … sur la dette | L4: Intérêts nets | M4: Solde primaire | N4: Solde financier | O4: Présence (-), absence (+) d'un effet boule de neige | P4: Taux d'en- dettement net | Q4: =+U7 -> Variation des engagements nets
D5: % | E5: KCHF | F5: KCHF | G5: KCHF | H5: KCHF | I5: % | J5: % | K5: KCHF | L5: KCHF | M5: KCHF | N5: KCHF | O5: KCHF | P5: % | Q5: % | S5: Titres des axes des graphiques relatifs à la dynamique de l'endettement
B6: 1996 | C6: t-21 | D6: 0.4944142695 | E6: =+E7*100/(100+D6) -> 4928.238825 | F6: =+F7/(1+D7/100) -> 8871.213196 | G6: 9000 | H6: =+(H7+F7-G7)/(1+I7/100) -> 3631.652908 | I6: 4 | J6: =D6-I6 -> -3.505585731 | M6: =+F6-G6 -> -128.7868038 | P6: =+H6/E6*100 -> 73.69068418 | T6: TxEndG | U6: Taux de croissance économique et taux de variation de l'endettement, en %
B7: 1997 | C7: t-20 | D7: -0.9616941111 | E7: 4952.604741 | F7: 8785.899261 | G7: 8850 | H7: 3826.129986 | I7: 3.59 | J7: -4.551694111 | K7: =J7*H6/100 -> -165.3017315 | L7: =I7*H6/100 -> 130.3763394 | M7: -64.1007387 | N7: =+M7-L7 -> -194.4770781 | O7: =K7+M7 -> -229.4024702 | P7: 77.25490295 | Q7: =(H7/H6-1)*100 -> 5.355056858 | U7: Variation des engagements nets
B8: 1998 | C8: t-19 | D8: 2.490311727 | E8: 4904.975833 | F8: 9004.695541 | G8: 9200 | H8: 4155.348995 | I8: 3.5 | J8: -1.009688273 | K8: -38.6319858 | L8: 133.9145495 | M8: -195.3044591 | N8: -329.2190086 | O8: -233.9364449 | P8: 84.71701261 | Q8: 8.604490956 | U8: Taux d'endettement net (échelle de droite)
B9: 1999 | C9: t-18 | D9: 5.313408776 | E9: 5027.125021 | F9: 9483.151824 | G9: 9700 | H9: 4522.92711 | I9: 3.62737135 | J9: 1.686037425 | K9: 70.06073919 | L9: 150.7299389 | M9: -216.848176 | N9: -367.578115 | O9: -146.7874368 | P9: 89.97045211 | Q9: 8.845902364
B10: 2000 | C10: t-17 | D10: 4.290469221 | E10: 5294.236723 | F10: 9890.023534 | G10: 10000 | H10: 4828.875546 | I10: 4.332857143 | J10: -0.04238792211 | K10: -1.91717482 | L10: 195.9719703 | M10: -109.9764659 | N10: -305.9484362 | O10: -111.8936407 | P10: 91.21004213 | Q10: 6.764390157 | T10: BdNG | U10: Taux d'endettement net en % des revenus fiscaux
B11: 2001 | C11: t-16 | D11: 4.9 | E11: 5521.38432 | F11: 10374.63469 | G11: 10400 | H11: 5058.042401 | I11: 4.22047619 | J11: 0.6795238095 | K11: 32.81335907 | L11: 203.8015427 | M11: -25.36531269 | N11: -229.1668554 | O11: 7.448046377 | P11: 91.60822916 | Q11: 4.745760233 | U11: Solde primaire, effet de levier des taux et cercle vicieux ou vertueux, en KCHF
B12: 2002 | C12: t-15 | D12: 0.89891399 | E12: 5791.932152 | F12: 10467.89373 | G12: 10700 | H12: 5481.703963 | I12: 3.787142857 | J12: -2.888228867 | K12: -146.0878407 | L12: 191.5552915 | M12: -232.1062701 | N12: -423.6615616 | O12: -378.1941108 | P12: 94.64378758 | Q12: 8.375998617 | U12: Solde de financement primaire
B13: 2003 | C13: t-14 | D13: -2.515267077 | E13: 5843.99664 | F13: 10204.59825 | G13: 10250 | H13: 5720.140007 | I13: 3.521428571 | J13: -6.036695648 | K13: -330.9137846 | L13: 193.0342895 | M13: -45.40175471 | N13: -238.4360443 | O13: -376.3155393 | P13: 97.88061765 | Q13: 4.34967021 | U13: Effet de levier de r-i sur l'endettement
B14: 2004 | C14: t-13 | D14: 0.8090627459 | E14: 5697.004517 | F14: 10287.15985 | G14: 9700 | H14: 5330.270512 | I14: 3.449047619 | J14: -2.639984873 | K14: -151.0108309 | L14: 197.2903527 | M14: 587.1598481 | N14: 389.8694953 | O14: 436.1490172 | P14: 93.56268713 | Q14: -6.815733441 | U14: Marge : cercle vicieux (-) ou vertueux (+)
B15: 2005 | C15: t-12 | D15: 1.007069987 | E15: 5743.096858 | F15: 10390.75875 | G15: 10000 | H15: 5123.533008 | I15: 3.452380952 | J15: -2.445310966 | K15: -130.3416893 | L15: 184.0212439 | M15: 390.7587474 | N15: 206.7375035 | O15: 260.417058 | P15: 89.21202506 | Q15: -3.878555564
B16: 2006 | C16: t-11 | D16: 4.952675384 | E16: 5800.933863 | F16: 10905.3793 | G16: 10200 | H16: 4587.401084 | I16: 3.303333333 | J16: 1.649342051 | K16: 84.50458439 | L16: 169.2473737 | M16: 705.3792981 | N16: 536.1319244 | O16: 789.8838825 | P16: 79.08038933 | Q16: -10.46410599
B17: 2007 | C17: t-10 | D17: 6.289317851 | E17: 6088.235286 | F17: 11591.25327 | G17: 10950 | H17: 4095.63156 | I17: 3.258571429 | J17: 3.030746423 | K17: 139.0324942 | L17: 149.483741 | M17: 641.253265 | N17: 491.769524 | O17: 780.2857593 | P17: 67.2712431 | Q17: -10.72000279
B18: 2006 | C18: t-9 | D18: 3.431539328 | E18: 6471.143755 | F18: 11989.01168 | G18: 11300 | H18: 3494.745003 | I18: 2.15168579 | J18: 1.279853538 | K18: 52.41808542 | L18: 88.12512229 | M18: 689.0116794 | N18: 600.8865571 | O18: 741.4297649 | P18: 54.005059 | Q18: -14.67140167 | S18: Source des données dans le tableau
B19: 2009 | C19: t-8 | D19: 1.104215569 | E19: 6693.203598 | F19: 12121.39621 | G19: 11700 | H19: 3143.169534 | I19: 1.997878088 | J19: -0.8936625194 | K19: -31.23122624 | L19: 69.82074464 | M19: 421.3962129 | N19: 351.5754683 | O19: 390.1649867 | P19: 46.96061443 | Q19: -10.06011792 | T19: MaCollectivité
B20: 2010 | C20: t-7 | D20: -0.7 | E20: 6767.110994 | F20: 12036.54644 | G20: 11952 | H20: 3119.924532 | I20: 1.950306404 | J20: -2.650306404 | K20: -83.30362345 | L20: 61.30143671 | M20: 84.54643942 | N20: 23.24500271 | O20: 1.242815972 | P20: 46.10423169 | Q20: -0.7395402144 | T20: Ensemble des communes suisses
B21: 2011 | C21: t-6 | D21: 2.851456184 | E21: 6719.741217 | F21: 12379.76329 | G21: 12000 | H21: 2795.774434 | I21: 1.782517137 | J21: 1.068939047 | K21: 33.35009156 | L21: 55.61318944 | M21: 379.7632872 | N21: 324.1500978 | O21: 413.1133788 | P21: 41.60538842 | Q21: -10.38967752 | T21: Confédération
B22: 2012 | C22: t-5 | D22: 0.6438467746 | E22: 6911.351694 | F22: 12459.46999 | G22: 12100 | H22: 2481.667893 | I22: 1.62257199 | J22: -0.9787252158 | K22: -27.36294936 | L22: 45.36345288 | M22: 359.4699939 | N22: 314.106541 | O22: 332.1070445 | P22: 35.90712791 | Q22: -11.2350459
B23: 2013 | C23: t-4 | D23: 2.543064043 | E23: 6955.850209 | F23: 12776.3223 | G23: 12500 | H23: 2240.284775 | I23: 1.407890928 | J23: 1.135173115 | K23: 28.17122673 | L23: 34.93917712 | M23: 276.3222952 | N23: 241.3831181 | O23: 304.4935219 | P23: 32.20720268 | Q23: -9.726648709
B24: 2014 | C24: t-3 | D24: 2.836804531 | E24: 7132.741934 | F24: 13138.76158 | G24: 13100 | H24: 2231.427376 | I24: 1.334838621 | J24: 1.50196591 | K24: 33.64831361 | L24: 29.9041864 | M24: 38.76158499 | N24: 8.85739859 | O24: 72.4098986 | P24: 31.28428586 | Q24: -0.395369316
B25: 2015 | C25: t-2 | D25: 2.766377629 | E25: 7335.08388 | F25: 13502.22935 | G25: 13300 | H25: 2057.208018 | I25: 1.255249806 | J25: 1.511127823 | K25: 33.71971993 | L25: 28.00998781 | M25: 202.2293462 | N25: 174.2193584 | O25: 235.9490661 | P25: 28.04614169 | Q25: -7.807529845
B26: 2016 | C26: t-1 | D26: 3.205179254 | E26: =+'C|RésKCHF'!H77 -> 7538 | F26: =+SldPri!R31 -> 13935 | G26: =+SldPri!N31-SldPri!R37 -> 13923 | H26: =+DetEng!R17 -> 2080 | I26: 1.69122334 | J26: 1.513955914 | K26: 31.14522245 | L26: =SldPri!R37 -> -29 | M26: =+SldPri!R36 -> 41 | N26: 70 | O26: 72.14522245 | P26: 27.59352613 | Q26: 1.107908483
B27: 2017 | C27: t | D27: =+(('C|RésKCHF'!H77/'C|RésKCHF'!E77)-1)*100 -> -1.47693112 | E27: =+'C|RésKCHF'!E77 -> 7651 | F27: =+SldPri!I31 -> 14313 | G27: =+SldPri!E31+SldPri!I37 -> 14556.3 | H27: =+DetEng!I17 -> 2303 | I27: =+IndCalc!H26 -> 1.197348119 | J27: =D27-I27 -> -2.674279239 | K27: =J27*H26/100 -> -55.62500817 | L27: =-SldPri!I37 -> 21 | M27: =+SldPri!I38 -> -243.3 | N27: -264.3 | O27: -298.9250082 | P27: 30.10064044 | Q27: 10.72115385

Sheet LimCalc
B1: Calcul des valeurs limites
B3: Paramètres pour le calcul des limites | C3: Abréviations | D3: Valeurs | G3: Avec équilibre structurel | AA3: Avec déséquilibre structurel
B4: Taux d'intérêt | C4: i=I8 | D4: =+IndCalc!H26 -> 1.197348119 | E4: % | G4: Années | H4: Revenus | I4: Revenus | J4: Investisse- | K4: Amortis- | L4: Patrimoine Patrimoine | M4: Engagements | N4: Intérêts | P4: Q | Q4: Limite | R4: I9# | S4: Limite | T4: Correction | U4: I13# | V4: Limite | W4: Correction | X4: I2# | Y4: Limite | AA4: Résultat | AB4: =+K4 -> Amortis- | AC4: Auto- financt | AD4: Besoin | AE4: Engagements | AF4: Q | AG4: Limite | AH4: I9# | AI4: Limite
B5: Taux de croissance des revenus courants | C5: r | D5: 1.5 | E5: % | H5: courants | I5: fiscaux | J5: ments nets | K5: sements | L5: administratif | M5: nets | Q5: de Q | S5: de I9# | T5: pour | V5: de I13# | W5: pour | Y5: de I2# | AA5: c/de résult. | AB5: sements | AC5: financt | AD5: emprunt | AE5: nets | AG5: de Q | AI5: de I9#
B6: Taux d'amortissement | C6: kA | D6: =ROUND((LimCalc!K7/BiKCHF!E15*100),1) -> 8.7 | E6: % | H6: KCHF | I6: =+H6 -> KCHF | J6: =+I6 -> KCHF | K6: KCHF | L6: KCHF | M6: KCHF | N6: KCHF | P6: % | Q6: =+P6 -> % | R6: =+Q6 -> % | S6: =+R6 -> % | T6: I13# | U6: =+S6 -> % | V6: =+U6 -> % | W6: I12# | X6: =+Q6 -> % | Y6: =+X6 -> % | AA6: =+N6 -> KCHF | AB6: KCHF | AC6: =+L6 -> KCHF | AD6: =+M6 -> KCHF | AE6: =+AA6 -> KCHF | AF6: % | AG6: =+AF6 -> % | AH6: =+AG6 -> % | AI6: =+AH6 -> %
B7: Effort d'investissement net | C7: kI=I6 | D7: =ROUND((IndCalc!H20),1) -> 14.6 | E7: % | G7: t | H7: =+'C|RésKCHF'!E76 -> 14610 | I7: =+H7*$D$8/100 -> 7655.64 | J7: =+'C|InvKCHF'!E5-'C|InvKCHF'!E83 -> 1928 | K7: =+'C|RésKCHF'!E27 -> 671 | L7: =+BiKCHF!H15 -> 8992 | M7: =+DetEng!I17 -> 2303 | N7: =-SldPri!I37 -> 21 | P7: =+M7/$H7*100 -> 15.76317591 | Q7: =+$D$12*100 -> 145.2843137 | R7: =+M7/$I7*100 -> 30.08239677 | S7: =+LimCalc!$D$14*100 -> 277.2601407 | U7: =+(N7+K7)/H7*100+T7 -> 4.736481862 | V7: =+$D$18*100 -> 14.16679241 | W7: -1.8 | X7: =+K7/J7*100+W7 -> 33.00290456 | Y7: =+$D$16*100 -> 85.29411765 | AA7: =+$D$9*H7/100 -> 292.2 | AB7: 671 | AC7: =+AA7+AB7 -> 963.2 | AD7: =+J7-AC7 -> 964.8 | AE7: =+DetEng!I17 -> 2303 | AF7: =+AE7/$H7*100 -> 15.76317591 | AG7: =+$D$22*100 -> 9.950980392 | AH7: =+AE7/$I7*100 -> 30.08239677 | AI7: =+$D$24*100 -> 18.9904206
B8: Part des revenus fiscaux dans les revenus courants | C8: kF | D8: =ROUND(('C|RésKCHF'!E77/'C|RésKCHF'!E76*100),1) -> 52.4 | E8: % | G8: t+1 | H8: =H7*(1+LimCalc!$D$5/100) -> 14829.15 | I8: =+H8*$D$8/100 -> 7770.4746 | J8: =+H8*LimCalc!$D$7/100 -> 2165.0559 | K8: =+L7*LimCalc!$D$6/100 -> 782.304 | L8: =+L7+J8-K8 -> 10374.7519 | M8: =+M7+J8-K8 -> 3685.7519 | N8: =+M7*$D$4/100 -> 27.57492718 | P8: =+M8/H8*100 -> 24.85477522 | Q8: 145.2843137 | R8: =+M8/I8*100 -> 47.43277714 | S8: =+LimCalc!$D$14*100 -> 277.2601407 | T8: 0.15 | U8: 5.611398173 | V8: 14.16679241 | W8: 1 | X8: =+K8/J8*100+W8 -> 37.13320099 | Y8: 85.29411765 | AA8: =+$D$9*H8/100 -> 296.583 | AB8: 782.304 | AC8: =+AA8+AB8 -> 1078.887 | AD8: 1086.1689 | AE8: =+AE7+J8-K8-AA8 -> 3389.1689 | AF8: =+AE8/$H8*100 -> 22.85477522 | AG8: 9.950980392 | AH8: =+AE8/$I8*100 -> 43.61598325 | AI8: 18.9904206
B9: Taux de déséquilibre structurel | C9: kD=(I1-100%) | D9: 2 | E9: % | G9: t+2 | H9: =H8*(1+LimCalc!$D$5/100) -> 15051.58725 | I9: 7887.031719 | J9: =+H9*LimCalc!$D$7/100 -> 2197.531738 | K9: =+L8*LimCalc!$D$6/100 -> 902.6034153 | L9: =+L8+J9-K9 -> 11669.68022 | M9: =+M8+J9-K9 -> 4980.680223 | N9: =+M8*$D$4/100 -> 44.13128104 | P9: 33.09073083 | Q9: 145.2843137 | R9: 63.15024968 | S9: =+LimCalc!$D$14*100 -> 277.2601407 | U9: 6.28993262 | V9: 14.16679241 | W9: 0.2 | X9: 41.27350986 | Y9: 85.29411765 | AA9: 301.031745 | AB9: 902.6034153 | AC9: 1203.63516 | AD9: 993.8965782 | AE9: 4383.065478 | AF9: 29.12028748 | AG9: 9.950980392 | AH9: 55.57306772 | AI9: 18.9904206
G10: t+3 | H10: =H9*(1+LimCalc!$D$5/100) -> 15277.36106 | I10: 8005.337195 | J10: =+H10*LimCalc!$D$7/100 -> 2230.494715 | K10: =+L9*LimCalc!$D$6/100 -> 1015.262179 | L10: 12884.91276 | M10: 6195.912758 | N10: 59.63608096 | P10: 40.55617154 | Q10: 145.2843137 | R10: 77.39727394 | S10: =+LimCalc!$D$14*100 -> 277.2601407 | U10: 7.035889616 | V10: 14.16679241 | X10: 45.51735419 | Y10: 85.29411765 | AA10: 305.5472212 | AB10: 1015.262179 | AC10: 1320.809401 | AD10: 909.685314 | AE10: 5292.750792 | AF10: 34.6444047 | AG10: 9.950980392 | AH10: 66.11527614 | AI10: 18.9904206
B11: Equilibre structurel : Valeurs limites calculées | C11: Abréviations | D11: Valeurs | G11: t+4 | H11: =H10*(1+LimCalc!$D$5/100) -> 15506.52147 | I11: 8125.417253 | J11: =+H11*LimCalc!$D$7/100 -> 2263.952135 | K11: =+L10*LimCalc!$D$6/100 -> 1120.98741 | L11: 14027.87748 | M11: 7338.877484 | N11: 74.18664486 | P11: 47.327684 | Q11: 145.2843137 | R11: 90.32000764 | S11: =+LimCalc!$D$14*100 -> 277.2601407 | U11: 7.707557474 | V11: 14.16679241 | X11: 49.514625 | Y11: 85.29411765 | AA11: 310.1304295 | AB11: 1120.98741 | AC11: 1431.117839 | AD11: 832.8342958 | AE11: 6125.585088 | AF11: 39.50328317 | AG11: 9.950980392 | AH11: 75.38794498 | AI11: 18.9904206
B12: Limite du rapport d'endettement | C12: Q | D12: =+($D$7/100)*(1+($D$5/100))/(($D$5/100)+($D$6/100)) -> 1.452843137 | G12: t+5 | H12: =H11*(1+LimCalc!$D$5/100) -> 15739.1193 | I12: 8247.298511 | J12: =+H12*LimCalc!$D$7/100 -> 2297.911417 | K12: =+L11*LimCalc!$D$6/100 -> 1220.425341 | L12: 15105.36356 | M12: 8416.36356 | N12: 87.87191149 | P12: 53.47417096 | Q12: 145.2843137 | R12: 102.0499446 | S12: =+LimCalc!$D$14*100 -> 277.2601407 | U12: 8.312391741 | V12: 14.16679241 | X12: 53.11019963 | Y12: 85.29411765 | AA12: 314.7823859 | AB12: 1220.425341 | AC12: 1535.207727 | AD12: 762.7036903 | AE12: 6888.288778 | AF12: 43.76540166 | AG12: 9.950980392 | AH12: 83.5217589 | AI12: 18.9904206
B13: (= engagements nets par rapport aux recettes courantes) | G13: t+6 | H13: =H12*(1+LimCalc!$D$5/100) -> 15975.20609 | I13: 8371.007989 | J13: =+H13*LimCalc!$D$7/100 -> 2332.380089 | K13: =+L12*LimCalc!$D$6/100 -> 1314.16663 | L13: 16123.57702 | M13: 9434.577019 | N13: 100.7731708 | P13: 59.05762322 | Q13: 145.2843137 | R13: 112.7053878 | S13: =+LimCalc!$D$14*100 -> 277.2601407 | U13: 8.857098887 | V13: 14.16679241 | X13: 56.34444558 | Y13: 85.29411765 | AA13: 319.5041217 | AB13: 1314.16663 | AC13: 1633.670751 | AD13: 698.7093371 | AE13: 7586.998115 | AF13: 47.49233327 | AG13: 9.950980392 | AH13: 90.6342238 | AI13: 18.9904206
B14: Limite du taux d'endettement net | C14: Limite de I9# | D14: =+($D$7/100)*(1+($D$5/100))/(($D$5/100)+($D$6/100))*(1/(D8/100)) -> 2.772601407 | G14: t+7 | H14: =H13*(1+LimCalc!$D$5/100) -> 16214.83418 | I14: 8496.573109 | J14: =+H14*LimCalc!$D$7/100 -> 2367.36579 | K14: =+L13*LimCalc!$D$6/100 -> 1402.751201 | L14: 17088.19161 | M14: 10399.19161 | N14: 112.9647305 | P14: 64.1338141 | Q14: 145.2843137 | R14: 122.392775 | S14: =+LimCalc!$D$14*100 -> 277.2601407 | U14: 9.347711574 | V14: 14.16679241 | X14: 59.25367371 | Y14: 85.29411765 | AA14: 324.2966835 | AB14: 1402.751201 | AC14: 1727.047884 | AD14: 640.3179057 | AE14: 8227.316021 | AF14: 50.73943977 | AG14: 9.950980392 | AH14: 96.83099193 | AI14: 18.9904206
B15: (= engagements nets par rapport aux revenus fiscaux) | G15: t+8 | H15: =H14*(1+LimCalc!$D$5/100) -> 16458.05669 | I15: 8624.021706 | J15: =+H15*LimCalc!$D$7/100 -> 2402.876277 | K15: =+L14*LimCalc!$D$6/100 -> 1486.67267 | L15: 18004.39521 | M15: 11315.39521 | N15: 124.5145251 | P15: 68.75292404 | Q15: 145.2843137 | R15: 131.2078703 | S15: =+LimCalc!$D$14*100 -> 277.2601407 | U15: 9.789656369 | V15: 14.16679241 | X15: 61.87054591 | Y15: 85.29411765 | AA15: 329.1611338 | AB15: 1486.67267 | AC15: 1815.833804 | AD15: 587.0424731 | AE15: 8814.358494 | AF15: 53.55649613 | AG15: 9.950980392 | AH15: 102.2070537 | AI15: 18.9904206
B16: Limite du degré d'autofinancement | C16: Limite de I2# | D16: =+($D$6/100)/(($D$5/100)+($D$6/100)) -> 0.8529411765 | G16: t+9 | H16: =H15*(1+LimCalc!$D$5/100) -> 16704.92754 | I16: 8753.382031 | J16: =+H16*LimCalc!$D$7/100 -> 2438.919421 | K16: =+L15*LimCalc!$D$6/100 -> 1566.382384 | L16: 18876.93225 | M16: 12187.93225 | N16: 135.4846717 | P16: 72.96010248 | Q16: 145.2843137 | R16: 139.2368368 | S16: =+LimCalc!$D$14*100 -> 277.2601407 | U16: 10.18781465 | V16: 14.16679241 | X16: 64.22444179 | Y16: 85.29411765 | AA16: 334.0985508 | AB16: 1566.382384 | AC16: 1900.480935 | AD16: 538.4384864 | AE16: 9352.796981 | AF16: 55.98825232 | AG16: 9.950980392 | AH16: 106.8478098 | AI16: 18.9904206
B17: (= autofinancement par rapport aux investissements nets) | G17: t+10 | H17: =H16*(1+LimCalc!$D$5/100) -> 16955.50145 | I17: 8884.682762 | J17: =+H17*LimCalc!$D$7/100 -> 2475.503212 | K17: =+L16*LimCalc!$D$6/100 -> 1642.293106 | L17: 19710.14236 | M17: 13021.14236 | N17: 145.9319775 | P17: 76.79597324 | Q17: 145.2843137 | R17: 146.5572008 | S17: =+LimCalc!$D$14*100 -> 277.2601407 | U17: 10.54657739 | V17: 14.16679241 | X17: 66.34178852 | Y17: 85.29411765 | AA17: 339.1100291 | AB17: 1642.293106 | AC17: 1981.403135 | AD17: 494.1000772 | AE17: 9846.897058 | AF17: 58.0749386 | AG17: 9.950980392 | AH17: 110.8300355 | AI17: 18.9904206
B18: * Pour être tout à fait précis, la dette brute correspond aux rubriques 200+201+206, desquelles il faut déduire -s'ils existent- les instruments financiers dérivés à court terme (2016) et à long terme (2066), ainsi que les éventuelles subventions d’investissement inscrites au passif (2068). | C18: Limite de I13## | D18: =+($D$7/100)*(($D$4/100)+($D$6/100))/(($D$5/100)+($D$6/100)) -> 0.1416679241 | G18: t+11 | H18: =H17*(1+LimCalc!$D$5/100) -> 17209.83398 | I18: 9017.953003 | J18: =+H18*LimCalc!$D$7/100 -> 2512.63576 | K18: =+L17*LimCalc!$D$6/100 -> 1714.782385 | L18: 20507.99573 | M18: 13818.99573 | N18: 155.9084031 | P18: 80.29708917 | Q18: 145.2843137 | R18: 153.2387198 | S18: =+LimCalc!$D$14*100 -> 277.2601407 | U18: 10.86989445 | V18: 14.16679241 | X18: 68.24635756 | Y18: 85.29411765 | AA18: 344.1966795 | AB18: 1714.782385 | AC18: 2058.979065 | AD18: 453.6566957 | AE18: 10300.55375 | AF18: 59.85272007 | AG18: 9.950980392 | AH18: 114.2227482 | AI18: 18.9904206
B19: (= intérêts et amortissements par rapport aux revenus courants) | G19: t+12 | H19: =H18*(1+LimCalc!$D$5/100) -> 17467.98149 | I19: 9153.222298 | J19: =+H19*LimCalc!$D$7/100 -> 2550.325297 | K19: =+L18*LimCalc!$D$6/100 -> 1784.195629 | L19: 21274.1254 | M19: 14585.1254 | N19: 165.4614855 | P19: 83.49634109 | Q19: 145.2843137 | R19: 159.3441624 | S19: =+LimCalc!$D$14*100 -> 277.2601407 | U19: 11.16131887 | V19: 14.16679241 | X19: 69.95953148 | Y19: 85.29411765 | AA19: 349.3596297 | AB19: 1784.195629 | AC19: 2133.555259 | AD19: 416.7700383 | AE19: 10717.32379 | AF19: 61.35410552 | AG19: 9.950980392 | AH19: 117.0879876 | AI19: 18.9904206
G20: t+13 | H20: =H19*(1+LimCalc!$D$5/100) -> 17730.00121 | I20: 9290.520633 | J20: =+H20*LimCalc!$D$7/100 -> 2588.580176 | K20: =+L19*LimCalc!$D$6/100 -> 1850.84891 | L20: 22011.85667 | M20: 15322.85667 | N20: 174.6347246 | P20: 86.42332558 | Q20: 145.2843137 | R20: 164.9300106 | S20: =+LimCalc!$D$14*100 -> 277.2601407 | U20: 11.42404679 | V20: 14.16679241 | X20: 71.50054408 | Y20: 85.29411765 | AA20: 354.6000241 | AB20: 1850.84891 | AC20: 2205.448934 | AD20: 383.1312422 | AE20: 11100.45503 | AF20: 62.60831516 | AG20: 9.950980392 | AH20: 119.4815175 | AI20: 18.9904206
B21: Déséquilibre structurel : Valeurs limites calculées | C21: Abréviations | D21: Valeurs | G21: t+14 | H21: =H20*(1+LimCalc!$D$5/100) -> 17995.95123 | I21: 9429.878442 | J21: =+H21*LimCalc!$D$7/100 -> 2627.408879 | K21: =+L20*LimCalc!$D$6/100 -> 1915.03153 | L21: 22724.23402 | M21: 16035.23402 | N21: 183.4679361 | P21: 89.10467591 | Q21: 145.2843137 | R21: 170.0470914 | S21: =+LimCalc!$D$14*100 -> 277.2601407 | U21: 11.66095329 | V21: 14.16679241 | X21: 72.8866963 | Y21: 85.29411765 | AA21: 359.9190245 | AB21: 1915.03153 | AC21: 2274.950555 | AD21: 352.4583243 | AE21: 11452.91336 | AF21: 63.64161147 | AG21: 9.950980392 | AH21: 121.453457 | AI21: 18.9904206
B22: Limite du rapport d'endettement avec déséquilibre structurel | C22: Q | D22: =((($D$7/100*(1+$D$5/100)/($D$5/100+$D$6/100))-($D$9/100*(1+$D$5/100)/($D$5/100)))) -> 0.09950980392 | G22: t+15 | H22: =H21*(1+LimCalc!$D$5/100) -> 18265.89049 | I22: 9571.326619 | J22: =+H22*LimCalc!$D$7/100 -> 2666.820012 | K22: =+L21*LimCalc!$D$6/100 -> 1977.008359 | L22: 23414.04567 | M22: 16725.04567 | N22: 191.9975728 | P22: 91.56435967 | Q22: 145.2843137 | R22: 174.7411444 | S22: =+LimCalc!$D$14*100 -> 277.2601407 | U22: 11.87462463 | V22: 14.16679241 | X22: 74.13355046 | Y22: 85.29411765 | AA22: 365.3178099 | AB22: 1977.008359 | AC22: 2342.326169 | AD22: 324.4938428 | AE22: 11777.4072 | AF22: 64.47759667 | AG22: 9.950980392 | AH22: 123.0488486 | AI22: 18.9904206
B23: (= engagements nets par rapport aux recettes courantes) | G23: t+16 | H23: =H22*(1+LimCalc!$D$5/100) -> 18539.87885 | I23: 9714.896518 | J23: =+H23*LimCalc!$D$7/100 -> 2706.822312 | K23: =+L22*LimCalc!$D$6/100 -> 2037.021973 | L23: 24083.84601 | M23: 17394.84601 | N23: 200.2570197 | P23: 93.82394647 | Q23: 145.2843137 | R23: 179.053333 | S23: =+LimCalc!$D$14*100 -> 277.2601407 | U23: 12.06738734 | V23: 14.16679241 | X23: 75.255105 | Y23: 85.29411765 | AA23: 370.797577 | AB23: 2037.021973 | AC23: 2407.81955 | AD23: 299.002762 | AE23: 12076.40996 | AF23: 65.13748046 | AG23: 9.950980392 | AH23: 124.3081688 | AI23: 18.9904206
B24: Limite du taux d'endettement net avec déséquilibre structurel | C24: Limite de I9# | D24: =((($D$7/100*(1+$D$5/100)/($D$5/100+$D$6/100))-($D$9/100*(1+$D$5/100)/($D$5/100))))*(1/($D$8/100)) -> 0.189904206 | G24: t+17 | H24: =H23*(1+LimCalc!$D$5/100) -> 18817.97703 | I24: 9860.619966 | J24: =+H24*LimCalc!$D$7/100 -> 2747.424647 | K24: =+L23*LimCalc!$D$6/100 -> 2095.294603 | L24: 24735.97605 | M24: 18046.97605 | N24: 208.2768615 | P24: 95.90284875 | Q24: 145.2843137 | R24: 183.0207037 | S24: =+LimCalc!$D$14*100 -> 277.2601407 | U24: 12.24133423 | V24: 14.16679241 | X24: 76.26395159 | Y24: 85.29411765 | AA24: 376.3595407 | AB24: 2095.294603 | AC24: 2471.654143 | AD24: 275.7705035 | AE24: 12352.18047 | AF24: 65.64032066 | AG24: 9.950980392 | AH24: 125.2677875 | AI24: 18.9904206
B25: (= engagements nets par rapport aux revenus fiscaux) | G25: t+18 | H25: =H24*(1+LimCalc!$D$5/100) -> 19100.24669 | I25: 10008.52927 | J25: =+H25*LimCalc!$D$7/100 -> 2788.636017 | K25: =+L24*LimCalc!$D$6/100 -> 2152.029917 | L25: 25372.58215 | M25: 18683.58215 | N25: 216.0851283 | P25: 97.81853845 | Q25: 145.2843137 | R25: 186.6766001 | S25: =+LimCalc!$D$14*100 -> 277.2601407 | U25: 12.39834796 | V25: 14.16679241 | X25: 77.17141655 | Y25: 85.29411765 | AA25: 382.0049338 | AB25: 2152.029917 | AC25: 2534.03485 | AD25: 254.6011663 | AE25: 12606.78163 | AF25: 66.00323984 | AG25: 9.950980392 | AH25: 125.9603814 | AI25: 18.9904206
G26: t+19 | H26: =H25*(1+LimCalc!$D$5/100) -> 19386.75039 | I26: 10158.6572 | J26: =+H26*LimCalc!$D$7/100 -> 2830.465557 | K26: =+L25*LimCalc!$D$6/100 -> 2207.414647 | L26: 25995.63306 | M26: 19306.63306 | N26: 223.7075194 | P26: 99.58674184 | Q26: 145.2843137 | R26: 190.0510341 | S26: =+LimCalc!$D$14*100 -> 277.2601407 | U26: 12.54012208 | V26: 14.16679241 | X26: 77.98768799 | Y26: 85.29411765 | AA26: 387.7350078 | AB26: 2207.414647 | AC26: 2595.149655 | AD26: 235.3159018 | AE26: 12842.09753 | AF26: 66.24162006 | AG26: 9.950980392 | AH26: 126.4153055 | AI26: 18.9904206
G27: t+20 | H27: =H26*(1+LimCalc!$D$5/100) -> 19677.55165 | I27: 10311.03706 | J27: =+H27*LimCalc!$D$7/100 -> 2872.92254 | K27: =+L26*LimCalc!$D$6/100 -> 2261.620076 | L27: 26606.93553 | M27: 19917.93553 | N27: 231.1676078 | P27: 101.2216148 | Q27: 145.2843137 | R27: 193.1710206 | S27: =+LimCalc!$D$14*100 -> 277.2601407 | U27: 12.66818011 | V27: 14.16679241 | X27: 78.72193019 | Y27: 85.29411765 | AA27: 393.5510329 | AB27: 2261.620076 | AC27: 2655.171109 | AD27: 217.7514309 | AE27: 13059.84897 | AF27: 66.36927805 | AG27: 9.950980392 | AH27: 126.6589276 | AI27: 18.9904206
G28: t+21 | H28: =H27*(1+LimCalc!$D$5/100) -> 19972.71492 | I28: 10465.70262 | J28: =+H28*LimCalc!$D$7/100 -> 2916.016378 | K28: =+L27*LimCalc!$D$6/100 -> 2314.803391 | L28: 27208.14851 | M28: 20519.14851 | N28: 238.4870263 | P28: 102.7359004 | Q28: 145.2843137 | R28: 196.0608787 | S28: =+LimCalc!$D$14*100 -> 277.2601407 | U28: 12.78389256 | V28: 14.16679241 | X28: 79.38238646 | Y28: 85.29411765 | AA28: 399.4542984 | AB28: 2314.803391 | AC28: 2714.257689 | AD28: 201.7586892 | AE28: 13261.60765 | AF28: 66.39862286 | AG28: 9.950980392 | AH28: =+AE28/$I28*100 -> 126.7149291 | AI28: 18.9904206
G29: t+22 | H29: =H28*(1+LimCalc!$D$5/100) -> 20272.30564 | I29: 10622.68816 | J29: =+H29*LimCalc!$D$7/100 -> 2959.756624 | K29: =+L28*LimCalc!$D$6/100 -> 2367.108921 | L29: 27800.79622 | M29: 21111.79622 | N29: 245.6856387 | P29: 104.141071 | Q29: 145.2843137 | R29: 198.7425019 | S29: =+LimCalc!$D$14*100 -> 277.2601407 | U29: 12.88849234 | V29: 14.16679241 | X29: 79.97647176 | Y29: 85.29411765 | AA29: 405.4461129 | AB29: 2367.108921 | AC29: 2772.555034 | AD29: 187.2015905 | AE29: 13448.80925 | AF29: 66.34079755 | AG29: 9.950980392 | AH29: 126.6045755 | AI29: 18.9904206
G30: t+23 | H30: =H29*(1+LimCalc!$D$5/100) -> 20576.39023 | I30: 10782.02848 | J30: =+H30*LimCalc!$D$7/100 -> 3004.152973 | K30: =+L29*LimCalc!$D$6/100 -> 2418.669271 | L30: 28386.27992 | M30: 21697.27992 | N30: 252.7816949 | P30: 105.4474554 | Q30: 145.2843137 | R30: 201.235602 | S30: =+LimCalc!$D$14*100 -> 277.2601407 | U30: 12.98308856 | V30: 14.16679241 | X30: 80.51085588 | Y30: 85.29411765 | AA30: 411.5278046 | AB30: 2418.669271 | AC30: 2830.197075 | AD30: 173.9558979 | AE30: 13622.76514 | AF30: 66.20580671 | AG30: 9.950980392 | AH30: 126.3469594 | AI30: 18.9904206
G31: t+24 | H31: =H30*(1+LimCalc!$D$5/100) -> 20885.03608 | I31: 10943.75891 | J31: =+H31*LimCalc!$D$7/100 -> 3049.215268 | K31: =+L30*LimCalc!$D$6/100 -> 2469.606353 | L31: 28965.88883 | M31: 22276.88883 | N31: 259.791973 | P31: 106.6643541 | Q31: 145.2843137 | R31: 203.5579276 | S31: =+LimCalc!$D$14*100 -> 277.2601407 | U31: 13.06867901 | V31: 14.16679241 | X31: 80.99153834 | Y31: 85.29411765 | AA31: 417.7007216 | AB31: 2469.606353 | AC31: 2887.307075 | AD31: 161.9081934 | AE31: 13784.67334 | AF31: 66.00263118 | AG31: 9.950980392 | AH31: 125.9592198 | AI31: 18.9904206
G32: t+25 | H32: =H31*(1+LimCalc!$D$5/100) -> 21198.31162 | I32: 11107.91529 | J32: =+H32*LimCalc!$D$7/100 -> 3094.953497 | K32: =+L31*LimCalc!$D$6/100 -> 2520.032329 | L32: 29540.81 | M32: 22851.81 | N32: 266.7319094 | P32: 107.8001419 | Q32: 145.2843137 | R32: 205.7254616 | S32: =+LimCalc!$D$14*100 -> 277.2601407 | U32: 13.1461613 | V32: 14.16679241 | X32: 81.42391577 | Y32: 85.29411765 | AA32: 423.9662325 | AB32: 2520.032329 | AC32: 2943.998561 | AD32: 150.9549359 | AE32: 13935.62827 | AF32: 65.73933113 | AG32: 9.950980392 | AH32: 125.4567388 | AI32: 18.9904206
G33: t+26 | H33: =H32*(1+LimCalc!$D$5/100) -> 21516.2863 | I33: 11274.53402 | J33: =+H33*LimCalc!$D$7/100 -> 3141.377799 | K33: =+L32*LimCalc!$D$6/100 -> 2570.05047 | L33: 30112.13733 | M33: 23423.13733 | N33: 273.6157172 | P33: 108.8623613 | Q33: 145.2843137 | R33: 207.7525979 | S33: =+LimCalc!$D$14*100 -> 277.2601407 | U33: 13.21634295 | V33: 14.16679241 | X33: 81.81284246 | Y33: 85.29411765 | AA33: 430.325726 | AB33: 2570.05047 | AC33: 3000.376196 | AD33: 141.0016033 | AE33: 14076.62988 | AF33: 65.42313892 | AG33: 9.950980392 | AH33: 124.8533186 | AI33: 18.9904206
G34: t+27 | H34: =H33*(1+LimCalc!$D$5/100) -> 21839.03059 | I34: 11443.65203 | J34: =+H34*LimCalc!$D$7/100 -> 3188.498466 | K34: =+L33*LimCalc!$D$6/100 -> 2619.755948 | L34: 30680.87985 | M34: 23991.87985 | N34: 280.4564942 | P34: 109.857806 | Q34: 145.2843137 | R34: 209.6523014 | S34: =+LimCalc!$D$14*100 -> 277.2601407 | U34: 13.27995045 | V34: 14.16679241 | X34: 82.1626849 | Y34: 85.29411765 | AA34: 436.7806118 | AB34: 2619.755948 | AC34: 3056.53656 | AD34: 131.9619067 | AE34: 14208.59178 | AF34: 65.06054251 | AG34: 9.950980392 | AH34: 124.1613407 | AI34: 18.9904206
G35: t+28 | H35: =H34*(1+LimCalc!$D$5/100) -> 22166.61605 | I35: 11615.30681 | J35: =+H35*LimCalc!$D$7/100 -> 3236.325943 | K35: =+L34*LimCalc!$D$6/100 -> 2669.236547 | L35: 31247.96925 | M35: 24558.96925 | N35: 287.2663221 | P35: 110.7925955 | Q35: 145.2843137 | R35: 211.4362509 | S35: =+LimCalc!$D$14*100 -> 277.2601407 | U35: 13.33763738 | V35: 14.16679241 | X35: 82.47737075 | Y35: 85.29411765 | AA35: 443.332321 | AB35: 2669.236547 | AC35: 3112.568868 | AD35: 123.7570754 | AE35: 14332.34886 | AF35: 64.65736053 | AG35: 9.950980392 | AH35: 123.3919094 | AI35: 18.9904206
G36: t+29 | H36: =H35*(1+LimCalc!$D$5/100) -> 22499.11529 | I36: 11789.53641 | J36: =+H36*LimCalc!$D$7/100 -> 3284.870833 | K36: =+L35*LimCalc!$D$6/100 -> 2718.573325 | L36: 31814.26676 | M36: 25125.26676 | N36: 294.0563563 | P36: 111.6722432 | Q36: 145.2843137 | R36: 213.114968 | S36: =+LimCalc!$D$14*100 -> 277.2601407 | U36: 13.38999175 | V36: 14.16679241 | X36: 82.760433 | Y36: 85.29411765 | AA36: 449.9823058 | AB36: =+K36 -> 2718.573325 | AC36: 3168.55563 | AD36: 116.3152023 | AE36: 14448.66406 | AF36: 64.21880982 | AG36: 9.950980392 | AH36: 122.5549806 | AI36: 18.9904206
G37: t+30 | H37: =H36*(1+LimCalc!$D$5/100) -> 22836.60202 | I37: 11966.37946 | J37: =+H37*LimCalc!$D$7/100 -> 3334.143895 | K37: =+L36*LimCalc!$D$6/100 -> 2767.841208 | L37: 32380.56944 | M37: 25691.56944 | N37: 300.8369088 | P37: 112.5017173 | Q37: 145.2843137 | R37: 214.6979337 | S37: =+LimCalc!$D$14*100 -> 277.2601407 | U37: 13.43754256 | V37: 14.16679241 | X37: 83.01504958 | Y37: 85.29411765 | AA37: 456.7320404 | AB37: 2767.841208 | AC37: 3224.573248 | AD37: 109.570647 | AE37: 14558.23471 | AF37: 63.74956613 | AG37: 9.950980392 | AH37: 121.6594773 | AI37: 18.9904206
G38: t+31 | H38: =H37*(1+LimCalc!$D$5/100) -> 23179.15105 | I38: 12145.87515 | J38: =+H38*LimCalc!$D$7/100 -> 3384.156054 | K38: =+L37*LimCalc!$D$6/100 -> 2817.109542 | L38: 32947.61595 | M38: 26258.61595 | N38: 307.6175234 | P38: 113.2854948 | Q38: 145.2843137 | R38: 216.1936923 | S38: =+LimCalc!$D$14*100 -> 277.2601407 | U38: 13.48076579 | V38: 14.16679241 | X38: 83.24407908 | Y38: 85.29411765 | AA38: 463.583021 | AB38: 2817.109542 | AC38: 3280.692563 | AD38: 103.463491 | AE38: 14661.6982 | AF38: 63.25381877 | AG38: 9.950980392 | AH38: 120.7133946 | AI38: 18.9904206
G39: t+32 | H39: =H38*(1+LimCalc!$D$5/100) -> 23526.83832 | I39: 12328.06328 | J39: =+H39*LimCalc!$D$7/100 -> 3434.918394 | K39: =+L38*LimCalc!$D$6/100 -> 2866.442588 | L39: 33516.09176 | M39: 26827.09176 | N39: 314.4070442 | P39: 114.0276114 | Q39: 145.2843137 | R39: 217.6099453 | S39: =+LimCalc!$D$14*100 -> 277.2601407 | U39: 13.52008965 | V39: 14.16679241 | X39: 83.45009281 | Y39: 85.29411765 | AA39: 470.5367663 | AB39: 2866.442588 | AC39: 3336.979354 | AD39: 97.93903993 | AE39: 14759.63724 | AF39: 62.73531972 | AG39: 9.950980392 | AH39: 119.7238926 | AI39: 18.9904206
G40: t+33 | H40: =H39*(1+LimCalc!$D$5/100) -> 23879.74089 | I40: 12512.98423 | J40: =+H40*LimCalc!$D$7/100 -> 3486.44217 | K40: =+L39*LimCalc!$D$6/100 -> 2915.899983 | L40: 34086.63395 | M40: 27397.63395 | N40: 321.2136785 | P40: 114.7317053 | Q40: 145.2843137 | R40: 218.9536361 | S40: =+LimCalc!$D$14*100 -> 277.2601407 | U40: 13.55589944 | V40: 14.16679241 | X40: 83.63540368 | Y40: 85.29411765 | AA40: 477.5948178 | AB40: 2915.899983 | AC40: 3393.494801 | AD40: 92.9473692 | AE40: 14852.58461 | AF40: 62.19742783 | AG40: 9.950980392 | AH40: 118.6973814 | AI40: 18.9904206
G41: t+34 | H41: =H40*(1+LimCalc!$D$5/100) -> 24237.93701 | I41: 12700.67899 | J41: =+H41*LimCalc!$D$7/100 -> 3538.738803 | K41: =+L40*LimCalc!$D$6/100 -> 2965.537153 | L41: 34659.8356 | M41: 27970.8356 | N41: 328.0450547 | P41: 115.4010574 | Q41: 145.2843137 | R41: 220.2310256 | S41: =+LimCalc!$D$14*100 -> 277.2601407 | U41: 13.58854183 | V41: 14.16679241 | X41: 83.80209218 | Y41: 85.29411765 | AA41: 484.7587401 | AB41: 2965.537153 | AC41: 3450.295894 | AD41: 88.44290921 | AE41: 14941.02752 | AF41: 61.64314856 | AG41: 9.950980392 | AH41: 117.6395965 | AI41: 18.9904206
G42: t+35 | H42: =H41*(1+LimCalc!$D$5/100) -> 24601.50606 | I42: 12891.18918 | J42: =+H42*LimCalc!$D$7/100 -> 3591.819885 | K42: =+L41*LimCalc!$D$6/100 -> 3015.405697 | L42: 35236.24979 | M42: 28547.24979 | N42: 334.9082738 | P42: 116.0386267 | Q42: 145.2843137 | R42: 221.4477609 | S42: =+LimCalc!$D$14*100 -> 277.2601407 | U42: 13.61832874 | V42: 14.16679241 | X42: 83.95202971 | Y42: 85.29411765 | AA42: 492.0301212 | AB42: 3015.405697 | AC42: 3507.435818 | AD42: 84.38406666 | AE42: 15025.41158 | AF42: 61.07516973 | AG42: 9.950980392 | AH42: 116.5556674 | AI42: 18.9904206
G43: t+36 | H43: =H42*(1+LimCalc!$D$5/100) -> 24970.52865 | I43: 13084.55701 | J43: =+H43*LimCalc!$D$7/100 -> 3645.697183 | K43: =+L42*LimCalc!$D$6/100 -> 3065.553731 | L43: 35816.39324 | M43: 29127.39324 | N43: 341.8099583 | P43: 116.6470828 | Q43: 145.2843137 | R43: 222.6089367 | S43: =+LimCalc!$D$14*100 -> 277.2601407 | U43: 13.64554086 | V43: 14.16679241 | X43: 84.08689963 | Y43: 85.29411765 | AA43: 499.410573 | AB43: 3065.553731 | AC43: 3564.964304 | AD43: 80.73287877 | AE43: 15106.14446 | AF43: 60.49589367 | AG43: 9.950980392 | AH43: 115.4501788 | AI43: 18.9904206
G44: t+37 | H44: =H43*(1+LimCalc!$D$5/100) -> 25345.08658 | I44: 13280.82537 | J44: =+H44*LimCalc!$D$7/100 -> 3700.382641 | K44: =+L43*LimCalc!$D$6/100 -> 3116.026212 | L44: 36400.74967 | M44: 29711.74967 | N44: 348.756295 | P44: 117.2288348 | Q44: 145.2843137 | R44: 223.7191503 | S44: =+LimCalc!$D$14*100 -> 277.2601407 | U44: 13.67043074 | V44: 14.16679241 | X44: 84.20821612 | Y44: 85.29411765 | AA44: 506.9017316 | AB44: 3116.026212 | AC44: 3622.927943 | AD44: 77.45469762 | AE44: 15183.59916 | AF44: 59.90746613 | AG44: 9.950980392 | AH44: 114.3272254 | AI44: 18.9904206
G45: t+38 | H45: =H44*(1+LimCalc!$D$5/100) -> 25725.26288 | I45: 13480.03775 | J45: =+H45*LimCalc!$D$7/100 -> 3755.88838 | K45: =+L44*LimCalc!$D$6/100 -> 3166.865221 | L45: 36989.77283 | M45: 30300.77283 | N45: 355.7530757 | P45: 117.7860571 | Q45: 145.2843137 | R45: 224.7825517 | S45: =+LimCalc!$D$14*100 -> 277.2601407 | U45: 13.69322566 | V45: 14.16679241 | X45: 84.3173412 | Y45: 85.29411765 | AA45: 514.5052576 | AB45: 3166.865221 | AC45: 3681.370479 | AD45: 74.51790191 | AE45: 15258.11706 | AF45: 59.3118023 | AG45: 9.950980392 | AH45: 113.1904624 | AI45: 18.9904206
G46: t+39 | H46: =H45*(1+LimCalc!$D$5/100) -> 26111.14182 | I46: 13682.23832 | J46: =+H46*LimCalc!$D$7/100 -> 3812.226706 | K46: =+L45*LimCalc!$D$6/100 -> 3218.110236 | L46: 37583.8893 | M46: 30894.8893 | N46: 362.8057334 | P46: 118.3207135 | Q46: 145.2843137 | R46: 225.8028883 | S46: =+LimCalc!$D$14*100 -> 277.2601407 | U46: 13.71413013 | V46: 14.16679241 | X46: 84.41550002 | Y46: 85.29411765 | AA46: 522.2228365 | AB46: 3218.110236 | AC46: 3740.333072 | AD46: 71.89363388 | AE46: 15330.0107 | AF46: 58.7106102 | AG46: 9.950980392 | AH46: 112.0431492 | AI46: 18.9904206
G47: t+40 | H47: =H46*(1+LimCalc!$D$5/100) -> 26502.80895 | I47: 13887.47189 | J47: =+H47*LimCalc!$D$7/100 -> 3869.410107 | K47: =+L46*LimCalc!$D$6/100 -> 3269.798369 | L47: 38183.50103 | M47: 31494.50103 | N47: 369.9193758 | P47: 118.8345775 | Q47: 145.2843137 | R47: 226.7835448 | S47: =+LimCalc!$D$14*100 -> 277.2601407 | U47: 13.73332823 | V47: 14.16679241 | X47: 84.5037946 | Y47: 85.29411765 | AA47: 530.056179 | AB47: 3269.798369 | AC47: 3799.854548 | AD47: 69.555559 | AE47: 15399.56625 | AF47: 58.10541171 | AG47: 9.950980392 | AH47: 110.8881903 | AI47: 18.9904206
G48: t+41 | H48: =H47*(1+LimCalc!$D$5/100) -> 26900.35108 | I48: 14095.78397 | J48: =+H48*LimCalc!$D$7/100 -> 3927.451258 | K48: =+L47*LimCalc!$D$6/100 -> 3321.96459 | L48: 38788.9877 | M48: 32099.9877 | N48: 377.0988157 | P48: 119.3292519 | Q48: 145.2843137 | R48: 227.7275799 | S48: =+LimCalc!$D$14*100 -> 277.2601407 | U48: 13.75098561 | V48: 14.16679241 | X48: 84.58321622 | Y48: 85.29411765 | AA48: 538.0070217 | AB48: 3321.96459 | AC48: 3859.971612 | AD48: 67.47964671 | AE48: 15467.0459 | AF48: 57.49756147 | AG48: 9.950980392 | AH48: 109.7281707 | AI48: 18.9904206
G49: t+42 | H49: =H48*(1+LimCalc!$D$5/100) -> 27303.85635 | I49: 14307.22073 | J49: =+H49*LimCalc!$D$7/100 -> 3986.363027 | K49: =+L48*LimCalc!$D$6/100 -> 3374.64193 | L49: 39400.7088 | M49: 32711.7088 | N49: 384.3485989 | P49: 119.8061855 | Q49: 145.2843137 | R49: 228.6377587 | S49: =+LimCalc!$D$14*100 -> 277.2601407 | U49: 13.76725134 | V49: 14.16679241 | X49: 84.65465656 | Y49: 85.29411765 | AA49: 546.077127 | AB49: 3374.64193 | AC49: 3920.719057 | AD49: 65.64397011 | AE49: 15532.68987 | AF49: 56.88826396 | AG49: 9.950980392 | AH49: 108.5653892 | AI49: 18.9904206
G50: t+43 | H50: =H49*(1+LimCalc!$D$5/100) -> 27713.4142 | I50: 14521.82904 | J50: =+H50*LimCalc!$D$7/100 -> 4046.158473 | K50: =+L49*LimCalc!$D$6/100 -> 3427.861666 | L50: 40019.00561 | M50: 33330.00561 | N50: 391.6730299 | P50: 120.2666888 | Q50: 145.2843137 | R50: 229.5165817 | S50: =+LimCalc!$D$14*100 -> 277.2601407 | U50: 13.78225963 | V50: 14.16679241 | X50: 84.71891768 | Y50: 85.29411765 | AA50: 554.2682839 | AB50: 3427.861666 | AC50: 3982.12995 | AD50: 64.02852316 | AE50: 15596.71839 | AF50: 56.27858871 | AG50: 9.950980392 | AH50: 107.4018869 | AI50: 18.9904206
G51: t+44 | H51: =H50*(1+LimCalc!$D$5/100) -> 28129.11541 | I51: 14739.65647 | J51: =+H51*LimCalc!$D$7/100 -> 4106.85085 | K51: =+L50*LimCalc!$D$6/100 -> 3481.653488 | L51: 40644.20297 | M51: 33955.20297 | N51: 399.0761951 | P51: 120.7119473 | Q51: 145.2843137 | R51: 230.3663116 | S51: =+LimCalc!$D$14*100 -> 277.2601407 | U51: 13.79613126 | V51: 14.16679241 | X51: 84.77672102 | Y51: 85.29411765 | AA51: 562.5823082 | AB51: 3481.653488 | AC51: 4044.235796 | AD51: 62.61505378 | AE51: 15659.33345 | AF51: 55.66948416 | AG51: 9.950980392 | AH51: 106.2394736 | AI51: 18.9904206
G52: t+45 | H52: =H51*(1+LimCalc!$D$5/100) -> 28551.05214 | I52: 14960.75132 | J52: =+H52*LimCalc!$D$7/100 -> 4168.453613 | K52: =+L51*LimCalc!$D$6/100 -> 3536.045658 | L52: 41276.61092 | M52: 34587.61092 | N52: 406.561984 | P52: 121.1430344 | Q52: 145.2843137 | R52: 231.188997 | S52: =+LimCalc!$D$14*100 -> 277.2601407 | U52: 13.80897496 | V52: 14.16679241 | X52: 84.82871556 | Y52: 85.29411765 | AA52: 571.0210428 | AB52: 3536.045658 | AC52: 4107.066701 | AD52: 61.38691141 | AE52: 15720.72036 | AF52: 55.06178996 | AG52: 9.950980392 | AH52: 105.0797518 | AI52: 18.9904206
G53: t+46 | H53: =H52*(1+LimCalc!$D$5/100) -> 28979.31792 | I53: 15185.16259 | J53: =+H53*LimCalc!$D$7/100 -> 4230.980417 | K53: =+L52*LimCalc!$D$6/100 -> 3591.06515 | L53: 41916.52619 | M53: 35227.52619 | N53: 414.1341087 | P53: 121.5609225 | Q53: 145.2843137 | R53: 231.9864932 | S53: =+LimCalc!$D$14*100 -> 277.2601407 | U53: 13.82088864 | V53: 14.16679241 | X53: 84.87548503 | Y53: 85.29411765 | AA53: 579.5863585 | AB53: 3591.06515 | AC53: 4170.651509 | AD53: 60.32890794 | AE53: 15781.04927 | AF53: 54.45624811 | AG53: 9.950980392 | AH53: 103.9241376 | AI53: 18.9904206
G54: t+47 | H54: =H53*(1+LimCalc!$D$5/100) -> 29414.00769 | I54: 15412.94003 | J54: =+H54*LimCalc!$D$7/100 -> 4294.445123 | K54: =+L53*LimCalc!$D$6/100 -> 3646.737778 | L54: 42564.23353 | M54: 35875.23353 | N54: 421.7961221 | P54: 121.9664927 | Q54: 145.2843137 | R54: 232.7604822 | S54: =+LimCalc!$D$14*100 -> 277.2601407 | U54: 13.83196042 | V54: 14.16679241 | X54: 84.91755452 | Y54: 85.29411765 | AA54: 588.2801538 | AB54: 3646.737778 | AC54: 4235.017932 | AD54: 59.42719064 | AE54: 15840.47646 | AF54: 53.85351301 | AG54: 9.950980392 | AH54: 102.7738798 | AI54: 18.9904206
G55: t+48 | H55: =H54*(1+LimCalc!$D$5/100) -> 29855.21781 | I55: 15644.13413 | J55: =+H55*LimCalc!$D$7/100 -> 4358.8618 | K55: =+L54*LimCalc!$D$6/100 -> 3703.088317 | L55: 43220.00702 | M55: 36531.00702 | N55: 429.5514338 | P55: 122.3605443 | Q55: 145.2843137 | R55: 233.5124892 | S55: =+LimCalc!$D$14*100 -> 277.2601407 | U55: 13.84226964 | V55: 14.16679241 | X55: 84.95539633 | Y55: 85.29411765 | AA55: 597.1043561 | AB55: 3703.088317 | AC55: 4300.192674 | AD55: 58.66912621 | AE55: 15899.14558 | AF55: 53.25416042 | AG55: 9.950980392 | AH55: 101.6300771 | AI55: 18.9904206
G56: t+49 | H56: =H55*(1+LimCalc!$D$5/100) -> 30303.04607 | I56: 15878.79614 | J56: =+H56*LimCalc!$D$7/100 -> 4424.244727 | K56: =+L55*LimCalc!$D$6/100 -> 3760.14061 | L56: 43884.11113 | M56: 37195.11113 | N56: 437.4033253 | P56: 122.7438029 | Q56: 145.2843137 | R56: 234.2438986 | S56: =+LimCalc!$D$14*100 -> 277.2601407 | U56: 13.85188778 | V56: 14.16679241 | X56: 84.98943532 | Y56: 85.29411765 | AA56: 606.0609215 | AB56: 3760.14061 | AC56: 4366.201532 | AD56: 58.0431949 | AE56: 15957.18878 | AF56: 52.65869557 | AG56: 9.950980392 | AH56: 100.4936938 | AI56: 18.9904206
G57: t+50 | H57: =H56*(1+LimCalc!$D$5/100) -> 30757.59177 | I57: 16116.97808 | J57: =+H57*LimCalc!$D$7/100 -> 4490.608398 | K57: =+L56*LimCalc!$D$6/100 -> 3817.917669 | L57: 44556.80186 | M57: 37867.80186 | N57: 445.3549634 | P57: 123.1169272 | Q57: 145.2843137 | R57: 234.9559679 | S57: =+LimCalc!$D$14*100 -> 277.2601407 | U57: 13.86087918 | V57: 14.16679241 | X57: 85.02005364 | Y57: 85.29411765 | AA57: 615.1518353 | AB57: 3817.917669 | AC57: 4433.069504 | AD57: 57.53889385 | AE57: 16014.72767 | AF57: 52.06756041 | AG57: 9.950980392 | AH57: 99.3655733 | AI57: 18.9904206
G58: t+51 | H58: =H57*(1+LimCalc!$D$5/100) -> 31218.95564 | I58: 16358.73276 | J58: =+H58*LimCalc!$D$7/100 -> 4557.967524 | K58: =+L57*LimCalc!$D$6/100 -> 3876.441762 | L58: =+L57+J58-K58 -> 45238.32762 | M58: =+M57+J58-K58 -> 38549.32762 | N58: 453.4094132 | P58: =+M58/H58*100 -> 123.4805163 | Q58: 145.2843137 | R58: =+M58/I58*100 -> 235.6498404 | S58: =+LimCalc!$D$14*100 -> 277.2601407 | U58: =+(N58+K58)/H58*100+T58 -> 13.8693018 | V58: 14.16679241 | X58: =+K58/J58*100+W58 -> 85.04759505 | Y58: 85.29411765 | AA58: 624.3791128 | AB58: =+K58 -> 3876.441762 | AC58: =+AA58+AB58 -> 4500.820875 | AD58: =+J58-AC58 -> 57.14664885 | AE58: =+AE57+J58-K58-AA58 -> 16071.87432 | AF58: =+AE58/$H58*100 -> 51.4811402 | AG58: 9.950980392 | AH58: =+AE58/$I58*100 -> 98.24645076 | AI58: 18.9904206
G59: t+52 | H59: =H58*(1+LimCalc!$D$5/100) -> 31687.23998 | I59: 16604.11375 | J59: =+H59*LimCalc!$D$7/100 -> 4626.337037 | K59: =+L58*LimCalc!$D$6/100 -> 3935.734503 | L59: 45928.93016 | M59: 39239.93016 | N59: 461.5696491 | P59: 123.8351153 | Q59: 145.2843137 | R59: 236.3265559 | S59: =+LimCalc!$D$14*100 -> 277.2601407 | U59: 13.87720785 | V59: 14.16679241 | X59: 85.07236875 | Y59: 85.29411765 | AA59: 633.7447995 | AB59: 3935.734503 | AC59: 4569.479303 | AD59: 56.85773375 | AE59: 16128.73206 | AF59: 50.89976933 | AG59: 9.950980392 | AH59: 97.13696438 | AI59: 18.9904206
G60: t+53 | H60: =H59*(1+LimCalc!$D$5/100) -> 32162.54858 | I60: 16853.17545 | J60: =+H60*LimCalc!$D$7/100 -> 4695.732092 | K60: =+L59*LimCalc!$D$6/100 -> 3995.816924 | L60: 46628.84533 | M60: 39939.84533 | N60: 469.8385656 | P60: 124.1812204 | Q60: 145.2843137 | R60: 236.9870618 | S60: =+LimCalc!$D$14*100 -> 277.2601407 | U60: 13.88464437 | V60: 14.16679241 | X60: 85.09465287 | Y60: 85.29411765 | AA60: 643.2509715 | AB60: 3995.816924 | AC60: 4639.067895 | AD60: 56.66419691 | AE60: 16185.39625 | AF60: 50.32373667 | AG60: 9.950980392 | AH60: 96.03766541 | AI60: 18.9904206
G61: t+54 | H61: =H60*(1+LimCalc!$D$5/100) -> 32644.9868 | I61: 17105.97309 | J61: =+H61*LimCalc!$D$7/100 -> 4766.168073 | K61: =+L60*LimCalc!$D$6/100 -> 4056.709543 | L61: 47338.30386 | M61: 40649.30386 | N61: 478.2189867 | P61: 124.5192841 | Q61: 145.2843137 | R61: 237.6322215 | S61: =+LimCalc!$D$14*100 -> 277.2601407 | U61: 13.89165374 | V61: 14.16679241 | X61: 85.11469761 | Y61: 85.29411765 | AA61: 652.8997361 | AB61: 4056.709543 | AC61: 4709.609279 | AD61: 56.55879406 | AE61: 16241.95505 | AF61: 49.75329028 | AG61: 9.950980392 | AH61: 94.94902725 | AI61: 18.9904206
G62: t+55 | H62: =H61*(1+LimCalc!$D$5/100) -> 33134.66161 | I62: 17362.56268 | J62: =+H62*LimCalc!$D$7/100 -> 4837.660595 | K62: =+L61*LimCalc!$D$6/100 -> 4118.432435 | L62: 48057.53201 | M62: 41368.53201 | N62: 486.713675 | P62: 124.8497193 | Q62: 145.2843137 | R62: 238.2628231 | S62: =+LimCalc!$D$14*100 -> 277.2601407 | U62: 13.89827416 | V62: 14.16679241 | X62: 85.132728 | Y62: 85.29411765 | AA62: 662.6932321 | AB62: 4118.432435 | AC62: 4781.125668 | AD62: 56.534927 | AE62: 16298.48997 | AF62: 49.18864169 | AG62: 9.950980392 | AH62: 93.87145361 | AI62: 18.9904206
G63: t+56 | H63: =H62*(1+LimCalc!$D$5/100) -> 33631.68153 | I63: 17623.00112 | J63: =+H63*LimCalc!$D$7/100 -> 4910.225503 | K63: =+L62*LimCalc!$D$6/100 -> 4181.005285 | L63: 48786.75223 | M63: 42097.75223 | N63: 495.3253399 | P63: 125.1729034 | Q63: 145.2843137 | R63: 238.8795866 | S63: =+LimCalc!$D$14*100 -> 277.2601407 | U63: 13.90454004 | V63: 14.16679241 | X63: 85.14894647 | Y63: 85.29411765 | AA63: 672.6336306 | AB63: 4181.005285 | AC63: 4853.638916 | AD63: 56.58658759 | AE63: 16355.07656 | AF63: 48.62996977 | AG63: 9.950980392 | AH63: 92.80528582 | AI63: 18.9904206
G64: t+57 | H64: =H63*(1+LimCalc!$D$5/100) -> 34136.15675 | I64: 17887.34614 | J64: =+H64*LimCalc!$D$7/100 -> 4983.878886 | K64: =+L63*LimCalc!$D$6/100 -> 4244.447444 | L64: 49526.18367 | M64: 42837.18367 | N64: 504.0566444 | P64: 125.4891814 | Q64: 145.2843137 | R64: 239.4831706 | S64: =+LimCalc!$D$14*100 -> 277.2601407 | U64: 13.91048243 | V64: 14.16679241 | X64: 85.1635351 | Y64: 85.29411765 | AA64: 682.7231351 | AB64: 4244.447444 | AC64: 4927.170579 | AD64: 56.7083067 | AE64: 16411.78487 | AF64: 48.07742414 | AG64: 9.950980392 | AH64: 91.75080943 | AI64: 18.9904206
G65: t+58 | H65: =H64*(1+LimCalc!$D$5/100) -> 34648.1991 | I65: 18155.65633 | J65: =+H65*LimCalc!$D$7/100 -> 5058.637069 | K65: =+L64*LimCalc!$D$6/100 -> 4308.77798 | L65: 50276.04276 | M65: 43587.04276 | N65: 512.9102129 | P65: 125.7988695 | Q65: 145.2843137 | R65: 240.0741784 | S65: =+LimCalc!$D$14*100 -> 277.2601407 | U65: 13.91612931 | V65: 14.16679241 | X65: 85.17665768 | Y65: 85.29411765 | AA65: 692.9639821 | AB65: 4308.77798 | AC65: 5001.741962 | AD65: 56.89510753 | AE65: 16468.67998 | AF65: 47.53112832 | AG65: 9.950980392 | AH65: 90.70826014 | AI65: 18.9904206
G66: t+59 | H66: =H65*(1+LimCalc!$D$5/100) -> 35167.92209 | I66: 18427.99118 | J66: =+H66*LimCalc!$D$7/100 -> 5134.516625 | K66: =+L65*LimCalc!$D$6/100 -> 4374.01572 | L66: 51036.54367 | M66: 44347.54367 | N66: 521.8886366 | P66: 126.1022575 | Q66: 145.2843137 | R66: 240.6531631 | S66: =+LimCalc!$D$14*100 -> 277.2601407 | U66: 13.92150592 | V66: 14.16679241 | X66: 85.18846154 | Y66: 85.29411765 | AA66: 703.3584418 | AB66: 4374.01572 | AC66: 5077.374162 | AD66: 57.14246304 | AE66: 16525.82244 | AF66: 46.99118246 | AG66: 9.950980392 | AH66: 89.67782913 | AI66: 18.9904206
G67: t+60 | H67: =H66*(1+LimCalc!$D$5/100) -> 35695.44092 | I67: 18704.41104 | J67: =+H67*LimCalc!$D$7/100 -> 5211.534375 | K67: =+L66*LimCalc!$D$6/100 -> 4440.179299 | L67: 51807.89874 | M67: 45118.89874 | N67: 530.9944799 | P67: 126.3996118 | Q67: 145.2843137 | R67: 241.2206331 | S67: =+LimCalc!$D$14*100 -> 277.2601407 | U67: 13.92663503 | V67: 14.16679241 | X67: 85.1990792 | Y67: 85.29411765 | AA67: 713.9088185 | AB67: 4440.179299 | AC67: 5154.088118 | AD67: 57.44625707 | AE67: 16583.2687 | AF67: 46.45766593 | AG67: 9.950980392 | AH67: 88.6596678 | AI67: 18.9904206
G68: t+61 | H68: =H67*(1+LimCalc!$D$5/100) -> 36230.87254 | I68: 18984.97721 | J68: =+H68*LimCalc!$D$7/100 -> 5289.70739 | K68: =+L67*LimCalc!$D$6/100 -> 4507.287191 | L68: 52590.31894 | M68: 45901.31894 | N68: 540.2302853 | P68: 126.6911772 | Q68: 145.2843137 | R68: 241.7770558 | S68: =+LimCalc!$D$14*100 -> 277.2601407 | U68: 13.93153717 | V68: 14.16679241 | X68: 85.20862986 | Y68: 85.29411765 | AA68: 724.6174507 | AB68: 4507.287191 | AC68: 5231.904642 | AD68: 57.80274884 | AE68: 16641.07144 | AF68: 45.93063948 | AG68: 9.950980392 | AH68: 87.65389213 | AI68: 18.9904206
G69: t+62 | H69: =H68*(1+LimCalc!$D$5/100) -> 36774.33562 | I69: 19269.75187 | J69: =+H69*LimCalc!$D$7/100 -> 5369.053001 | K69: =+L68*LimCalc!$D$6/100 -> 4575.357748 | L69: 53384.0142 | M69: 46695.0142 | N69: 549.5985789 | P69: 126.9771796 | Q69: 145.2843137 | R69: 242.3228619 | S69: =+LimCalc!$D$14*100 -> 277.2601407 | U69: 13.93623091 | V69: 14.16679241 | X69: 85.21722075 | Y69: 85.29411765 | AA69: 735.4867125 | AB69: 4575.357748 | AC69: 5310.844461 | AD69: 58.20854058 | AE69: 16699.27999 | AF69: 45.41014733 | AG69: 9.950980392 | AH69: 86.6605865 | AI69: 18.9904206
G70: t+63 | H70: =H69*(1+LimCalc!$D$5/100) -> 37325.95066 | I70: 19558.79815 | J70: =+H70*LimCalc!$D$7/100 -> 5449.588796 | K70: =+L69*LimCalc!$D$6/100 -> 4644.409235 | L70: 54189.19376 | M70: 47500.19376 | N70: 559.1018741 | P70: 127.2578271 | Q70: 145.2843137 | R70: 242.8584487 | S70: =+LimCalc!$D$14*100 -> 277.2601407 | U70: 13.94073297 | V70: 14.16679241 | X70: 85.22494832 | Y70: 85.29411765 | AA70: 746.5190132 | AB70: 4644.409235 | AC70: 5390.928248 | AD70: 58.66054789 | AE70: 16757.94053 | AF70: 44.89621895 | AG70: 9.950980392 | AH70: 85.67980716 | AI70: 18.9904206
G71: t+64 | H71: =H70*(1+LimCalc!$D$5/100) -> 37885.83992 | I71: 19852.18012 | J71: =+H71*LimCalc!$D$7/100 -> 5531.332628 | K71: =+L70*LimCalc!$D$6/100 -> 4714.459857 | L71: 55006.06653 | M71: 48317.06653 | N71: 568.7426764 | P71: 127.5333123 | Q71: =+$D$12*100 -> 145.2843137 | R71: 243.3841837 | S71: =+LimCalc!$D$14*100 -> 277.2601407 | U71: 13.94505848 | V71: =+$D$18*100 -> 14.16679241 | X71: 85.23189932 | Y71: =+$D$16*100 -> 85.29411765 | AA71: 757.7167984 | AB71: 4714.459857 | AC71: 5472.176655 | AD71: 59.15597282 | AE71: 16817.09651 | AF71: 44.38887073 | AG71: =+$D$22*100 -> 9.950980392 | AH71: 84.71158536 | AI71: =+$D$24*100 -> 18.9904206
G72: t+65 | H72: =H71*(1+LimCalc!$D$5/100) -> 38454.12752 | I72: =+H72*$D$8/100 -> 20149.96282 | J72: =+H72*LimCalc!$D$7/100 -> 5614.302618 | K72: =+L71*LimCalc!$D$6/100 -> 4785.527788 | L72: 55834.84136 | M72: 49145.84136 | N72: 578.5234872 | P72: 127.8038134 | Q72: 145.2843137 | R72: 243.9004072 | S72: =+LimCalc!$D$14*100 -> 277.2601407 | U72: 13.94922111 | V72: 14.16679241 | X72: 85.23815181 | Y72: 85.29411765 | AA72: =+$D$9*H72/100 -> 769.0825504 | AB72: 4785.527788 | AC72: 5554.610338 | AD72: 59.69227917 | AE72: 16876.78878 | AF72: 43.8881074 | AG72: 9.950980392 | AH72: 83.75593015 | AI72: 18.9904206
G73: t+66 | H73: =H72*(1+LimCalc!$D$5/100) -> 39030.93943 | I73: 20452.21226 | J73: =+H73*LimCalc!$D$7/100 -> 5698.517157 | K73: =+L72*LimCalc!$D$6/100 -> 4857.631198 | L73: 56675.72732 | M73: 49986.72732 | N73: =+M72*$D$4/100 -> 588.446807 | P73: 128.0694958 | Q73: 145.2843137 | R73: 244.4074346 | S73: =+LimCalc!$D$14*100 -> 277.2601407 | U73: 13.95323322 | V73: 14.16679241 | X73: 85.24377596 | Y73: 85.29411765 | AA73: 780.6187886 | AB73: 4857.631198 | AC73: 5638.249987 | AD73: 60.26717001 | AE73: 16937.05595 | AF73: 43.39392339 | AG73: 9.950980392 | AH73: 82.8128309 | AI73: 18.9904206
G74: t+67 | H74: =H73*(1+LimCalc!$D$5/100) -> 39616.40352 | I74: 20758.99545 | J74: =+H74*LimCalc!$D$7/100 -> 5783.994914 | K74: =+L73*LimCalc!$D$6/100 -> 4930.788277 | L74: 57528.93396 | M74: 50839.93396 | N74: 598.5151392 | P74: 128.3305132 | Q74: 145.2843137 | R74: 244.9055596 | S74: =+LimCalc!$D$14*100 -> 277.2601407 | U74: 13.95710596 | V74: 14.16679241 | X74: 85.24883493 | Y74: 85.29411765 | AA74: 792.3280704 | AB74: 4930.788277 | AC74: 5723.116347 | AD74: 60.87856714 | AE74: 16997.93452 | AF74: 42.90630398 | AG74: 9.950980392 | AH74: 81.88225951 | AI74: 18.9904206
G75: t+68 | H75: =H74*(1+LimCalc!$D$5/100) -> 40210.64957 | I75: 21070.38038 | J75: =+H75*LimCalc!$D$7/100 -> 5870.754838 | K75: =+L74*LimCalc!$D$6/100 -> 5005.017254 | L75: 58394.67154 | M75: 51705.67154 | N75: 608.7309928 | P75: 128.5870089 | Q75: 145.2843137 | R75: 245.3950551 | S75: =+LimCalc!$D$14*100 -> 277.2601407 | U75: 13.96084944 | V75: 14.16679241 | X75: 85.25338551 | Y75: 85.29411765 | AA75: 804.2129915 | AB75: 5005.017254 | AC75: 5809.230246 | AD75: 61.52459232 | AE75: 17059.45911 | AF75: 42.42522639 | AG75: 9.950980392 | AH75: 80.9641725 | AI75: 18.9904206
G76: t+69 | H76: =H75*(1+LimCalc!$D$5/100) -> 40813.80932 | I76: 21386.43608 | J76: =+H76*LimCalc!$D$7/100 -> 5958.81616 | K76: =+L75*LimCalc!$D$6/100 -> 5080.336424 | L76: 59273.15128 | M76: 52584.15128 | N76: 619.0968855 | P76: 128.8391164 | Q76: 145.2843137 | R76: 245.8761762 | S76: =+LimCalc!$D$14*100 -> 277.2601407 | U76: 13.96447282 | V76: 14.16679241 | X76: 85.25747879 | Y76: 85.29411765 | AA76: 816.2761864 | AB76: 5080.336424 | AC76: 5896.61261 | AD76: 62.20355023 | AE76: 17121.66266 | AF76: 41.9506607 | AG76: 9.950980392 | AH76: 80.05851278 | AI76: 18.9904206
G77: t+70 | H77: =H76*(1+LimCalc!$D$5/100) -> 41426.01646 | I77: 21707.23262 | J77: =+H77*LimCalc!$D$7/100 -> 6048.198403 | K77: =+L76*LimCalc!$D$6/100 -> 5156.764161 | L77: 60164.58552 | M77: 53475.58552 | N77: 629.6153461 | P77: 129.0869605 | Q77: 145.2843137 | R77: 246.3491613 | S77: =+LimCalc!$D$14*100 -> 277.2601407 | U77: 13.96798438 | V77: 14.16679241 | X77: 85.26116072 | Y77: 85.29411765 | AA77: 828.5203292 | AB77: 5156.764161 | AC77: 5985.28449 | AD77: 62.91391276 | AE77: 17184.57658 | AF77: 41.48257073 | AG77: 9.950980392 | AH77: 79.16521131 | AI77: 18.9904206
G78: t+71 | H78: =H77*(1+LimCalc!$D$5/100) -> 42047.40671 | I78: 22032.84111 | J78: =+H78*LimCalc!$D$7/100 -> 6138.921379 | K78: =+L77*LimCalc!$D$6/100 -> 5234.31894 | L78: 61069.18796 | M78: 54380.18796 | N78: 640.2889172 | P78: 129.3306585 | Q78: 145.2843137 | R78: 246.8142337 | S78: =+LimCalc!$D$14*100 -> 277.2601407 | U78: 13.97139162 | V78: 14.16679241 | X78: 85.26447265 | Y78: 85.29411765 | AA78: 840.9481341 | AB78: 5234.31894 | AC78: 6075.267074 | AD78: 63.65430482 | AE78: 17248.23088 | AF78: 41.02091481 | AG78: 9.950980392 | AH78: 78.28418856 | AI78: 18.9904206
G79: t+72 | H79: =H78*(1+LimCalc!$D$5/100) -> 42678.11781 | I79: 22363.33373 | J79: =+H79*LimCalc!$D$7/100 -> 6231.0052 | K79: =+L78*LimCalc!$D$6/100 -> 5313.019352 | L79: 61987.1738 | M79: 55298.1738 | N79: 651.1201575 | P79: 129.57032 | Q79: 145.2843137 | R79: 247.271603 | S79: =+LimCalc!$D$14*100 -> 277.2601407 | U79: 13.97470136 | V79: 14.16679241 | X79: 85.26745175 | Y79: 85.29411765 | AA79: 853.5623561 | AB79: 5313.019352 | AC79: 6166.581708 | AD79: 64.4234913 | AE79: 17312.65437 | AF79: 40.56564643 | AG79: 9.950980392 | AH79: 77.41535579 | AI79: 18.9904206
G80: t+73 | H80: =H79*(1+LimCalc!$D$5/100) -> 43318.28957 | I80: 22698.78374 | J80: =+H80*LimCalc!$D$7/100 -> 6324.470278 | K80: =+L79*LimCalc!$D$6/100 -> 5392.884121 | L80: 62918.75996 | M80: 56229.75996 | N80: 662.1116438 | P80: 129.8060485 | Q80: 145.2843137 | R80: 247.7214666 | S80: =+LimCalc!$D$14*100 -> 277.2601407 | U80: 13.97791978 | V80: 14.16679241 | X80: 85.27013148 | Y80: 85.29411765 | AA80: 866.3657915 | AB80: 5392.884121 | AC80: 6259.249912 | AD80: 65.22036523 | AE80: 17377.87474 | AF80: 40.11671493 | AG80: 9.950980392 | AH80: 76.55861627 | AI80: 18.9904206
G81: t+74 | H81: =H80*(1+LimCalc!$D$5/100) -> 43968.06392 | I81: 23039.26549 | J81: =+H81*LimCalc!$D$7/100 -> 6419.337332 | K81: =+L80*LimCalc!$D$6/100 -> 5473.932117 | L81: 63864.16518 | M81: 57175.16518 | N81: 673.2659731 | P81: 130.0379414 | Q81: 145.2843137 | R81: 248.1640102 | S81: =+LimCalc!$D$14*100 -> 277.2601407 | U81: 13.98105248 | V81: 14.16679241 | X81: 85.27254191 | Y81: 85.29411765 | AA81: 879.3612783 | AB81: 5473.932117 | AC81: 6353.293395 | AD81: 66.04393689 | AE81: 17443.91868 | AF81: 39.67406595 | AG81: 9.950980392 | AH81: 75.71386632 | AI81: 18.9904206
G82: t+75 | H82: =H81*(1+LimCalc!$D$5/100) -> 44627.58488 | I82: 23384.85447 | J82: =+H82*LimCalc!$D$7/100 -> 6515.627392 | K82: =+L81*LimCalc!$D$6/100 -> 5556.18237 | L82: 64823.6102 | M82: 58134.6102 | N82: 684.5857647 | P82: 130.2660907 | Q82: 145.2843137 | R82: 248.5994098 | S82: =+LimCalc!$D$14*100 -> 277.2601407 | U82: 13.98410457 | V82: 14.16679241 | X82: 85.27471011 | Y82: 85.29411765 | AA82: 892.5516975 | AB82: 5556.18237 | AC82: 6448.734068 | AD82: 66.89332397 | AE82: 17510.812 | AF82: 39.23764203 | AG82: 9.950980392 | AH82: 74.88099624 | AI82: 18.9904206
G83: t+76 | H83: =H82*(1+LimCalc!$D$5/100) -> 45296.99865 | I83: 23735.62729 | J83: =+H83*LimCalc!$D$7/100 -> 6613.361803 | K83: =+L82*LimCalc!$D$6/100 -> 5639.654087 | L83: 65797.31791 | M83: 59108.31791 | N83: 696.0736616 | P83: 130.4905837 | Q83: 145.2843137 | R83: 249.0278314 | S83: =+LimCalc!$D$14*100 -> 277.2601407 | U83: 13.98708068 | V83: 14.16679241 | X83: 85.27666043 | Y83: 85.29411765 | AA83: 905.939973 | AB83: 5639.654087 | AC83: 6545.59406 | AD83: 67.76774251 | AE83: 17578.57974 | AF83: 38.80738298 | AG83: 9.950980392 | AH83: 74.05989118 | AI83: 18.9904206
G84: t+77 | H84: =H83*(1+LimCalc!$D$5/100) -> 45976.45363 | I84: 24091.6617 | J84: =+H84*LimCalc!$D$7/100 -> 6712.56223 | K84: =+L83*LimCalc!$D$6/100 -> 5724.366658 | L84: 66785.51348 | M84: 60096.51348 | N84: 707.7323326 | P84: 130.7115028 | Q84: 145.2843137 | R84: 249.4494329 | S84: =+LimCalc!$D$14*100 -> 277.2601407 | U84: 13.98998505 | V84: 14.16679241 | X84: 85.27841475 | Y84: 85.29411765 | AA84: 919.5290726 | AB84: 5724.366658 | AC84: 6643.895731 | AD84: 68.66649871 | AE84: 17647.24624 | AF84: 38.3832263 | AG84: 9.950980392 | AH84: 73.25043187 | AI84: 18.9904206
G85: t+78 | H85: =H84*(1+LimCalc!$D$5/100) -> 46666.10043 | I85: 24453.03663 | J85: =+H85*LimCalc!$D$7/100 -> 6813.250663 | K85: =+L84*LimCalc!$D$6/100 -> 5810.339673 | L85: 67788.42447 | M85: 61099.42447 | N85: 719.5644737 | P85: 130.9289268 | Q85: 145.2843137 | R85: 249.8643641 | S85: =+LimCalc!$D$14*100 -> 277.2601407 | U85: 13.99282153 | V85: 14.16679241 | X85: 85.27999277 | Y85: 85.29411765 | AA85: 933.3220086 | AB85: 5810.339673 | AC85: 6743.661682 | AD85: 69.58898137 | AE85: 17716.83522 | AF85: 37.96510756 | AG85: 9.950980392 | AH85: 72.45249534 | AI85: 18.9904206
G86: t+79 | H86: =H85*(1+LimCalc!$D$5/100) -> 47366.09194 | I86: 24819.83218 | J86: =+H86*LimCalc!$D$7/100 -> 6915.449423 | K86: =+L85*LimCalc!$D$6/100 -> 5897.592929 | L86: 68806.28097 | M86: 62117.28097 | N86: 731.5728095 | P86: 131.1429304 | Q86: 145.2843137 | R86: 250.2727679 | S86: =+LimCalc!$D$14*100 -> 277.2601407 | U86: 13.99559361 | V86: 14.16679241 | X86: 85.28141222 | Y86: 85.29411765 | AA86: 947.3218388 | AB86: 5897.592929 | AC86: 6844.914768 | AD86: 70.53465505 | AE86: 17787.36988 | AF86: 37.55296067 | AG86: 9.950980392 | AH86: 71.66595548 | AI86: 18.9904206
G87: t+80 | H87: =H86*(1+LimCalc!$D$5/100) -> 48076.58332 | I87: 25192.12966 | J87: =+H87*LimCalc!$D$7/100 -> 7019.181164 | K87: =+L86*LimCalc!$D$6/100 -> 5986.146444 | L87: 69839.31569 | M87: 63150.31569 | N87: 743.7600951 | P87: 131.3535849 | Q87: 145.2843137 | R87: 250.6747804 | S87: =+LimCalc!$D$14*100 -> 277.2601407 | U87: 13.99830453 | V87: 14.16679241 | X87: 85.28268902 | Y87: 85.29411765 | AA87: 961.5316664 | AB87: 5986.146444 | AC87: 6947.678111 | AD87: 71.50305386 | AE87: 17858.87293 | AF87: 37.14671821 | AG87: 9.950980392 | AH87: 70.89068361 | AI87: 18.9904206
G88: t+81 | H88: =H87*(1+LimCalc!$D$5/100) -> 48797.73207 | I88: 25570.0116 | J88: =+H88*LimCalc!$D$7/100 -> 7124.468882 | K88: =+L87*LimCalc!$D$6/100 -> 6076.020465 | L88: 70887.76411 | M88: 64198.76411 | N88: 756.1291169 | P88: 131.5609586 | Q88: 145.2843137 | R88: 251.0705318 | S88: =+LimCalc!$D$14*100 -> 277.2601407 | U88: 14.0009572 | V88: 14.16679241 | X88: 85.28383751 | Y88: 85.29411765 | AA88: 975.9546414 | AB88: 6076.020465 | AC88: 7051.975106 | AD88: 72.49377567 | AE88: 17931.36671 | AF88: 36.74631166 | AG88: 9.950980392 | AH88: 70.12654896 | AI88: 18.9904206
G89: t+82 | H89: =H88*(1+LimCalc!$D$5/100) -> 49529.69805 | I89: 25953.56178 | J89: =+H89*LimCalc!$D$7/100 -> 7231.335915 | K89: =+L88*LimCalc!$D$6/100 -> 6167.235477 | L89: 71951.86454 | M89: 65262.86454 | N89: 768.6826943 | P89: 131.7651169 | Q89: 145.2843137 | R89: 251.4601468 | S89: =+LimCalc!$D$14*100 -> 277.2601407 | U89: 14.00355432 | V89: 14.16679241 | X89: 85.28487059 | Y89: 85.29411765 | AA89: 990.593961 | AB89: 6167.235477 | AC89: 7157.829438 | AD89: 73.506477 | AE89: 18004.87318 | AF89: 36.35167161 | AG89: 9.950980392 | AH89: 69.3734191 | AI89: 18.9904206
G90: t+83 | H90: =H89*(1+LimCalc!$D$5/100) -> 50272.64352 | I90: 26342.8652 | J90: =+H90*LimCalc!$D$7/100 -> 7339.805954 | K90: =+L89*LimCalc!$D$6/100 -> 6259.812215 | L90: 73031.85828 | M90: 66342.85828 | N90: 781.4236809 | P90: 131.9661224 | Q90: 145.2843137 | R90: 251.843745 | S90: =+LimCalc!$D$14*100 -> 277.2601407 | U90: 14.00609835 | V90: 14.16679241 | X90: 85.28579985 | Y90: 85.29411765 | AA90: 1005.45287 | AB90: 6259.812215 | AC90: 7265.265086 | AD90: 74.5408682 | AE90: 18079.41405 | AF90: 35.96272801 | AG90: 9.950980392 | AH90: 68.63116032 | AI90: 18.9904206
G91: t+84 | H91: =H90*(1+LimCalc!$D$5/100) -> 51026.73317 | I91: 26738.00818 | J91: =+H91*LimCalc!$D$7/100 -> 7449.903043 | K91: =+L90*LimCalc!$D$6/100 -> 6353.771671 | L91: 74127.98965 | M91: 67438.98965 | N91: 794.3549656 | P91: 132.1640353 | Q91: 145.2843137 | R91: 252.2214415 | S91: =+LimCalc!$D$14*100 -> 277.2601407 | U91: 14.00859156 | V91: 14.16679241 | X91: 85.28663573 | Y91: 85.29411765 | AA91: 1020.534663 | AB91: 6353.771671 | AC91: 7374.306334 | AD91: 75.5967092 | AE91: 18155.01076 | AF91: 35.57941031 | AG91: 9.950980392 | AH91: 67.89963799 | AI91: 18.9904206
G92: t+85 | H92: =H91*(1+LimCalc!$D$5/100) -> 51792.13417 | I92: 27139.0783 | J92: =+H92*LimCalc!$D$7/100 -> 7561.651589 | K92: =+L91*LimCalc!$D$6/100 -> 6449.1351 | L92: 75240.50614 | M92: 68551.50614 | N92: 807.479474 | P92: 132.3589136 | Q92: 145.2843137 | R92: 252.5933467 | S92: =+LimCalc!$D$14*100 -> 277.2601407 | U92: 14.01103602 | V92: 14.16679241 | X92: 85.28738761 | Y92: 85.29411765 | AA92: 1035.842683 | AB92: 6449.1351 | AC92: 7484.977783 | AD92: 76.67380547 | AE92: 18231.68457 | AF92: 35.20164762 | AG92: 9.950980392 | AH92: 67.17871684 | AI92: 18.9904206
G93: t+86 | H93: =H92*(1+LimCalc!$D$5/100) -> 52569.01618 | I93: 27546.16448 | J93: =+H93*LimCalc!$D$7/100 -> 7675.076363 | K93: =+L92*LimCalc!$D$6/100 -> 6545.924034 | L93: 76369.65847 | M93: 69680.65847 | N93: 820.8001692 | P93: 132.5508133 | Q93: 145.2843137 | R93: 252.9595673 | S93: =+LimCalc!$D$14*100 -> 277.2601407 | U93: 14.01343365 | V93: 14.16679241 | X93: 85.28806393 | Y93: 85.29411765 | AA93: 1051.380324 | AB93: 6545.924034 | AC93: 7597.304358 | AD93: 77.77200452 | AE93: 18309.45657 | AF93: 34.8293689 | AG93: 9.950980392 | AH93: 66.46826125 | AI93: 18.9904206
G94: t+87 | H94: =H93*(1+LimCalc!$D$5/100) -> 53357.55143 | I94: 27959.35695 | J94: =+H94*LimCalc!$D$7/100 -> 7790.202508 | K94: =+L93*LimCalc!$D$6/100 -> 6644.160287 | L94: 77515.70069 | M94: 70826.70069 | N94: 834.3200534 | P94: 132.7397881 | Q94: 145.2843137 | R94: 253.3202063 | S94: =+LimCalc!$D$14*100 -> 277.2601407 | U94: 14.01578622 | V94: 14.16679241 | X94: 85.28867228 | Y94: 85.29411765 | AA94: 1067.151029 | AB94: 6644.160287 | AC94: 7711.311316 | AD94: 78.89119256 | AE94: 18388.34776 | AF94: 34.46250301 | AG94: 9.950980392 | AH94: 65.76813551 | AI94: 18.9904206
G95: t+88 | H95: =H94*(1+LimCalc!$D$5/100) -> 54157.9147 | I95: 28378.7473 | J95: =+H95*LimCalc!$D$7/100 -> 7907.055546 | K95: =+L94*LimCalc!$D$6/100 -> 6743.86596 | L95: 78678.89028 | M95: 71989.89028 | N95: 848.0421684 | P95: 132.9258903 | Q95: 145.2843137 | R95: 253.6753632 | S95: =+LimCalc!$D$14*100 -> 277.2601407 | U95: 14.01809536 | V95: 14.16679241 | X95: 85.2892195 | Y95: 85.29411765 | AA95: 1083.158294 | AB95: 6743.86596 | AC95: 7827.024254 | AD95: 80.03129152 | AE95: 18468.37906 | AF95: 34.10097889 | AG95: 9.950980392 | AH95: 65.07820398 | AI95: 18.9904206
G96: t+89 | H96: =H95*(1+LimCalc!$D$5/100) -> 54970.28342 | I96: 28804.42851 | J96: =+H96*LimCalc!$D$7/100 -> 8025.661379 | K96: =+L95*LimCalc!$D$6/100 -> 6845.063454 | L96: 79859.4882 | M96: 73170.4882 | N96: 861.969597 | P96: 133.1091704 | Q96: 145.2843137 | R96: 254.0251343 | S96: =+LimCalc!$D$14*100 -> 277.2601407 | U96: 14.02036259 | V96: 14.16679241 | X96: 85.28971173 | Y96: 85.29411765 | AA96: 1099.405668 | AB96: 6845.063454 | AC96: 7944.469123 | AD96: 81.19225636 | AE96: 18549.57131 | AF96: 33.74472562 | AG96: 9.950980392 | AH96: 64.39833134 | AI96: 18.9904206
G97: t+90 | H97: =H96*(1+LimCalc!$D$5/100) -> 55794.83767 | I97: 29236.49494 | J97: =+H97*LimCalc!$D$7/100 -> 8146.0463 | K97: =+L96*LimCalc!$D$6/100 -> 6947.775474 | L97: 81057.75903 | M97: 74368.75903 | N97: 876.105464 | P97: 133.2896772 | Q97: 145.2843137 | R97: 254.369613 | S97: =+LimCalc!$D$14*100 -> 277.2601407 | U97: 14.0225893 | V97: 14.16679241 | X97: 85.29015449 | Y97: 85.29411765 | AA97: 1115.896753 | AB97: 6947.775474 | AC97: 8063.672227 | AD97: 82.37407257 | AE97: 18631.94538 | AF97: 33.39367254 | AG97: 9.950980392 | AH97: 63.72838271 | AI97: 18.9904206
G98: t+91 | H98: =H97*(1+LimCalc!$D$5/100) -> 56631.76023 | I98: 29675.04236 | J98: =+H98*LimCalc!$D$7/100 -> 8268.236994 | K98: =+L97*LimCalc!$D$6/100 -> 7052.025035 | L98: 82273.97099 | M98: 75584.97099 | N98: 890.4529372 | P98: 133.4674583 | Q98: 145.2843137 | R98: 254.7088899 | S98: =+LimCalc!$D$14*100 -> 277.2601407 | U98: 14.0247768 | V98: 14.16679241 | X98: 85.29055276 | Y98: 85.29411765 | AA98: 1132.635205 | AB98: 7052.025035 | AC98: 8184.66024 | AD98: 83.57675391 | AE98: 18715.52214 | AF98: 33.04774929 | AG98: 9.950980392 | AH98: 63.06822383 | AI98: 18.9904206
G99: t+92 | H99: =H98*(1+LimCalc!$D$5/100) -> 57481.23664 | I99: 30120.168 | J99: =+H99*LimCalc!$D$7/100 -> 8392.260549 | K99: =+L98*LimCalc!$D$6/100 -> 7157.835476 | L99: 83508.39606 | M99: 76819.39606 | N99: 905.0152282 | P99: 133.6425598 | Q99: 145.2843137 | R99: 255.0430531 | S99: =+LimCalc!$D$14*100 -> 277.2601407 | U99: 14.02692631 | V99: 14.16679241 | X99: 85.290911 | Y99: 85.29411765 | AA99: 1149.624733 | AB99: 7157.835476 | AC99: 8307.460209 | AD99: 84.80034035 | AE99: 18800.32248 | AF99: 32.7068859 | AG99: 9.950980392 | AH99: 62.41772118 | AI99: 18.9904206
G100: t+93 | H100: =H99*(1+LimCalc!$D$5/100) -> 58343.45519 | I100: 30571.97052 | J100: =+H100*LimCalc!$D$7/100 -> 8518.144457 | K100: =+L99*LimCalc!$D$6/100 -> 7265.230457 | L100: 84761.31006 | M100: 78072.31006 | N100: 919.7955936 | P100: 133.8150266 | Q100: 145.2843137 | R100: 255.3721881 | S100: =+LimCalc!$D$14*100 -> 277.2601407 | U100: 14.02903895 | V100: 14.16679241 | X100: 85.29123325 | Y100: 85.29411765 | AA100: 1166.869104 | AB100: 7265.230457 | AC100: 8432.099561 | AD100: 86.04489624 | AE100: 18886.36737 | AF100: 32.37101285 | AG100: 9.950980392 | AH100: 61.77674208 | AI100: 18.9904206
G101: t+94 | H101: =H100*(1+LimCalc!$D$5/100) -> 59218.60701 | I101: 31030.55008 | J101: =+H101*LimCalc!$D$7/100 -> 8645.916624 | K101: =+L100*LimCalc!$D$6/100 -> 7374.233975 | L101: 86032.99271 | M101: 79343.99271 | N101: 934.7973358 | P101: 133.9849022 | Q101: 145.2843137 | R101: 255.6963783 | S101: =+LimCalc!$D$14*100 -> 277.2601407 | U101: 14.03111578 | V101: 14.16679241 | X101: 85.29152311 | Y101: 85.29411765 | AA101: 1184.37214 | AB101: 7374.233975 | AC101: 8558.606116 | AD101: 87.31050854 | AE101: 18973.67788 | AF101: 32.04006112 | AG101: 9.950980392 | AH101: 61.14515481 | AI101: 18.9904206
G102: t+95 | H102: =H101*(1+LimCalc!$D$5/100) -> 60106.88612 | I102: 31496.00833 | J102: =+H102*LimCalc!$D$7/100 -> 8775.605373 | K102: =+L101*LimCalc!$D$6/100 -> 7484.870366 | L102: 87323.72772 | M102: 80634.72772 | N102: 950.0238041 | P102: 134.1522293 | Q102: 145.2843137 | R102: 256.0157048 | S102: =+LimCalc!$D$14*100 -> 277.2601407 | U102: 14.03315779 | V102: 14.16679241 | X102: 85.29178384 | Y102: 85.29411765 | AA102: 1202.137722 | AB102: 7484.870366 | AC102: 8687.008088 | AD102: 88.59728535 | AE102: 19062.27517 | AF102: 31.71396224 | AG102: 9.950980392 | AH102: 60.52282871 | AI102: 18.9904206
G103: t+96 | H103: =H102*(1+LimCalc!$D$5/100) -> 61008.48941 | I103: 31968.44845 | J103: =+H103*LimCalc!$D$7/100 -> 8907.239454 | K103: =+L102*LimCalc!$D$6/100 -> 7597.164311 | L103: 88633.80286 | M103: 81944.80286 | N103: 965.4783954 | P103: 134.3170494 | Q103: 145.2843137 | R103: 256.3302469 | S103: =+LimCalc!$D$14*100 -> 277.2601407 | U103: 14.03516591 | V103: 14.16679241 | X103: 85.29201837 | Y103: 85.29411765 | AA103: 1220.169788 | AB103: 7597.164311 | AC103: 8817.3341 | AD103: 89.90535444 | AE103: 19152.18052 | AF103: 31.39264831 | AG103: 9.950980392 | AH103: 59.90963419 | AI103: 18.9904206
G104: t+97 | H104: =H103*(1+LimCalc!$D$5/100) -> 61923.61675 | I104: 32447.97518 | J104: =+H104*LimCalc!$D$7/100 -> 9040.848046 | K104: =+L103*LimCalc!$D$6/100 -> 7711.140849 | L104: 89963.51006 | M104: 83274.51006 | N104: 981.1645555 | P104: 134.4794029 | Q104: 145.2843137 | R104: 256.6400819 | S104: =+LimCalc!$D$14*100 -> 277.2601407 | U104: 14.03714101 | V104: 14.16679241 | X104: 85.29222933 | Y104: 85.29411765 | AA104: 1238.472335 | AB104: 7711.140849 | AC104: 8949.613184 | AD104: 91.23486202 | AE104: 19243.41539 | AF104: 31.07605207 | AG104: 9.950980392 | AH104: 59.30544288 | AI104: 18.9904206
G105: t+98 | H105: =H104*(1+LimCalc!$D$5/100) -> 62852.471 | I105: 32934.69481 | J105: =+H105*LimCalc!$D$7/100 -> 9176.460767 | K105: =+L104*LimCalc!$D$6/100 -> 7826.825375 | L105: 91313.14545 | M105: 84624.14545 | N105: 997.0857796 | P105: 134.6393294 | Q105: 145.2843137 | R105: 256.945285 | S105: =+LimCalc!$D$14*100 -> 277.2601407 | U105: 14.03908393 | V105: 14.16679241 | X105: 85.29241909 | Y105: 85.29411765 | AA105: 1257.04942 | AB105: 7826.825375 | AC105: 9083.874795 | AD105: 92.58597154 | AE105: 19336.00136 | AF105: 30.76410688 | AG105: 9.950980392 | AH105: 58.71012763 | AI105: 18.9904206
G106: t+99 | H106: =H105*(1+LimCalc!$D$5/100) -> 63795.25807 | I106: 33428.71523 | J106: =+H106*LimCalc!$D$7/100 -> 9314.107678 | K106: =+L105*LimCalc!$D$6/100 -> 7944.243654 | L106: 92683.00947 | M106: 85994.00947 | N106: 1013.245614 | P106: 134.7968675 | Q106: 145.2843137 | R106: 257.2459303 | S106: =+LimCalc!$D$14*100 -> 277.2601407 | U106: 14.04099543 | V106: 14.16679241 | X106: 85.29258979 | Y106: 85.29411765 | AA106: 1275.905161 | AB106: 7944.243654 | AC106: 9220.148815 | AD106: 93.95886266 | AE106: 19429.96022 | AF106: 30.4567468 | AG106: 9.950980392 | AH106: 58.12356259 | AI106: 18.9904206
G107: t+100 | H107: =H106*(1+LimCalc!$D$5/100) -> 64752.18694 | I107: 33930.14596 | J107: =+H107*LimCalc!$D$7/100 -> 9453.819293 | K107: =+L106*LimCalc!$D$6/100 -> 8063.421824 | L107: 94073.40694 | M107: 87384.40694 | N107: 1029.647655 | P107: 134.952055 | Q107: 145.2843137 | R107: 257.5420897 | S107: =+LimCalc!$D$14*100 -> 277.2601407 | U107: 14.04287625 | V107: 14.16679241 | X107: 85.29274332 | Y107: 85.29411765 | AA107: 1295.043739 | AB107: 8063.421824 | AC107: 9358.465563 | AD107: 95.35373032 | AE107: 19525.31395 | AF107: 30.15390657 | AG107: 9.950980392 | AH107: 57.54562322 | AI107: 18.9904206

Sheet LimSim
B1: Simulations des limites
B3: Limite du taux d'endettement net | I3: Limite du taux de l'effet de tenailles | P3: Limite de l'autofinancement de l'investissement net | W3: Limite du taux d'endettement net
B4: avec équilibre structurel et kF = | E4: 50 | F4: % | I4: avec équilibre structurel et kA = | L4: 10 | M4: % | P4: avec équilibre structurel | W4: avec déséquilibre structurel, kF= | Z4: 50 | AA4: % | AB4: et kA= | AC4: 10 | AD4: %
E6: kA | L6: i | R6: kA | Y6: kD (= I1-100%)
B7: r | C7: kI (= I6) | D7: 7.5 | E7: 10 | F7: 12.5 | I7: r | J7: kI (= I6) | K7: 1.5 | L7: 3 | M7: 4.5 | P7: r | Q7: 7.5 | R7: 10 | S7: 12.5 | W7: r | X7: kI (= I6) | Y7: -2 | Z7: -1 | AA7: 0 | AB7: 1 | AC7: 2
B8: 1.5 | C8: 12.5 | D8: =($C8/100)*(1+$B$8/100)/(($B$8/100)+(D$7/100))/(($E$4/100))*100 -> 281.9444444 | E8: =($C8/100)*(1+$B$8/100)/(($B$8/100)+(E$7/100))/(($E$4/100))*100 -> 220.6521739 | F8: 181.25 | I8: =+B8 -> 1.5 | J8: =+C8 -> 12.5 | K8: =($J8/100)*((K$7/100)+($L$4/100))/(($I$8/100)+($L$4/100))*100 -> 12.5 | L8: =($J8/100)*((L$7/100)+($L$4/100))/(($I$8/100)+($L$4/100))*100 -> 14.13043478 | M8: 15.76086957 | P8: =+B8 -> 1.5 | Q8: =(Q$7/100)/(($P8/100)+(Q$7/100))*100 -> 83.33333333 | R8: =(R$7/100)/(($P8/100)+(R$7/100))*100 -> 86.95652174 | S8: 89.28571429 | W8: =+I8 -> 1.5 | X8: =+C8 -> 12.5 | Y8: =(($X8/100*((1+$W$8/100)/($W$8/100+$AC$4/100)))-(Y$7/100*(1+($W$8/100))/($W$8/100)))/($Z$4/100)*100 -> 491.3188406 | Z8: =(($X8/100*((1+$W$8/100)/($W$8/100+$AC$4/100)))-(Z$7/100*(1+($W$8/100))/($W$8/100)))/($Z$4/100)*100 -> 355.9855072 | AA8: 220.6521739 | AB8: 85.31884058 | AC8: -50.01449275
D9: =IF(D8<=50,6,IF(D8<=100,6-(D8-50)*(1/50),IF(D8<200,5-(D8-100)*(4/100),1))) -> 1 | E9: =IF(E8<=50,6,IF(E8<=100,6-(E8-50)*(1/50),IF(E8<200,5-(E8-100)*(4/100),1))) -> 1 | F9: =IF(F8<=50,6,IF(F8<=100,6-(F8-50)*(1/50),IF(F8<200,5-(F8-100)*(4/100),1))) -> 1.75 | K9: =IF(K8<=2.5,6,IF(K8<15,6-(K8-2.5)*(1/2.5),1)) -> 2 | L9: =IF(L8<=2.5,6,IF(L8<15,6-(L8-2.5)*(1/2.5),1)) -> 1.347826087 | M9: =IF(M8<=2.5,6,IF(M8<15,6-(M8-2.5)*(1/2.5),1)) -> 1 | Q9: =IF(Q8<25,1,IF(Q8<100,6-(100-Q8)*(5/75),6)) -> 4.888888889 | R9: =IF(R8<25,1,IF(R8<100,6-(100-R8)*(5/75),6)) -> 5.130434783 | S9: =IF(S8<25,1,IF(S8<100,6-(100-S8)*(5/75),6)) -> 5.285714286 | Y9: =IF(Y8<=50,6,IF(Y8<=100,6-(Y8-50)*(1/50),IF(Y8<200,5-(Y8-100)*(4/100),1))) -> 1 | Z9: =IF(Z8<=50,6,IF(Z8<=100,6-(Z8-50)*(1/50),IF(Z8<200,5-(Z8-100)*(4/100),1))) -> 1 | AA9: =IF(AA8<=50,6,IF(AA8<=100,6-(AA8-50)*(1/50),IF(AA8<200,5-(AA8-100)*(4/100),1))) -> 1 | AB9: =IF(AB8<=50,6,IF(AB8<=100,6-(AB8-50)*(1/50),IF(AB8<200,5-(AB8-100)*(4/100),1))) -> 5.293623188 | AC9: =IF(AC8<=50,6,IF(AC8<=100,6-(AC8-50)*(1/50),IF(AC8<200,5-(AC8-100)*(4/100),1))) -> 6
C10: =+C8-2.5 -> 10 | D10: =($C10/100)*(1+$B$8/100)/(($B$8/100)+(D$7/100))/(($E$4/100))*100 -> 225.5555556 | E10: 176.5217391 | F10: 145 | J10: =+J8-2.5 -> 10 | K10: =($J10/100)*((K$7/100)+($L$4/100))/(($I$8/100)+($L$4/100))*100 -> 10 | L10: 11.30434783 | M10: 12.60869565 | P10: =+P8+1.5 -> 3 | Q10: =(Q$7/100)/(($P10/100)+(Q$7/100))*100 -> 71.42857143 | R10: 76.92307692 | S10: 80.64516129 | X10: =+X8-2.5 -> 10 | Y10: =(($X10/100*((1+$W$8/100)/($W$8/100+$AC$4/100)))-(Y$7/100*(1+($W$8/100))/($W$8/100)))/($Z$4/100)*100 -> 447.1884058 | Z10: 311.8550725 | AA10: 176.5217391 | AB10: 41.1884058 | AC10: -94.14492754
D11: =IF(D10<=50,6,IF(D10<=100,6-(D10-50)*(1/50),IF(D10<200,5-(D10-100)*(4/100),1))) -> 1 | E11: =IF(E10<=50,6,IF(E10<=100,6-(E10-50)*(1/50),IF(E10<200,5-(E10-100)*(4/100),1))) -> 1.939130435 | F11: =IF(F10<=50,6,IF(F10<=100,6-(F10-50)*(1/50),IF(F10<200,5-(F10-100)*(4/100),1))) -> 3.2 | K11: =IF(K10<=2.5,6,IF(K10<15,6-(K10-2.5)*(1/2.5),1)) -> 3 | L11: =IF(L10<=2.5,6,IF(L10<15,6-(L10-2.5)*(1/2.5),1)) -> 2.47826087 | M11: =IF(M10<=2.5,6,IF(M10<15,6-(M10-2.5)*(1/2.5),1)) -> 1.956521739 | Q11: =IF(Q10<25,1,IF(Q10<100,6-(100-Q10)*(5/75),6)) -> 4.095238095 | R11: =IF(R10<25,1,IF(R10<100,6-(100-R10)*(5/75),6)) -> 4.461538462 | S11: =IF(S10<25,1,IF(S10<100,6-(100-S10)*(5/75),6)) -> 4.709677419 | Y11: =IF(Y10<=50,6,IF(Y10<=100,6-(Y10-50)*(1/50),IF(Y10<200,5-(Y10-100)*(4/100),1))) -> 1 | Z11: =IF(Z10<=50,6,IF(Z10<=100,6-(Z10-50)*(1/50),IF(Z10<200,5-(Z10-100)*(4/100),1))) -> 1 | AA11: =IF(AA10<=50,6,IF(AA10<=100,6-(AA10-50)*(1/50),IF(AA10<200,5-(AA10-100)*(4/100),1))) -> 1.939130435 | AB11: =IF(AB10<=50,6,IF(AB10<=100,6-(AB10-50)*(1/50),IF(AB10<200,5-(AB10-100)*(4/100),1))) -> 6 | AC11: =IF(AC10<=50,6,IF(AC10<=100,6-(AC10-50)*(1/50),IF(AC10<200,5-(AC10-100)*(4/100),1))) -> 6
C12: =+C10-2.5 -> 7.5 | D12: =($C12/100)*(1+$B$8/100)/(($B$8/100)+(D$7/100))/(($E$4/100))*100 -> 169.1666667 | E12: 132.3913043 | F12: 108.75 | J12: =+J10-2.5 -> 7.5 | K12: =($J12/100)*((K$7/100)+($L$4/100))/(($I$8/100)+($L$4/100))*100 -> 7.5 | L12: 8.47826087 | M12: 9.456521739 | P12: =+P10+1.5 -> 4.5 | Q12: =(Q$7/100)/(($P12/100)+(Q$7/100))*100 -> 62.5 | R12: 68.96551724 | S12: 73.52941176 | X12: =+X10-2.5 -> 7.5 | Y12: =(($X12/100*((1+$W$8/100)/($W$8/100+$AC$4/100)))-(Y$7/100*(1+($W$8/100))/($W$8/100)))/($Z$4/100)*100 -> 403.057971 | Z12: 267.7246377 | AA12: 132.3913043 | AB12: -2.942028986 | AC12: -138.2753623
D13: =IF(D12<=50,6,IF(D12<=100,6-(D12-50)*(1/50),IF(D12<200,5-(D12-100)*(4/100),1))) -> 2.233333333 | E13: =IF(E12<=50,6,IF(E12<=100,6-(E12-50)*(1/50),IF(E12<200,5-(E12-100)*(4/100),1))) -> 3.704347826 | F13: =IF(F12<=50,6,IF(F12<=100,6-(F12-50)*(1/50),IF(F12<200,5-(F12-100)*(4/100),1))) -> 4.65 | K13: =IF(K12<=2.5,6,IF(K12<15,6-(K12-2.5)*(1/2.5),1)) -> 4 | L13: =IF(L12<=2.5,6,IF(L12<15,6-(L12-2.5)*(1/2.5),1)) -> 3.608695652 | M13: =IF(M12<=2.5,6,IF(M12<15,6-(M12-2.5)*(1/2.5),1)) -> 3.217391304 | Q13: =IF(Q12<25,1,IF(Q12<100,6-(100-Q12)*(5/75),6)) -> 3.5 | R13: =IF(R12<25,1,IF(R12<100,6-(100-R12)*(5/75),6)) -> 3.931034483 | S13: =IF(S12<25,1,IF(S12<100,6-(100-S12)*(5/75),6)) -> 4.235294118 | Y13: =IF(Y12<=50,6,IF(Y12<=100,6-(Y12-50)*(1/50),IF(Y12<200,5-(Y12-100)*(4/100),1))) -> 1 | Z13: =IF(Z12<=50,6,IF(Z12<=100,6-(Z12-50)*(1/50),IF(Z12<200,5-(Z12-100)*(4/100),1))) -> 1 | AA13: =IF(AA12<=50,6,IF(AA12<=100,6-(AA12-50)*(1/50),IF(AA12<200,5-(AA12-100)*(4/100),1))) -> 3.704347826 | AB13: =IF(AB12<=50,6,IF(AB12<=100,6-(AB12-50)*(1/50),IF(AB12<200,5-(AB12-100)*(4/100),1))) -> 6 | AC13: =IF(AC12<=50,6,IF(AC12<=100,6-(AC12-50)*(1/50),IF(AC12<200,5-(AC12-100)*(4/100),1))) -> 6
C14: =+C12-2.5 -> 5 | D14: =($C14/100)*(1+$B$8/100)/(($B$8/100)+(D$7/100))/(($E$4/100))*100 -> 112.7777778 | E14: 88.26086957 | F14: 72.5 | J14: =+C14 -> 5 | K14: =($J14/100)*((K$7/100)+($L$4/100))/(($I$8/100)+($L$4/100))*100 -> 5 | L14: 5.652173913 | M14: 6.304347826 | X14: =+J14 -> 5 | Y14: =(($X14/100*((1+$W$8/100)/($W$8/100+$AC$4/100)))-(Y$7/100*(1+($W$8/100))/($W$8/100)))/($Z$4/100)*100 -> 358.9275362 | Z14: 223.5942029 | AA14: 88.26086957 | AB14: -47.07246377 | AC14: -182.4057971
D15: =IF(D14<=50,6,IF(D14<=100,6-(D14-50)*(1/50),IF(D14<200,5-(D14-100)*(4/100),1))) -> 4.488888889 | E15: =IF(E14<=50,6,IF(E14<=100,6-(E14-50)*(1/50),IF(E14<200,5-(E14-100)*(4/100),1))) -> 5.234782609 | F15: =IF(F14<=50,6,IF(F14<=100,6-(F14-50)*(1/50),IF(F14<200,5-(F14-100)*(4/100),1))) -> 5.55 | K15: =IF(K14<=2.5,6,IF(K14<15,6-(K14-2.5)*(1/2.5),1)) -> 5 | L15: =IF(L14<=2.5,6,IF(L14<15,6-(L14-2.5)*(1/2.5),1)) -> 4.739130435 | M15: =IF(M14<=2.5,6,IF(M14<15,6-(M14-2.5)*(1/2.5),1)) -> 4.47826087 | Y15: =IF(Y14<=50,6,IF(Y14<=100,6-(Y14-50)*(1/50),IF(Y14<200,5-(Y14-100)*(4/100),1))) -> 1 | Z15: =IF(Z14<=50,6,IF(Z14<=100,6-(Z14-50)*(1/50),IF(Z14<200,5-(Z14-100)*(4/100),1))) -> 1 | AA15: =IF(AA14<=50,6,IF(AA14<=100,6-(AA14-50)*(1/50),IF(AA14<200,5-(AA14-100)*(4/100),1))) -> 5.234782609 | AB15: =IF(AB14<=50,6,IF(AB14<=100,6-(AB14-50)*(1/50),IF(AB14<200,5-(AB14-100)*(4/100),1))) -> 6 | AC15: =IF(AC14<=50,6,IF(AC14<=100,6-(AC14-50)*(1/50),IF(AC14<200,5-(AC14-100)*(4/100),1))) -> 6
B16: =+B8+1.5 -> 3 | C16: =+C8 -> 12.5 | D16: =($C16/100)*(1+$B$16/100)/(($B$16/100)+(D$7/100))/(($E$4/100))*100 -> 245.2380952 | E16: =($C16/100)*(1+$B$16/100)/(($B$16/100)+(E$7/100))/(($E$4/100))*100 -> 198.0769231 | F16: 166.1290323 | I16: =+B16 -> 3 | J16: =+J8 -> 12.5 | K16: =($J16/100)*((K$7/100)+($L$4/100))/(($I$16/100)+($L$4/100))*100 -> 11.05769231 | L16: =($J16/100)*((L$7/100)+($L$4/100))/(($I$16/100)+($L$4/100))*100 -> 12.5 | M16: 13.94230769 | W16: =+I16 -> 3 | X16: =+X8 -> 12.5 | Y16: =(($X16/100*((1+$W$16/100)/($W$16/100+$AC$4/100)))-(Y$7/100*(1+($W$16/100))/($W$16/100)))/($Z$4/100)*100 -> 335.4102564 | Z16: =(($X16/100*((1+$W$16/100)/($W$16/100+$AC$4/100)))-(Z$7/100*(1+($W$16/100))/($W$16/100)))/($Z$4/100)*100 -> 266.7435897 | AA16: 198.0769231 | AB16: 129.4102564 | AC16: 60.74358974
D17: =IF(D16<=50,6,IF(D16<=100,6-(D16-50)*(1/50),IF(D16<200,5-(D16-100)*(4/100),1))) -> 1 | E17: =IF(E16<=50,6,IF(E16<=100,6-(E16-50)*(1/50),IF(E16<200,5-(E16-100)*(4/100),1))) -> 1.076923077 | F17: =IF(F16<=50,6,IF(F16<=100,6-(F16-50)*(1/50),IF(F16<200,5-(F16-100)*(4/100),1))) -> 2.35483871 | K17: =IF(K16<=2.5,6,IF(K16<15,6-(K16-2.5)*(1/2.5),1)) -> 2.576923077 | L17: =IF(L16<=2.5,6,IF(L16<15,6-(L16-2.5)*(1/2.5),1)) -> 2 | M17: =IF(M16<=2.5,6,IF(M16<15,6-(M16-2.5)*(1/2.5),1)) -> 1.423076923 | Y17: =IF(Y16<=50,6,IF(Y16<=100,6-(Y16-50)*(1/50),IF(Y16<200,5-(Y16-100)*(4/100),1))) -> 1 | Z17: =IF(Z16<=50,6,IF(Z16<=100,6-(Z16-50)*(1/50),IF(Z16<200,5-(Z16-100)*(4/100),1))) -> 1 | AA17: =IF(AA16<=50,6,IF(AA16<=100,6-(AA16-50)*(1/50),IF(AA16<200,5-(AA16-100)*(4/100),1))) -> 1.076923077 | AB17: =IF(AB16<=50,6,IF(AB16<=100,6-(AB16-50)*(1/50),IF(AB16<200,5-(AB16-100)*(4/100),1))) -> 3.823589744 | AC17: =IF(AC16<=50,6,IF(AC16<=100,6-(AC16-50)*(1/50),IF(AC16<200,5-(AC16-100)*(4/100),1))) -> 5.785128205
C18: =+C10 -> 10 | D18: =($C18/100)*(1+$B$16/100)/(($B$16/100)+(D$7/100))/(($E$4/100))*100 -> 196.1904762 | E18: 158.4615385 | F18: 132.9032258 | J18: =+J10 -> 10 | K18: =($J18/100)*((K$7/100)+($L$4/100))/(($I$16/100)+($L$4/100))*100 -> 8.846153846 | L18: 10 | M18: 11.15384615 | X18: =+X10 -> 10 | Y18: =(($X18/100*((1+$W$16/100)/($W$16/100+$AC$4/100)))-(Y$7/100*(1+($W$16/100))/($W$16/100)))/($Z$4/100)*100 -> 295.7948718 | Z18: 227.1282051 | AA18: 158.4615385 | AB18: 89.79487179 | AC18: 21.12820513
D19: =IF(D18<=50,6,IF(D18<=100,6-(D18-50)*(1/50),IF(D18<200,5-(D18-100)*(4/100),1))) -> 1.152380952 | E19: =IF(E18<=50,6,IF(E18<=100,6-(E18-50)*(1/50),IF(E18<200,5-(E18-100)*(4/100),1))) -> 2.661538462 | F19: =IF(F18<=50,6,IF(F18<=100,6-(F18-50)*(1/50),IF(F18<200,5-(F18-100)*(4/100),1))) -> 3.683870968 | K19: =IF(K18<=2.5,6,IF(K18<15,6-(K18-2.5)*(1/2.5),1)) -> 3.461538462 | L19: =IF(L18<=2.5,6,IF(L18<15,6-(L18-2.5)*(1/2.5),1)) -> 3 | M19: =IF(M18<=2.5,6,IF(M18<15,6-(M18-2.5)*(1/2.5),1)) -> 2.538461538 | Y19: =IF(Y18<=50,6,IF(Y18<=100,6-(Y18-50)*(1/50),IF(Y18<200,5-(Y18-100)*(4/100),1))) -> 1 | Z19: =IF(Z18<=50,6,IF(Z18<=100,6-(Z18-50)*(1/50),IF(Z18<200,5-(Z18-100)*(4/100),1))) -> 1 | AA19: =IF(AA18<=50,6,IF(AA18<=100,6-(AA18-50)*(1/50),IF(AA18<200,5-(AA18-100)*(4/100),1))) -> 2.661538462 | AB19: =IF(AB18<=50,6,IF(AB18<=100,6-(AB18-50)*(1/50),IF(AB18<200,5-(AB18-100)*(4/100),1))) -> 5.204102564 | AC19: =IF(AC18<=50,6,IF(AC18<=100,6-(AC18-50)*(1/50),IF(AC18<200,5-(AC18-100)*(4/100),1))) -> 6
C20: =+C12 -> 7.5 | D20: =($C20/100)*(1+$B$16/100)/(($B$16/100)+(D$7/100))/(($E$4/100))*100 -> 147.1428571 | E20: 118.8461538 | F20: 99.67741935 | J20: =+J12 -> 7.5 | K20: =($J20/100)*((K$7/100)+($L$4/100))/(($I$16/100)+($L$4/100))*100 -> 6.634615385 | L20: 7.5 | M20: 8.365384615 | X20: =+X12 -> 7.5 | Y20: =(($X20/100*((1+$W$16/100)/($W$16/100+$AC$4/100)))-(Y$7/100*(1+($W$16/100))/($W$16/100)))/($Z$4/100)*100 -> 256.1794872 | Z20: 187.5128205 | AA20: 118.8461538 | AB20: 50.17948718 | AC20: -18.48717949
D21: =IF(D20<=50,6,IF(D20<=100,6-(D20-50)*(1/50),IF(D20<200,5-(D20-100)*(4/100),1))) -> 3.114285714 | E21: =IF(E20<=50,6,IF(E20<=100,6-(E20-50)*(1/50),IF(E20<200,5-(E20-100)*(4/100),1))) -> 4.246153846 | F21: =IF(F20<=50,6,IF(F20<=100,6-(F20-50)*(1/50),IF(F20<200,5-(F20-100)*(4/100),1))) -> 5.006451613 | K21: =IF(K20<=2.5,6,IF(K20<15,6-(K20-2.5)*(1/2.5),1)) -> 4.346153846 | L21: =IF(L20<=2.5,6,IF(L20<15,6-(L20-2.5)*(1/2.5),1)) -> 4 | M21: =IF(M20<=2.5,6,IF(M20<15,6-(M20-2.5)*(1/2.5),1)) -> 3.653846154 | Y21: =IF(Y20<=50,6,IF(Y20<=100,6-(Y20-50)*(1/50),IF(Y20<200,5-(Y20-100)*(4/100),1))) -> 1 | Z21: =IF(Z20<=50,6,IF(Z20<=100,6-(Z20-50)*(1/50),IF(Z20<200,5-(Z20-100)*(4/100),1))) -> 1.499487179 | AA21: =IF(AA20<=50,6,IF(AA20<=100,6-(AA20-50)*(1/50),IF(AA20<200,5-(AA20-100)*(4/100),1))) -> 4.246153846 | AB21: =IF(AB20<=50,6,IF(AB20<=100,6-(AB20-50)*(1/50),IF(AB20<200,5-(AB20-100)*(4/100),1))) -> 5.996410256 | AC21: =IF(AC20<=50,6,IF(AC20<=100,6-(AC20-50)*(1/50),IF(AC20<200,5-(AC20-100)*(4/100),1))) -> 6
C22: =+C14 -> 5 | D22: =($C22/100)*(1+$B$16/100)/(($B$16/100)+(D$7/100))/(($E$4/100))*100 -> 98.0952381 | E22: 79.23076923 | F22: 66.4516129 | J22: =+J14 -> 5 | K22: =($J22/100)*((K$7/100)+($L$4/100))/(($I$16/100)+($L$4/100))*100 -> 4.423076923 | L22: 5 | M22: 5.576923077 | X22: =+X14 -> 5 | Y22: =(($X22/100*((1+$W$16/100)/($W$16/100+$AC$4/100)))-(Y$7/100*(1+($W$16/100))/($W$16/100)))/($Z$4/100)*100 -> 216.5641026 | Z22: 147.8974359 | AA22: 79.23076923 | AB22: 10.56410256 | AC22: -58.1025641
D23: =IF(D22<=50,6,IF(D22<=100,6-(D22-50)*(1/50),IF(D22<200,5-(D22-100)*(4/100),1))) -> 5.038095238 | E23: =IF(E22<=50,6,IF(E22<=100,6-(E22-50)*(1/50),IF(E22<200,5-(E22-100)*(4/100),1))) -> 5.415384615 | F23: =IF(F22<=50,6,IF(F22<=100,6-(F22-50)*(1/50),IF(F22<200,5-(F22-100)*(4/100),1))) -> 5.670967742 | K23: =IF(K22<=2.5,6,IF(K22<15,6-(K22-2.5)*(1/2.5),1)) -> 5.230769231 | L23: =IF(L22<=2.5,6,IF(L22<15,6-(L22-2.5)*(1/2.5),1)) -> 5 | M23: =IF(M22<=2.5,6,IF(M22<15,6-(M22-2.5)*(1/2.5),1)) -> 4.769230769 | Y23: =IF(Y22<=50,6,IF(Y22<=100,6-(Y22-50)*(1/50),IF(Y22<200,5-(Y22-100)*(4/100),1))) -> 1 | Z23: =IF(Z22<=50,6,IF(Z22<=100,6-(Z22-50)*(1/50),IF(Z22<200,5-(Z22-100)*(4/100),1))) -> 3.084102564 | AA23: =IF(AA22<=50,6,IF(AA22<=100,6-(AA22-50)*(1/50),IF(AA22<200,5-(AA22-100)*(4/100),1))) -> 5.415384615 | AB23: =IF(AB22<=50,6,IF(AB22<=100,6-(AB22-50)*(1/50),IF(AB22<200,5-(AB22-100)*(4/100),1))) -> 6 | AC23: =IF(AC22<=50,6,IF(AC22<=100,6-(AC22-50)*(1/50),IF(AC22<200,5-(AC22-100)*(4/100),1))) -> 6
B24: =+B16+1.5 -> 4.5 | C24: =+C16 -> 12.5 | D24: =($C24/100)*(1+$B$24/100)/(($B$24/100)+(D$7/100))/(($E$4/100))*100 -> 217.7083333 | E24: =($C24/100)*(1+$B$24/100)/(($B$24/100)+(E$7/100))/(($E$4/100))*100 -> 180.1724138 | F24: 153.6764706 | I24: =+B24 -> 4.5 | J24: =+J16 -> 12.5 | K24: =($J24/100)*((K$7/100)+($L$4/100))/(($I$24/100)+($L$4/100))*100 -> 9.913793103 | L24: =($J24/100)*((L$7/100)+($L$4/100))/(($I$24/100)+($L$4/100))*100 -> 11.20689655 | M24: 12.5 | W24: =+I24 -> 4.5 | X24: =+X16 -> 12.5 | Y24: =(($X24/100*((1+$W$24/100)/($W$24/100+$AC$4/100)))-(Y$7/100*(1+($W$24/100))/($W$24/100)))/($Z$4/100)*100 -> 273.0613027 | Z24: =(($X24/100*((1+$W$24/100)/($W$24/100+$AC$4/100)))-(Z$7/100*(1+($W$24/100))/($W$24/100)))/($Z$4/100)*100 -> 226.6168582 | AA24: 180.1724138 | AB24: 133.7279693 | AC24: 87.2835249
D25: =IF(D24<=50,6,IF(D24<=100,6-(D24-50)*(1/50),IF(D24<200,5-(D24-100)*(4/100),1))) -> 1 | E25: =IF(E24<=50,6,IF(E24<=100,6-(E24-50)*(1/50),IF(E24<200,5-(E24-100)*(4/100),1))) -> 1.793103448 | F25: =IF(F24<=50,6,IF(F24<=100,6-(F24-50)*(1/50),IF(F24<200,5-(F24-100)*(4/100),1))) -> 2.852941176 | K25: =IF(K24<=2.5,6,IF(K24<15,6-(K24-2.5)*(1/2.5),1)) -> 3.034482759 | L25: =IF(L24<=2.5,6,IF(L24<15,6-(L24-2.5)*(1/2.5),1)) -> 2.517241379 | M25: =IF(M24<=2.5,6,IF(M24<15,6-(M24-2.5)*(1/2.5),1)) -> 2 | Y25: =IF(Y24<=50,6,IF(Y24<=100,6-(Y24-50)*(1/50),IF(Y24<200,5-(Y24-100)*(4/100),1))) -> 1 | Z25: =IF(Z24<=50,6,IF(Z24<=100,6-(Z24-50)*(1/50),IF(Z24<200,5-(Z24-100)*(4/100),1))) -> 1 | AA25: =IF(AA24<=50,6,IF(AA24<=100,6-(AA24-50)*(1/50),IF(AA24<200,5-(AA24-100)*(4/100),1))) -> 1.793103448 | AB25: =IF(AB24<=50,6,IF(AB24<=100,6-(AB24-50)*(1/50),IF(AB24<200,5-(AB24-100)*(4/100),1))) -> 3.650881226 | AC25: =IF(AC24<=50,6,IF(AC24<=100,6-(AC24-50)*(1/50),IF(AC24<200,5-(AC24-100)*(4/100),1))) -> 5.254329502
C26: =+C18 -> 10 | D26: =($C26/100)*(1+$B$24/100)/(($B$24/100)+(D$7/100))/(($E$4/100))*100 -> 174.1666667 | E26: 144.137931 | F26: 122.9411765 | J26: =+J18 -> 10 | K26: =($J26/100)*((K$7/100)+($L$4/100))/(($I$24/100)+($L$4/100))*100 -> 7.931034483 | L26: 8.965517241 | M26: 10 | X26: =+X18 -> 10 | Y26: =(($X26/100*((1+$W$24/100)/($W$24/100+$AC$4/100)))-(Y$7/100*(1+($W$24/100))/($W$24/100)))/($Z$4/100)*100 -> 237.0268199 | Z26: 190.5823755 | AA26: 144.137931 | AB26: 97.69348659 | AC26: 51.24904215
D27: =IF(D26<=50,6,IF(D26<=100,6-(D26-50)*(1/50),IF(D26<200,5-(D26-100)*(4/100),1))) -> 2.033333333 | E27: =IF(E26<=50,6,IF(E26<=100,6-(E26-50)*(1/50),IF(E26<200,5-(E26-100)*(4/100),1))) -> 3.234482759 | F27: =IF(F26<=50,6,IF(F26<=100,6-(F26-50)*(1/50),IF(F26<200,5-(F26-100)*(4/100),1))) -> 4.082352941 | K27: =IF(K26<=2.5,6,IF(K26<15,6-(K26-2.5)*(1/2.5),1)) -> 3.827586207 | L27: =IF(L26<=2.5,6,IF(L26<15,6-(L26-2.5)*(1/2.5),1)) -> 3.413793103 | M27: =IF(M26<=2.5,6,IF(M26<15,6-(M26-2.5)*(1/2.5),1)) -> 3 | Y27: =IF(Y26<=50,6,IF(Y26<=100,6-(Y26-50)*(1/50),IF(Y26<200,5-(Y26-100)*(4/100),1))) -> 1 | Z27: =IF(Z26<=50,6,IF(Z26<=100,6-(Z26-50)*(1/50),IF(Z26<200,5-(Z26-100)*(4/100),1))) -> 1.376704981 | AA27: =IF(AA26<=50,6,IF(AA26<=100,6-(AA26-50)*(1/50),IF(AA26<200,5-(AA26-100)*(4/100),1))) -> 3.234482759 | AB27: =IF(AB26<=50,6,IF(AB26<=100,6-(AB26-50)*(1/50),IF(AB26<200,5-(AB26-100)*(4/100),1))) -> 5.046130268 | AC27: =IF(AC26<=50,6,IF(AC26<=100,6-(AC26-50)*(1/50),IF(AC26<200,5-(AC26-100)*(4/100),1))) -> 5.975019157
C28: =+C20 -> 7.5 | D28: =($C28/100)*(1+$B$24/100)/(($B$24/100)+(D$7/100))/(($E$4/100))*100 -> 130.625 | E28: 108.1034483 | F28: 92.20588235 | J28: =+J20 -> 7.5 | K28: =($J28/100)*((K$7/100)+($L$4/100))/(($I$24/100)+($L$4/100))*100 -> 5.948275862 | L28: 6.724137931 | M28: 7.5 | X28: =+X20 -> 7.5 | Y28: =(($X28/100*((1+$W$24/100)/($W$24/100+$AC$4/100)))-(Y$7/100*(1+($W$24/100))/($W$24/100)))/($Z$4/100)*100 -> 200.9923372 | Z28: 154.5478927 | AA28: 108.1034483 | AB28: 61.65900383 | AC28: 15.21455939
D29: =IF(D28<=50,6,IF(D28<=100,6-(D28-50)*(1/50),IF(D28<200,5-(D28-100)*(4/100),1))) -> 3.775 | E29: =IF(E28<=50,6,IF(E28<=100,6-(E28-50)*(1/50),IF(E28<200,5-(E28-100)*(4/100),1))) -> 4.675862069 | F29: =IF(F28<=50,6,IF(F28<=100,6-(F28-50)*(1/50),IF(F28<200,5-(F28-100)*(4/100),1))) -> 5.155882353 | K29: =IF(K28<=2.5,6,IF(K28<15,6-(K28-2.5)*(1/2.5),1)) -> 4.620689655 | L29: =IF(L28<=2.5,6,IF(L28<15,6-(L28-2.5)*(1/2.5),1)) -> 4.310344828 | M29: =IF(M28<=2.5,6,IF(M28<15,6-(M28-2.5)*(1/2.5),1)) -> 4 | Y29: =IF(Y28<=50,6,IF(Y28<=100,6-(Y28-50)*(1/50),IF(Y28<200,5-(Y28-100)*(4/100),1))) -> 1 | Z29: =IF(Z28<=50,6,IF(Z28<=100,6-(Z28-50)*(1/50),IF(Z28<200,5-(Z28-100)*(4/100),1))) -> 2.818084291 | AA29: =IF(AA28<=50,6,IF(AA28<=100,6-(AA28-50)*(1/50),IF(AA28<200,5-(AA28-100)*(4/100),1))) -> 4.675862069 | AB29: =IF(AB28<=50,6,IF(AB28<=100,6-(AB28-50)*(1/50),IF(AB28<200,5-(AB28-100)*(4/100),1))) -> 5.766819923 | AC29: =IF(AC28<=50,6,IF(AC28<=100,6-(AC28-50)*(1/50),IF(AC28<200,5-(AC28-100)*(4/100),1))) -> 6
C30: =+C22 -> 5 | D30: =($C30/100)*(1+$B$24/100)/(($B$24/100)+(D$7/100))/(($E$4/100))*100 -> 87.08333333 | E30: 72.06896552 | F30: 61.47058824 | J30: =+J22 -> 5 | K30: =($J30/100)*((K$7/100)+($L$4/100))/(($I$24/100)+($L$4/100))*100 -> 3.965517241 | L30: 4.482758621 | M30: 5 | X30: =+X22 -> 5 | Y30: =(($X30/100*((1+$W$24/100)/($W$24/100+$AC$4/100)))-(Y$7/100*(1+($W$24/100))/($W$24/100)))/($Z$4/100)*100 -> 164.9578544 | Z30: 118.51341 | AA30: 72.06896552 | AB30: 25.62452107 | AC30: -20.81992337
D31: =IF(D30<=50,6,IF(D30<=100,6-(D30-50)*(1/50),IF(D30<200,5-(D30-100)*(4/100),1))) -> 5.258333333 | E31: =IF(E30<=50,6,IF(E30<=100,6-(E30-50)*(1/50),IF(E30<200,5-(E30-100)*(4/100),1))) -> 5.55862069 | F31: =IF(F30<=50,6,IF(F30<=100,6-(F30-50)*(1/50),IF(F30<200,5-(F30-100)*(4/100),1))) -> 5.770588235 | K31: =IF(K30<=2.5,6,IF(K30<15,6-(K30-2.5)*(1/2.5),1)) -> 5.413793103 | L31: =IF(L30<=2.5,6,IF(L30<15,6-(L30-2.5)*(1/2.5),1)) -> 5.206896552 | M31: =IF(M30<=2.5,6,IF(M30<15,6-(M30-2.5)*(1/2.5),1)) -> 5 | Y31: =IF(Y30<=50,6,IF(Y30<=100,6-(Y30-50)*(1/50),IF(Y30<200,5-(Y30-100)*(4/100),1))) -> 2.401685824 | Z31: =IF(Z30<=50,6,IF(Z30<=100,6-(Z30-50)*(1/50),IF(Z30<200,5-(Z30-100)*(4/100),1))) -> 4.259463602 | AA31: =IF(AA30<=50,6,IF(AA30<=100,6-(AA30-50)*(1/50),IF(AA30<200,5-(AA30-100)*(4/100),1))) -> 5.55862069 | AB31: =IF(AB30<=50,6,IF(AB30<=100,6-(AB30-50)*(1/50),IF(AB30<200,5-(AB30-100)*(4/100),1))) -> 6 | AC31: =IF(AC30<=50,6,IF(AC30<=100,6-(AC30-50)*(1/50),IF(AC30<200,5-(AC30-100)*(4/100),1))) -> 6
